Workbook

Sheet LDB Übersicht
C3: =IF($E$4=$AC$3,Legende!A7,IF($E$4=$AC$4,Legende!B7,IF($E$4=$AC$5,Legende!C7,IF($E$4=$AC$6,Legende!D7)))) -> LTG Linear Diffusers Type LDB and LDB System Clean | AC3: Deutsch | AD3: =IF($E$4=$AC$3,$AD$5,IF($E$4=$AC$4,$AD$6,IF($E$4=$AC$5,$AD$7,IF($E$4=$AC$6,$AD$8)))) -> metrical | AE3: =IF($E$4=$AC$3,AE$4,IF($E$4=$AC$4,AE$5,IF($E$4=$AC$5,AE$6,IF($E$4=$AC$6,AE$7)))) -> To the list | AF3: =IF($E$4=$AC$3,AF$4,IF($E$4=$AC$4,AF$5,IF($E$4=$AC$5,AF$6,IF($E$4=$AC$6,AF$7)))) -> Calculation aid for room absorption | AG3: =IF($E$4=$AC$3,AG$4,IF($E$4=$AC$4,AG$5,IF($E$4=$AC$5,AG$6,IF($E$4=$AC$6,AG$7)))) -> Edit the selected LDB type! | AH3: =IF($E$4=$AC$3,AH$4,IF($E$4=$AC$4,AH$5,IF($E$4=$AC$5,AH$6,IF($E$4=$AC$6,AH$7)))) -> Permissible sound pressure level | AI3: =IF('LDB Übersicht'!$E$4='LDB Übersicht'!$AC$3,AI4,IF('LDB Übersicht'!$E$4='LDB Übersicht'!$AC$4,AI5,IF('LDB Übersicht'!$E$4='LDB Übersicht'!$AC$5,AI6,IF('LDB Übersicht'!$E$4='LDB Übersicht'!$AC$6,AI7)))) -> Print overview | AJ3: 500 mm | AK3: 19,50 in | AL3: 300 mm | AM3: 11,70 in
C4: =IF($E$4=$AC$3,Legende!A8,IF($E$4=$AC$4,Legende!B8,IF($E$4=$AC$5,Legende!C8,IF($E$4=$AC$6,Legende!D8)))) -> language: | E4: English | G4: =IF($E$4=$AC$3,Legende!A10,IF($E$4=$AC$4,Legende!B10,IF($E$4=$AC$5,Legende!C10,IF($E$4=$AC$6,Legende!D10)))) -> Room data: | AC4: English | AD4: =IF($E$4=$AC$3,$AD$9,IF($E$4=$AC$4,$AD$10,IF($E$4=$AC$5,$AD$11,IF($E$4=$AC$6,$AD$12)))) -> imperial | AE4: zur Liste | AF4: Berechnungshilfe Raumabsorption | AG4: Gewählten LDB Typ bearbeiten! | AH4: Zulässige Schalldruckpegel | AI4: Übersicht drucken | AJ4: 750 mm | AK4: 29,25 in | AL4: 600 mm | AM4: 23,40 in
C5: =IF($E$4=$AC$3,Legende!A9,IF($E$4=$AC$4,Legende!B9,IF($E$4=$AC$5,Legende!C9,IF($E$4=$AC$6,Legende!D9)))) -> unit: | E5: imperial | G5: =IF($E$4=$AC$3,Legende!A11,IF($E$4=$AC$4,Legende!B11,IF($E$4=$AC$5,Legende!C11,IF($E$4=$AC$6,Legende!D11)))) -> Room name: | AC5: Francais | AD5: metrisch | AE5: To the list | AF5: Calculation aid for room absorption | AG5: Edit the selected LDB type! | AH5: Permissible sound pressure level | AI5: Print overview | AJ5: 1000 mm | AK5: 39,00 in | AL5: 900 mm | AM5: 35,10 in
G6: =IF($E$4=$AC$3,Legende!A12,IF($E$4=$AC$4,Legende!B12,IF($E$4=$AC$5,Legende!C12,IF($E$4=$AC$6,Legende!D12)))) -> Target total air flow rate: | L6: 587.5 | N6: =IF(OR($E$5=$AD$5,$E$5=$AD$6,$E$5=$AD$7,$E$5=$AD$8),"m³/h",IF(OR($E$5=$AD$9,$E$5=$AD$10,$E$5=$AD$11,$E$5=$AD$12),"cfm","")) -> cfm | V6: E-Mail: Info@LTG.de | AC6: Italiano | AD6: metrical | AE6: À la liste | AF6: Aide au calcul pour l'absorption de la pièce | AG6: Modifiez le type LDB sélectionné! | AH6: Niveau de pression acoustique admissible | AI6: Aperçu de l'impression | AJ6: 1250 mm | AK6: 48,75 in | AL6: 1200 mm | AM6: 46,80 in
C7: =IF($E$4=$AC$3,Legende!A5,IF($E$4=$AC$4,Legende!B5,IF($E$4=$AC$5,Legende!C5,IF($E$4=$AC$6,Legende!D5)))) -> Date: | E7: 2021-07-29 | G7: =IF($E$4=$AC$3,Legende!A13,IF($E$4=$AC$4,Legende!B13,IF($E$4=$AC$5,Legende!C13,IF($E$4=$AC$6,Legende!D13)))) -> Room air temperature: | L7: 78.8 | N7: =IF(OR($E$5=$AD$5,$E$5=$AD$6,$E$5=$AD$7,$E$5=$AD$8),"°C",IF(OR($E$5=$AD$9,$E$5=$AD$10,$E$5=$AD$11,$E$5=$AD$12),"°F","")) -> °F | V7: Tel. +49 (0)711 8201-0 | AC7: English | AD7: métrique | AE7: Alla lista | AF7: Aiuto per il calcolo dell'assorbimento ambientale | AG7: Modifica il tipo di LDB selezionato! | AH7: Livello di pressione sonora ammissibile | AI7: Panoramica della stampa | AJ7: 1500 mm | AK7: 58,50 in | AL7: 1500 mm | AM7: 58,50 in
C8: =IF($E$4=$AC$3,Legende!A4,IF($E$4=$AC$4,Legende!B4,IF($E$4=$AC$5,Legende!C4,IF($E$4=$AC$6,Legende!D4)))) -> Editor: | G8: =IF($E$4=$AC$3,Legende!A14,IF($E$4=$AC$4,Legende!B14,IF($E$4=$AC$5,Legende!C14,IF($E$4=$AC$6,Legende!D14)))) -> Supply air temperature: | L8: 69.8 | N8: =IF(OR($E$5=$AD$5,$E$5=$AD$6,$E$5=$AD$7,$E$5=$AD$8),"°C",IF(OR($E$5=$AD$9,$E$5=$AD$10,$E$5=$AD$11,$E$5=$AD$12),"°F","")) -> °F | AC8: =IF(AC7=E4,0,1) -> 0 | AD8: metrico | AJ8: 1750 mm | AK8: 68,25 in | AL8: 1800 mm | AM8: 70,20 in
C9: =IF($E$4=$AC$3,Legende!A2,IF($E$4=$AC$4,Legende!B2,IF($E$4=$AC$5,Legende!C2,IF($E$4=$AC$6,Legende!D2)))) -> Project: | G9: =IF($E$4=$AC$3,Legende!A15,IF($E$4=$AC$4,Legende!B15,IF($E$4=$AC$5,Legende!C15,IF($E$4=$AC$6,Legende!D15)))) -> Room sound absorpion: | L9: 6.4 | N9: dB | AD9: imperial | AJ9: 2000 mm | AK9: 78,00 in | AL9: 2100 mm | AM9: 81,90 in
C10: =IF($E$4=$AC$3,Legende!A3,IF($E$4=$AC$4,Legende!B3,IF($E$4=$AC$5,Legende!C3,IF($E$4=$AC$6,Legende!D3)))) -> Variant: | G10: =IF($E$4=$AC$3,Legende!A16,IF($E$4=$AC$4,Legende!B16,IF($E$4=$AC$5,Legende!C16,IF($E$4=$AC$6,Legende!D16)))) -> Sound pressure level limit in the room: | L10: 35 | N10: dB | AD10: imperial
C11: =IF($E$4=$AC$3,Legende!A6,IF($E$4=$AC$4,Legende!B6,IF($E$4=$AC$5,Legende!C6,IF($E$4=$AC$6,Legende!D6)))) -> Order number: | G11: =IF($E$4=$AC$3,Legende!A17,IF($E$4=$AC$4,Legende!B17,IF($E$4=$AC$5,Legende!C17,IF($E$4=$AC$6,Legende!D17)))) -> Cooling capacity: | L11: =IF(OR($E$5=$AD$5,$E$5=$AD$6,$E$5=$AD$7,$E$5=$AD$8),+ROUNDDOWN(AC16*L6/3,-1),IF(OR($E$5=$AD$9,$E$5=$AD$10,$E$5=$AD$11,$E$5=$AD$12),+ROUNDDOWN((AC16*L6/0.5875/3)*3.412141633128,-1))) -> 5680 | N11: =IF(OR($E$5=$AD$5,$E$5=$AD$6,$E$5=$AD$7,$E$5=$AD$8),"W",IF(OR($E$5=$AD$9,$E$5=$AD$10,$E$5=$AD$11,$E$5=$AD$12),"BTU/h","")) -> BTU/h | AD11: imperiale
C12: =IF($E$4=$AC$3,Legende!A18,IF($E$4=$AC$4,Legende!B18,IF($E$4=$AC$5,Legende!C18,IF($E$4=$AC$6,Legende!D18)))) -> <= Selected (with double click) | P12: =IF($E$4=$AC$3,Legende!A41,IF($E$4=$AC$4,Legende!B41,IF($E$4=$AC$5,Legende!C41,IF($E$4=$AC$6,Legende!D41)))) -> Evaluation of thermal comfort | V12: =IF($E$4=$AC$3,Legende!A46,IF($E$4=$AC$4,Legende!B46,IF($E$4=$AC$5,Legende!C46,IF($E$4=$AC$6,Legende!D46)))) -> Acoustic data of the standard configuration (LDBsmall, LDBmaxx: without throttle = SDA; LDBclean, LDBstyle, LDBclassic: throttle = DLU (100% open)) | AD12: impérial
O14: =IF($E$4=$AC$3,Legende!A35,IF($E$4=$AC$4,Legende!B35,IF($E$4=$AC$5,Legende!C35,IF($E$4=$AC$6,Legende!D35)))) -> Pressure loss | P14: =IF($E$4=$AC$3,Legende!A36,IF($E$4=$AC$4,Legende!B36,IF($E$4=$AC$5,Legende!C36,IF($E$4=$AC$6,Legende!D36)))) -> Jet spreading supply air | R14: =IF($E$4=$AC$3,Legende!A37,IF($E$4=$AC$4,Legende!B37,IF($E$4=$AC$5,Legende!C37,IF($E$4=$AC$6,Legende!D37)))) -> Max. air velocity | T14: =IF($E$4=$AC$3,Legende!A39,IF($E$4=$AC$4,Legende!B39,IF($E$4=$AC$5,Legende!C39,IF($E$4=$AC$6,Legende!D39)))) -> Draught risk | AC14: =IF(OR($E$5=$AD$5,$E$5=$AD$6,$E$5=$AD$7,$E$5=$AD$8),L7,((L7-32)/1.8)) -> 26
L15: =IF($E$4=$AC$3,Legende!A33,IF($E$4=$AC$4,Legende!B33,IF($E$4=$AC$5,Legende!C33,IF($E$4=$AC$6,Legende!D33)))) -> Quantity | U15: =IF($E$4=$AC$3,Legende!A40,IF($E$4=$AC$4,Legende!B40,IF($E$4=$AC$5,Legende!C40,IF($E$4=$AC$6,Legende!D40)))) -> Category DIN EN ISO 7730 | AC15: =IF(OR($E$5=$AD$5,$E$5=$AD$6,$E$5=$AD$7,$E$5=$AD$8),L8,((L8-32)/1.8)) -> 21
G16: =IF($E$4=$AC$3,Legende!A30,IF($E$4=$AC$4,Legende!B30,IF($E$4=$AC$5,Legende!C30,IF($E$4=$AC$6,Legende!D30)))) -> Specific air flow rate | I16: =IF($E$4=$AC$3,Legende!A31,IF($E$4=$AC$4,Legende!B31,IF($E$4=$AC$5,Legende!C31,IF($E$4=$AC$6,Legende!D31)))) -> Recommen-dation max. | K16: =IF($E$4=$AC$3,Legende!A32,IF($E$4=$AC$4,Legende!B32,IF($E$4=$AC$5,Legende!C32,IF($E$4=$AC$6,Legende!D32)))) -> Diffuser element length | M16: =IF($E$4=$AC$3,Legende!A34,IF($E$4=$AC$4,Legende!B34,IF($E$4=$AC$5,Legende!C34,IF($E$4=$AC$6,Legende!D34)))) -> Diffuser length total room | R16: cMAX | T16: DR | V16: =IF($E$4=$AC$3,Legende!A43,IF($E$4=$AC$4,Legende!B43,IF($E$4=$AC$5,Legende!C43,IF($E$4=$AC$6,Legende!D43)))) -> A-rated sound power level per element | W16: =IF($E$4=$AC$3,Legende!A44,IF($E$4=$AC$4,Legende!B44,IF($E$4=$AC$5,Legende!C44,IF($E$4=$AC$6,Legende!D44)))) -> Actual total air flow rate | Y16: =IF($E$4=$AC$3,Legende!A45,IF($E$4=$AC$4,Legende!B45,IF($E$4=$AC$5,Legende!C45,IF($E$4=$AC$6,Legende!D45)))) -> Sound pressure level in the room | AC16: =ROUNDDOWN(AC14-AC15,0) -> 5 | BR16: Srömungsakustik
D17: =IF($E$4=$AC$3,Legende!A19,IF($E$4=$AC$4,Legende!B19,IF($E$4=$AC$5,Legende!C19,IF($E$4=$AC$6,Legende!D19)))) -> LDB Type | R17: =IF($E$4=$AC$3,Legende!A38,IF($E$4=$AC$4,Legende!B38,IF($E$4=$AC$5,Legende!C38,IF($E$4=$AC$6,Legende!D38)))) -> Occupied zone | T17: =IF(OR($E$5=$AD$5,$E$5=$AD$6,$E$5=$AD$7,$E$5=$AD$8),"h(a)=1,70 m",IF(OR($E$5=$AD$9,$E$5=$AD$10,$E$5=$AD$11,$E$5=$AD$12),"h(a)=5,577 ft","")) -> h(a)=5,577 ft | AE17: Liste a in m bei c(max) | AP17: Liste cMax | BA17: Liste Standardstutzenanzahl | BI17: Liste Standardstutzendurchmesser | BQ17: Volumenstrom | BR17: LWA/m Schlitz | BS17: LWA Kasten El. | BT17: LWASchlitz El. | BU17: LWA | BW17: Standardeinstellung
D18: =IF($E$4=$AC$3,Legende!A20,IF($E$4=$AC$4,Legende!B20,IF($E$4=$AC$5,Legende!C20,IF($E$4=$AC$6,Legende!D20)))) -> Installation height H=2,80 m, LDB 50maxx H = 5,00 m | G18: VPRO M IST | I18: VPRO M MAX | K18: LS | L18: =IF($E$4=$AC$3,Legende!A42,IF($E$4=$AC$4,Legende!B42,IF($E$4=$AC$5,Legende!C42,IF($E$4=$AC$6,Legende!D42)))) -> pc. | M18: LGES | O18: Δp | P18: a(cMAX) | R18: =IF(OR($E$5=$AD$5,$E$5=$AD$6,$E$5=$AD$7,$E$5=$AD$8),"h=1,70 m",IF(OR($E$5=$AD$9,$E$5=$AD$10,$E$5=$AD$11,$E$5=$AD$12),"h=5,577 ft","")) -> h=5,577 ft | T18: => TU=40 % | AC18: Länge | AD18: Bezugswert | AE18: 3 | AF18: 4 | AG18: 5 | AH18: 6 | AI18: 7 | AJ18: 8 | AK18: 9 | AL18: 10 | AM18: 11 | AN18: 12 | AO18: Auswahl | AP18: 3 | AQ18: 4 | AR18: 5 | AS18: 6 | AT18: 7 | AU18: 8 | AV18: 9 | AW18: 10 | AX18: 11 | AY18: 12 | AZ18: Auswahl | BA18: Auswahl | BB18: 500 | BC18: 750 | BD18: 1000 | BE18: 1250 | BF18: 1500 | BG18: 1750 | BH18: 2000 | BI18: Auswahl | BJ18: 500 | BK18: 750 | BL18: 1000 | BM18: 1250 | BN18: 1500 | BO18: 1750 | BP18: 2000 | BR18: TU Diagramm | BS18: Mess. Hoffmann | BT18: Mess. Hoffmann | BU18: Element | BV18: LDB Typ | BW18: Drossel | BX18: Einstellung | BY18: spez. Volumenstrom
E19: =IF($E$4=$AC$3,Legende!A21,IF($E$4=$AC$4,Legende!B21,IF($E$4=$AC$5,Legende!C21,IF($E$4=$AC$6,Legende!D21)))) -> LDB 12 small | F19: =IF($E$4=$AC$3,Legende!A26,IF($E$4=$AC$4,Legende!B26,IF($E$4=$AC$5,Legende!C26,IF($E$4=$AC$6,Legende!D26)))) -> 1-slot | G19: 28.2 | H19: =IF(OR($E$5=$AD$5,$E$5=$AD$6,$E$5=$AD$7,$E$5=$AD$8),"m³/(h*m)",IF(OR($E$5=$AD$9,$E$5=$AD$10,$E$5=$AD$11,$E$5=$AD$12),"cfm/ft","")) -> cfm/ft | I19: =IF(OR($E$5=$AD$5,$E$5=$AD$6,$E$5=$AD$7,$E$5=$AD$8),70,IF(OR($E$5=$AD$9,$E$5=$AD$10,$E$5=$AD$11,$E$5=$AD$12),70*0.5875,"")) -> 41.125 | J19: =IF(OR($E$5=$AD$5,$E$5=$AD$6,$E$5=$AD$7,$E$5=$AD$8),"m³/(h*m)",IF(OR($E$5=$AD$9,$E$5=$AD$10,$E$5=$AD$11,$E$5=$AD$12),"cfm","")) -> cfm | K19: 39,00 in | L19: =IF((ROUNDUP($L$6/(G19*AC19/1000),0))=0,1,ROUNDUP($L$6/(G19*AC19/1000),0)) -> 21 | M19: =IF(OR($E$5=$AD$5,$E$5=$AD$6,$E$5=$AD$7,$E$5=$AD$8),AC19*L19/1000,IF(OR($E$5=$AD$9,$E$5=$AD$10,$E$5=$AD$11,$E$5=$AD$12),AC19*L19/1000*3.28084)) -> 68.89764 | N19: =IF(OR($E$5=$AD$5,$E$5=$AD$6,$E$5=$AD$7,$E$5=$AD$8),"m",IF(OR($E$5=$AD$9,$E$5=$AD$10,$E$5=$AD$11,$E$5=$AD$12),"ft","")) -> ft | O19: =ROUND(1.5596*EXP(0.0724*AD19),0) -> 12 | P19: =IF(OR($E$5=$AD$5,$E$5=$AD$6,$E$5=$AD$7,$E$5=$AD$8),AO19,IF(OR($E$5=$AD$9,$E$5=$AD$10,$E$5=$AD$11,$E$5=$AD$12),AO19*3.28084)) -> 4.265092 | Q19: =IF(OR($E$5=$AD$5,$E$5=$AD$6,$E$5=$AD$7,$E$5=$AD$8),"m",IF(OR($E$5=$AD$9,$E$5=$AD$10,$E$5=$AD$11,$E$5=$AD$12),"ft","")) -> ft | R19: =IF(OR($E$5=$AD$5,$E$5=$AD$6,$E$5=$AD$7,$E$5=$AD$8),AZ19,IF(OR($E$5=$AD$9,$E$5=$AD$10,$E$5=$AD$11,$E$5=$AD$12),AZ19*3.28084)) -> 0.3937008 | S19: =IF(OR($E$5=$AD$5,$E$5=$AD$6,$E$5=$AD$7,$E$5=$AD$8),"m/s",IF(OR($E$5=$AD$9,$E$5=$AD$10,$E$5=$AD$11,$E$5=$AD$12),"ft/s","")) -> ft/s | T19: =IF(OR($E$5=$AD$5,$E$5=$AD$6,$E$5=$AD$7,$E$5=$AD$8),ROUND(((34-$L$7)*((IF(AZ19<0.05,0.05,AZ19)-0.05)^0.62)*((0.37*IF(AZ19<0.05,0.05,AZ19)*40)+3.14)),0),IF(OR($E$5=$AD$9,$E$5=$AD$10,$E$5=$AD$11,$E$5=$AD$12),ROUND(((34-(($L$7-32)/1.8))*((IF(AZ19<0.05,0.05,AZ19)-0.05)^0.62)*((0.37*IF(AZ19<0.05,0.05,AZ19)*40)+3.14)),0))) -> 8 | U19: =IF(T19<10,"A",IF(T19<20,"B",IF(T19<30,"C","keine"))) -> A | V19: =ROUNDDOWN(IF(BU19<15,15,BU19),1) -> 27.7 | W19: =+ROUND(G19*M19,0) -> 1943 | X19: =IF(OR($E$5=$AD$5,$E$5=$AD$6,$E$5=$AD$7,$E$5=$AD$8),"m³/h",IF(OR($E$5=$AD$9,$E$5=$AD$10,$E$5=$AD$11,$E$5=$AD$12),"cfm","")) -> cfm | Y19: =ROUNDDOWN(10*LOG(L19*10^(0.1*V19))-$L$9,1) -> 34.5 | AC19: =IF(OR($E$5=$AD$5,$E$5=$AD$6,$E$5=$AD$7,$E$5=$AD$8),LEFT(K19,4)/1,ROUNDUP(LEFT(K19,5)/0.039,1)) -> 1000 | AD19: =IF(OR($E$5=$AD$5,$E$5=$AD$6,$E$5=$AD$7,$E$5=$AD$8),+(LN(G19)-LN(16.849))/0.0377,IF(OR($E$5=$AD$9,$E$5=$AD$10,$E$5=$AD$11,$E$5=$AD$12),+(LN(G19/0.5875)-LN(16.849))/0.0377)) -> 27.76948814 | AE19: =0.5204*EXP(0.0375*$AD$19) -> 1.474322074 | AF19: =+AE19+(AH19-AE19)/3 -> 1.369889129 | AG19: =+(AF19+AH19)/2 -> 1.265456185 | AH19: =0.4529*EXP(0.0339*$AD$19) -> 1.16102324 | AI19: =+(AH19+AJ19)/2 -> 1.063089182 | AJ19: =+(AH19+AL19)/2 -> 0.9651551246 | AK19: =+(AJ19+AL19)/2 -> 0.867221067 | AL19: =0.2023*EXP(0.0481*$AD$19) -> 0.7692870093 | AM19: =+(AL19+AN19)/2 -> 0.6737659346 | AN19: =0.1603*EXP(0.0462*$AD$19) -> 0.5782448598 | AO19: =ROUND(HLOOKUP($AC$16,$AE$18:$AN$38,2,FALSE),1) -> 1.3 | AP19: =0.0086*($AD$19)^2-0.3286*$AD$19+14.029 -> 11.53578865 | AQ19: =AR19-(AR19-AP19)/2 -> 11.9180489 | AR19: =AS19-(AS19-AP19)/3 -> 12.30030914 | AS19: =0.0143*($AD$19)^2-0.6143*$AD$19+18.714 -> 12.68256938 | AT19: =AU19-(AU19-AS19)/2 -> 13.26192703 | AU19: =AV19-(AV19-AS19)/3 -> 13.84128469 | AV19: =AW19-(AW19-AS19)/4 -> 14.42064234 | AW19: =15 -> 15 | AX19: =AY19-(AY19-AW19)/2 -> 16 | AY19: =17 -> 17 | AZ19: =ROUND(HLOOKUP($AC$16,$AP$18:$AY$38,2,FALSE)/100,2) -> 0.12 | BA19: =IF(AC19<=$BB$18,BB19,IF(AND(AC19>$BB$18,AC19<=$BC$18),BC19,IF(AND(AC19>$BC$18,AC19<=$BD$18),BD19,IF(AND(AC19>$BD$18,AC19<=$BE$18),BE19,IF(AND(AC19>$BE$18,AC19<=$BF$18),BF19,IF(AC21>$BF$18,BF19)))))) -> 1 | BB19: 1 | BC19: 1 | BD19: 1 | BE19: 2 | BF19: 2 | BI19: =IF(AC19<=$BJ$18,BJ19,IF(AND(AC19>$BJ$18,AC19<=$BK$18),BK19,IF(AND(AC19>$BK$18,AC19<=$BL$18),BL19,IF(AND(AC19>$BL$18,AC19<=$BM$18),BM19,IF(AND(AC19>$BM$18,AC19<=$BN$18),BN19,IF(AC19>$BN$18,BN19)))))) -> 100 | BJ19: 100 | BK19: 100 | BL19: 100 | BM19: 100 | BN19: 100 | BQ19: =IF(OR($E$5=$AD$5,$E$5=$AD$6,$E$5=$AD$7,$E$5=$AD$8),G19,IF(OR($E$5=$AD$9,$E$5=$AD$10,$E$5=$AD$11,$E$5=$AD$12),G19/0.5875)) -> 48 | BR19: =+IF(AD19<0,0,AD19) -> 27.76948814 | BU19: =10*LOG((AC19/1000)*10^(0.1*BR19)) -> 27.76948814 | BV19: LDB small/1 | BW19: SDA | BX19: - | BY19: =IF(OR($E$5=$AD$5,$E$5=$AD$6,$E$5=$AD$7,$E$5=$AD$8),G19*(AC19/1000),((G19*0.5875)*(AC19/1000))*0.5875) -> 9.73340625
E21: =IF($E$4=$AC$3,Legende!A22,IF($E$4=$AC$4,Legende!B22,IF($E$4=$AC$5,Legende!C22,IF($E$4=$AC$6,Legende!D22)))) -> LDB 12 clean | F21: =IF($E$4=$AC$3,Legende!A26,IF($E$4=$AC$4,Legende!B26,IF($E$4=$AC$5,Legende!C26,IF($E$4=$AC$6,Legende!D26)))) -> 1-slot | G21: 41.125 | H21: =IF(OR($E$5=$AD$5,$E$5=$AD$6,$E$5=$AD$7,$E$5=$AD$8),"m³/(h*m)",IF(OR($E$5=$AD$9,$E$5=$AD$10,$E$5=$AD$11,$E$5=$AD$12),"cfm/ft","")) -> cfm/ft | I21: =IF(OR($E$5=$AD$5,$E$5=$AD$6,$E$5=$AD$7,$E$5=$AD$8),70,IF(OR($E$5=$AD$9,$E$5=$AD$10,$E$5=$AD$11,$E$5=$AD$12),70*0.5875,"")) -> 41.125 | J21: =IF(OR($E$5=$AD$5,$E$5=$AD$6,$E$5=$AD$7,$E$5=$AD$8),"m³/(h*m)",IF(OR($E$5=$AD$9,$E$5=$AD$10,$E$5=$AD$11,$E$5=$AD$12),"cfm","")) -> cfm | K21: 39,00 in | L21: =IF((ROUNDUP($L$6/(G21*AC21/1000),0))=0,1,ROUNDUP($L$6/(G21*AC21/1000),0)) -> 15 | M21: =IF(OR($E$5=$AD$5,$E$5=$AD$6,$E$5=$AD$7,$E$5=$AD$8),AC21*L21/1000,IF(OR($E$5=$AD$9,$E$5=$AD$10,$E$5=$AD$11,$E$5=$AD$12),AC21*L21/1000*3.28084)) -> 49.2126 | N21: =IF(OR($E$5=$AD$5,$E$5=$AD$6,$E$5=$AD$7,$E$5=$AD$8),"m",IF(OR($E$5=$AD$9,$E$5=$AD$10,$E$5=$AD$11,$E$5=$AD$12),"ft","")) -> ft | O21: =ROUND(1.8488*EXP(0.0699*AD21),0) -> 8 | P21: =IF(OR($E$5=$AD$5,$E$5=$AD$6,$E$5=$AD$7,$E$5=$AD$8),AO21,IF(OR($E$5=$AD$9,$E$5=$AD$10,$E$5=$AD$11,$E$5=$AD$12),AO21*3.28084)) -> 5.905512 | Q21: =IF(OR($E$5=$AD$5,$E$5=$AD$6,$E$5=$AD$7,$E$5=$AD$8),"m",IF(OR($E$5=$AD$9,$E$5=$AD$10,$E$5=$AD$11,$E$5=$AD$12),"ft","")) -> ft | R21: =IF(OR($E$5=$AD$5,$E$5=$AD$6,$E$5=$AD$7,$E$5=$AD$8),AZ21,IF(OR($E$5=$AD$9,$E$5=$AD$10,$E$5=$AD$11,$E$5=$AD$12),AZ21*3.28084)) -> 0.492126 | S21: =IF(OR($E$5=$AD$5,$E$5=$AD$6,$E$5=$AD$7,$E$5=$AD$8),"m/s",IF(OR($E$5=$AD$9,$E$5=$AD$10,$E$5=$AD$11,$E$5=$AD$12),"ft/s","")) -> ft/s | T21: =IF(OR($E$5=$AD$5,$E$5=$AD$6,$E$5=$AD$7,$E$5=$AD$8),ROUND(((34-$L$7)*((IF(AZ21<0.05,0.05,AZ21)-0.05)^0.62)*((0.37*IF(AZ21<0.05,0.05,AZ21)*40)+3.14)),0),IF(OR($E$5=$AD$9,$E$5=$AD$10,$E$5=$AD$11,$E$5=$AD$12),ROUND(((34-(($L$7-32)/1.8))*((IF(AZ21<0.05,0.05,AZ21)-0.05)^0.62)*((0.37*IF(AZ21<0.05,0.05,AZ21)*40)+3.14)),0))) -> 10 | U21: =IF(T21<10,"A",IF(T21<20,"B",IF(T21<30,"C","keine"))) -> B | V21: =ROUNDDOWN(IF(BU21<15,15,BU21),1) -> 27.1 | W21: =+ROUND(G21*M21,0) -> 2024 | X21: =IF(OR($E$5=$AD$5,$E$5=$AD$6,$E$5=$AD$7,$E$5=$AD$8),"m³/h",IF(OR($E$5=$AD$9,$E$5=$AD$10,$E$5=$AD$11,$E$5=$AD$12),"cfm","")) -> cfm | Y21: =ROUNDDOWN(10*LOG(L21*10^(0.1*V21))-$L$9,1) -> 32.4 | AC21: =IF(OR($E$5=$AD$5,$E$5=$AD$6,$E$5=$AD$7,$E$5=$AD$8),LEFT(K21,4)/1,ROUNDUP(LEFT(K21,5)/0.039,1)) -> 1000 | AD21: =IF(OR($E$5=$AD$5,$E$5=$AD$6,$E$5=$AD$7,$E$5=$AD$8),+(LN(G21)-LN(32.525))/0.0357,IF(OR($E$5=$AD$9,$E$5=$AD$10,$E$5=$AD$11,$E$5=$AD$12),+(LN(G21/0.5875)-LN(32.525))/0.0357)) -> 21.47020218 | AE21: =1.0132*EXP(0.0339*$AD$21) -> 2.097934927 | AF21: =+AE21+(AH21-AE21)/3 -> 1.958813028 | AG21: =+(AF21+AH21)/2 -> 1.819691128 | AH21: =0.7961*EXP(0.0348*$AD$21) -> 1.680569229 | AI21: =+(AH21+AJ21)/2 -> 1.561137693 | AJ21: =+(AH21+AL21)/2 -> 1.441706157 | AK21: =+(AJ21+AL21)/2 -> 1.322274621 | AL21: =0.514*EXP(0.0396*$AD$21) -> 1.202843086 | AM21: =+(AL21+AN21)/2 -> 1.061726606 | AN21: =0.3564*EXP(0.0442*$AD$21) -> 0.920610127 | AO21: =ROUND(HLOOKUP($AC$16,$AE$18:$AN$38,4,FALSE),1) -> 1.8 | AP21: =10.213*EXP(0.0127*$AD$21) -> 13.41445673 | AQ21: =AR21-(AR21-AP21)/2 -> 14.03004756 | AR21: =AS21-(AS21-AP21)/3 -> 14.64563838 | AS21: =11.644*EXP(0.0126*$AD$21) -> 15.2612292 | AT21: =AU21-(AU21-AS21)/2 -> 15.44553051 | AU21: =AV21-(AV21-AS21)/3 -> 15.62983181 | AV21: =AW21-(AW21-AS21)/4 -> 15.81413311 | AW21: =12.259*EXP(0.0124*$AD$21) -> 15.99843441 | AX21: =AY21-(AY21-AW21)/2 -> 16.82621776 | AY21: =0.0071*($AD$21)^2-0.2271*$AD$21+19.257 -> 17.65400111 | AZ21: =ROUND(HLOOKUP($AC$16,$AP$18:$AY$38,4,FALSE)/100,2) -> 0.15 | BA21: =IF(AC21<=$BB$18,BB21,IF(AND(AC21>$BB$18,AC21<=$BC$18),BC21,IF(AND(AC21>$BC$18,AC21<=$BD$18),BD21,IF(AND(AC21>$BD$18,AC21<=$BE$18),BE21,IF(AND(AC21>$BE$18,AC21<=$BF$18),BF21,IF(AND(AC21>$BF$18,AC21<=$BG$18),BG21,IF(AND(AC21>$BG$18,AC21<=$BH$18),BH21,IF(AC21>$BH$18,BH21)))))))) -> 1 | BB21: 1 | BC21: 1 | BD21: 1 | BE21: 1 | BF21: 1 | BG21: 2 | BH21: 2 | BI21: =IF(AC21<=$BJ$18,BJ21,IF(AND(AC21>$BJ$18,AC21<=$BK$18),BK21,IF(AND(AC21>$BK$18,AC21<=$BL$18),BL21,IF(AND(AC21>$BL$18,AC21<=$BM$18),BM21,IF(AND(AC21>$BM$18,AC21<=$BN$18),BN21,IF(AND(AC21>$BN$18,AC21<=$BO$18),BO21,IF(AND(AC21>$BO$18,AC21<=$BP$18),BP21,IF(AC21>$BP$18,BP21)))))))) -> 100 | BJ21: 80 | BK21: 80 | BL21: 100 | BM21: 125 | BN21: 125 | BO21: 80 | BP21: 100 | BQ21: =IF(OR($E$5=$AD$5,$E$5=$AD$6,$E$5=$AD$7,$E$5=$AD$8),G21,IF(OR($E$5=$AD$9,$E$5=$AD$10,$E$5=$AD$11,$E$5=$AD$12),G21/0.5875)) -> 70 | BR21: =+IF(AD21<0,0,AD21) -> 21.47020218 | BS21: =(-0.0022355889*(BI21)^2 + 0.4201809847*BI21 + 5.399628589)*LN((BQ21*(AC21/1000))/BA21)+(-0.0000029509*(BI21)^3 + 0.0099403371*(BI21)^2 - 1.9777335627*BI21+ 21.5271635053)+10*LOG(BA21) -> 26.68137799 | BT21: =73.7573595264*LOG(BQ21)-119.2146207935+10*LOG(AC21/1000) -> 16.87493871 | BU21: =10*LOG(10^(0.1*BS21)+10^(0.1*BT21)) -> 27.11326211 | BV21: LDB clean/1 | BW21: DLU | BX21: 0° | BY21: =IF(OR($E$5=$AD$5,$E$5=$AD$6,$E$5=$AD$7,$E$5=$AD$8),G21*(AC21/1000),((G21*0.5875)*(AC21/1000))*0.5875) -> 14.19455078
C22: X | E22: =IF($E$4=$AC$3,Legende!A22,IF($E$4=$AC$4,Legende!B22,IF($E$4=$AC$5,Legende!C22,IF($E$4=$AC$6,Legende!D22)))) -> LDB 12 clean | F22: =IF($E$4=$AC$3,Legende!A27,IF($E$4=$AC$4,Legende!B27,IF($E$4=$AC$5,Legende!C27,IF($E$4=$AC$6,Legende!D27)))) -> 2-slot | G22: 76.375 | H22: =IF(OR($E$5=$AD$5,$E$5=$AD$6,$E$5=$AD$7,$E$5=$AD$8),"m³/(h*m)",IF(OR($E$5=$AD$9,$E$5=$AD$10,$E$5=$AD$11,$E$5=$AD$12),"cfm/ft","")) -> cfm/ft | I22: =IF(OR($E$5=$AD$5,$E$5=$AD$6,$E$5=$AD$7,$E$5=$AD$8),130,IF(OR($E$5=$AD$9,$E$5=$AD$10,$E$5=$AD$11,$E$5=$AD$12),130*0.5875,"")) -> 76.375 | J22: =IF(OR($E$5=$AD$5,$E$5=$AD$6,$E$5=$AD$7,$E$5=$AD$8),"m³/(h*m)",IF(OR($E$5=$AD$9,$E$5=$AD$10,$E$5=$AD$11,$E$5=$AD$12),"cfm","")) -> cfm | K22: 39,00 in | L22: =IF((ROUNDUP($L$6/(G22*AC22/1000),0))=0,1,ROUNDUP($L$6/(G22*AC22/1000),0)) -> 8 | M22: =IF(OR($E$5=$AD$5,$E$5=$AD$6,$E$5=$AD$7,$E$5=$AD$8),AC22*L22/1000,IF(OR($E$5=$AD$9,$E$5=$AD$10,$E$5=$AD$11,$E$5=$AD$12),AC22*L22/1000*3.28084)) -> 26.24672 | N22: =IF(OR($E$5=$AD$5,$E$5=$AD$6,$E$5=$AD$7,$E$5=$AD$8),"m",IF(OR($E$5=$AD$9,$E$5=$AD$10,$E$5=$AD$11,$E$5=$AD$12),"ft","")) -> ft | O22: =ROUND(1.6218*EXP(0.0609*AD22),0) -> 8 | P22: =IF(OR($E$5=$AD$5,$E$5=$AD$6,$E$5=$AD$7,$E$5=$AD$8),AO22,IF(OR($E$5=$AD$9,$E$5=$AD$10,$E$5=$AD$11,$E$5=$AD$12),AO22*3.28084)) -> 7.545932 | Q22: =IF(OR($E$5=$AD$5,$E$5=$AD$6,$E$5=$AD$7,$E$5=$AD$8),"m",IF(OR($E$5=$AD$9,$E$5=$AD$10,$E$5=$AD$11,$E$5=$AD$12),"ft","")) -> ft | R22: =IF(OR($E$5=$AD$5,$E$5=$AD$6,$E$5=$AD$7,$E$5=$AD$8),AZ22,IF(OR($E$5=$AD$9,$E$5=$AD$10,$E$5=$AD$11,$E$5=$AD$12),AZ22*3.28084)) -> 0.5905512 | S22: =IF(OR($E$5=$AD$5,$E$5=$AD$6,$E$5=$AD$7,$E$5=$AD$8),"m/s",IF(OR($E$5=$AD$9,$E$5=$AD$10,$E$5=$AD$11,$E$5=$AD$12),"ft/s","")) -> ft/s | T22: =IF(OR($E$5=$AD$5,$E$5=$AD$6,$E$5=$AD$7,$E$5=$AD$8),ROUND(((34-$L$7)*((IF(AZ22<0.05,0.05,AZ22)-0.05)^0.62)*((0.37*IF(AZ22<0.05,0.05,AZ22)*40)+3.14)),0),IF(OR($E$5=$AD$9,$E$5=$AD$10,$E$5=$AD$11,$E$5=$AD$12),ROUND(((34-(($L$7-32)/1.8))*((IF(AZ22<0.05,0.05,AZ22)-0.05)^0.62)*((0.37*IF(AZ22<0.05,0.05,AZ22)*40)+3.14)),0))) -> 13 | U22: =IF(T22<10,"A",IF(T22<20,"B",IF(T22<30,"C","keine"))) -> B | V22: =ROUNDDOWN(IF(BU22<15,15,BU22),1) -> 27.3 | W22: 2005 | X22: cfm | Y22: =ROUNDDOWN(10*LOG(L22*10^(0.1*V22))-$L$9,1) -> 29.9 | AC22: 1000 | AD22: =IF(OR($E$5=$AD$5,$E$5=$AD$6,$E$5=$AD$7,$E$5=$AD$8),+(LN(G22)-LN(54.787))/0.0326,IF(OR($E$5=$AD$9,$E$5=$AD$10,$E$5=$AD$11,$E$5=$AD$12),+(LN(G22/0.5875)-LN(54.787))/0.0326)) -> 26.50556782 | AE22: =1.1648*EXP(0.0309*$AD$22) -> 2.6420931 | AF22: =+AE22+(AH22-AE22)/3 -> 2.486986703 | AG22: =+(AF22+AH22)/2 -> 2.331880306 | AH22: =0.9247*EXP(0.0323*$AD$22) -> 2.176773908 | AI22: =+(AH22+AJ22)/2 -> 2.051064146 | AJ22: =+(AH22+AL22)/2 -> 1.925354383 | AK22: =+(AJ22+AL22)/2 -> 1.799644621 | AL22: =0.655*EXP(0.0354*$AD$22) -> 1.673934858 | AM22: =+(AL22+AN22)/2 -> 1.515849129 | AN22: =0.4728*EXP(0.0398*$AD$22) -> 1.357763399 | AO22: =ROUND(HLOOKUP($AC$16,$AE$18:$AN$38,5,FALSE),1) -> 2.3 | AP22: =11.644*EXP(0.0126*$AD$22) -> 16.26086304 | AQ22: =AR22-(AR22-AP22)/2 -> 17.10133446 | AR22: =AS22-(AS22-AP22)/3 -> 17.94180587 | AS22: =13.343*EXP(0.0129*$AD$22) -> 18.78227729 | AT22: =AU22-(AU22-AS22)/2 -> 19.146257 | AU22: =AV22-(AV22-AS22)/3 -> 19.51023671 | AV22: =AW22-(AW22-AS22)/4 -> 19.87421641 | AW22: =15.526*EXP(0.01*$AD$22) -> 20.23819612 | AX22: =AY22-(AY22-AW22)/2 -> 20.35477261 | AY22: =0.0129*$AD$22^2-0.4729*$AD$22+23.943 -> 20.4713491 | AZ22: =ROUND(HLOOKUP($AC$16,$AP$18:$AY$38,5,FALSE)/100,2) -> 0.18 | BA22: =IF(AC22<=$BB$18,BB22,IF(AND(AC22>$BB$18,AC22<=$BC$18),BC22,IF(AND(AC22>$BC$18,AC22<=$BD$18),BD22,IF(AND(AC22>$BD$18,AC22<=$BE$18),BE22,IF(AND(AC22>$BE$18,AC22<=$BF$18),BF22,IF(AND(AC22>$BF$18,AC22<=$BG$18),BG22,IF(AND(AC22>$BG$18,AC22<=$BH$18),BH22,IF(AC22>$BH$18,BH22)))))))) -> 1 | BB22: 1 | BC22: 1 | BD22: 1 | BE22: 1 | BF22: 2 | BG22: 2 | BH22: 2 | BI22: =IF(AC22<=$BJ$18,BJ22,IF(AND(AC22>$BJ$18,AC22<=$BK$18),BK22,IF(AND(AC22>$BK$18,AC22<=$BL$18),BL22,IF(AND(AC22>$BL$18,AC22<=$BM$18),BM22,IF(AND(AC22>$BM$18,AC22<=$BN$18),BN22,IF(AND(AC22>$BN$18,AC22<=$BO$18),BO22,IF(AND(AC22>$BO$18,AC22<=$BP$18),BP22,IF(AC22>$BP$18,BP22)))))))) -> 125 | BJ22: 80 | BK22: 100 | BL22: 125 | BM22: 140 | BN22: 100 | BO22: 100 | BP22: 125 | BQ22: =IF(OR($E$5=$AD$5,$E$5=$AD$6,$E$5=$AD$7,$E$5=$AD$8),G22,IF(OR($E$5=$AD$9,$E$5=$AD$10,$E$5=$AD$11,$E$5=$AD$12),G22/0.5875)) -> 130 | BR22: =+IF(AD22<0,0,AD22) -> 26.50556782 | BS22: =(0.000000036775*BI22^4 - 0.000097789296*BI22^3 + 0.031851098925*BI22^2 - 3.518164042311*BI22 + 153.06267686179)*LN((BQ22*(AC22/1000))/BA22)+(-0.000001589267*BI22^4 + 0.001198286334*BI22^3 - 0.287868077763*BI22^2 + 27.229051331336*BI22- 974.551194289673) -> 24.45082515 | BT22: =53.6850931947*LOG(BQ22) -89.3138537125+10*LOG(AC22/1000) -> 24.17339216 | BU22: =10*LOG(10^(0.1*BS22)+10^(0.1*BT22)) -> 27.32462359 | BV22: LDB clean/2 | BW22: DLU | BX22: 0° | BY22: =IF(OR($E$5=$AD$5,$E$5=$AD$6,$E$5=$AD$7,$E$5=$AD$8),G22*(AC22/1000),((G22*0.5875)*(AC22/1000))*0.5875) -> 26.36130859
E23: =IF($E$4=$AC$3,Legende!A22,IF($E$4=$AC$4,Legende!B22,IF($E$4=$AC$5,Legende!C22,IF($E$4=$AC$6,Legende!D22)))) -> LDB 12 clean | F23: =IF($E$4=$AC$3,Legende!A28,IF($E$4=$AC$4,Legende!B28,IF($E$4=$AC$5,Legende!C28,IF($E$4=$AC$6,Legende!D28)))) -> 3-slot | G23: 111.625 | H23: =IF(OR($E$5=$AD$5,$E$5=$AD$6,$E$5=$AD$7,$E$5=$AD$8),"m³/(h*m)",IF(OR($E$5=$AD$9,$E$5=$AD$10,$E$5=$AD$11,$E$5=$AD$12),"cfm/ft","")) -> cfm/ft | I23: =IF(OR($E$5=$AD$5,$E$5=$AD$6,$E$5=$AD$7,$E$5=$AD$8),190,IF(OR($E$5=$AD$9,$E$5=$AD$10,$E$5=$AD$11,$E$5=$AD$12),190*0.5875,"")) -> 111.625 | J23: =IF(OR($E$5=$AD$5,$E$5=$AD$6,$E$5=$AD$7,$E$5=$AD$8),"m³/(h*m)",IF(OR($E$5=$AD$9,$E$5=$AD$10,$E$5=$AD$11,$E$5=$AD$12),"cfm","")) -> cfm | K23: 39,00 in | L23: =IF((ROUNDUP($L$6/(G23*AC23/1000),0))=0,1,ROUNDUP($L$6/(G23*AC23/1000),0)) -> 6 | M23: =IF(OR($E$5=$AD$5,$E$5=$AD$6,$E$5=$AD$7,$E$5=$AD$8),AC23*L23/1000,IF(OR($E$5=$AD$9,$E$5=$AD$10,$E$5=$AD$11,$E$5=$AD$12),AC23*L23/1000*3.28084)) -> 19.68504 | N23: =IF(OR($E$5=$AD$5,$E$5=$AD$6,$E$5=$AD$7,$E$5=$AD$8),"m",IF(OR($E$5=$AD$9,$E$5=$AD$10,$E$5=$AD$11,$E$5=$AD$12),"ft","")) -> ft | O23: =ROUND(1.6778*EXP(0.0637*AD23),0) -> 8 | P23: =IF(OR($E$5=$AD$5,$E$5=$AD$6,$E$5=$AD$7,$E$5=$AD$8),AO23,IF(OR($E$5=$AD$9,$E$5=$AD$10,$E$5=$AD$11,$E$5=$AD$12),AO23*3.28084)) -> 5.249344 | Q23: =IF(OR($E$5=$AD$5,$E$5=$AD$6,$E$5=$AD$7,$E$5=$AD$8),"m",IF(OR($E$5=$AD$9,$E$5=$AD$10,$E$5=$AD$11,$E$5=$AD$12),"ft","")) -> ft | R23: =IF(OR($E$5=$AD$5,$E$5=$AD$6,$E$5=$AD$7,$E$5=$AD$8),AZ23,IF(OR($E$5=$AD$9,$E$5=$AD$10,$E$5=$AD$11,$E$5=$AD$12),AZ23*3.28084)) -> 0.5577428 | S23: =IF(OR($E$5=$AD$5,$E$5=$AD$6,$E$5=$AD$7,$E$5=$AD$8),"m/s",IF(OR($E$5=$AD$9,$E$5=$AD$10,$E$5=$AD$11,$E$5=$AD$12),"ft/s","")) -> ft/s | T23: =IF(OR($E$5=$AD$5,$E$5=$AD$6,$E$5=$AD$7,$E$5=$AD$8),ROUND(((34-$L$7)*((IF(AZ23<0.05,0.05,AZ23)-0.05)^0.62)*((0.37*IF(AZ23<0.05,0.05,AZ23)*40)+3.14)),0),IF(OR($E$5=$AD$9,$E$5=$AD$10,$E$5=$AD$11,$E$5=$AD$12),ROUND(((34-(($L$7-32)/1.8))*((IF(AZ23<0.05,0.05,AZ23)-0.05)^0.62)*((0.37*IF(AZ23<0.05,0.05,AZ23)*40)+3.14)),0))) -> 12 | U23: =IF(T23<10,"A",IF(T23<20,"B",IF(T23<30,"C","keine"))) -> B | V23: =ROUNDDOWN(IF(BU23<15,15,BU23),1) -> 31.2 | W23: 2197 | X23: cfm | Y23: =ROUNDDOWN(10*LOG(L23*10^(0.1*V23))-$L$9,1) -> 32.5 | AC23: 1000 | AD23: =IF(OR($E$5=$AD$5,$E$5=$AD$6,$E$5=$AD$7,$E$5=$AD$8),+(LN(G23)-LN(86.228))/0.0323,IF(OR($E$5=$AD$9,$E$5=$AD$10,$E$5=$AD$11,$E$5=$AD$12),+(LN(G23/0.5875)-LN(86.228))/0.0323)) -> 24.45910592 | AE23: =0.8069*EXP(0.034*$AD$23) -> 1.853459823 | AF23: =+AE23+(AH23-AE23)/3 -> 1.744639279 | AG23: =+(AF23+AH23)/2 -> 1.635818735 | AH23: =0.693*EXP(0.0323*$AD$23) -> 1.526998191 | AI23: =+(AH23+AJ23)/2 -> 1.461787671 | AJ23: =+(AH23+AL23)/2 -> 1.396577152 | AK23: =+(AJ23+AL23)/2 -> 1.331366633 | AL23: =0.4842*EXP(0.0393*$AD$23) -> 1.266156113 | AM23: =+(AL23+AN23)/2 -> 1.150401128 | AN23: =0.3947*EXP(0.0394*$AD$23) -> 1.034646143 | AO23: =ROUND(HLOOKUP($AC$16,$AE$18:$AN$38,6,FALSE),1) -> 1.6 | AP23: =15.159*EXP(0.0091*$AD$23) -> 18.93803396 | AQ23: =AR23-(AR23-AP23)/2 -> 18.20874124 | AR23: =AS23-(AS23-AP23)/3 -> 17.47944851 | AS23: =0.01*($AD$23)^2-0.31*$AD$23+18.35 -> 16.75015579 | AT23: =AU23-(AU23-AS23)/2 -> 17.06642156 | AU23: =AV23-(AV23-AS23)/3 -> 17.38268733 | AV23: =AW23-(AW23-AS23)/4 -> 17.6989531 | AW23: =0.02*$AD$23^2-0.74*$AD$23+24.15 -> 18.01521887 | AX23: =AY23-(AY23-AW23)/2 -> 18.81185463 | AY23: =0.02*($AD$23)^2-0.82*$AD$23+27.7 -> 19.60849039 | AZ23: =ROUND(HLOOKUP($AC$16,$AP$18:$AY$38,6,FALSE)/100,2) -> 0.17 | BA23: =IF(AC23<=$BB$18,BB23,IF(AND(AC23>$BB$18,AC23<=$BC$18),BC23,IF(AND(AC23>$BC$18,AC23<=$BD$18),BD23,IF(AND(AC23>$BD$18,AC23<=$BE$18),BE23,IF(AND(AC23>$BE$18,AC23<=$BF$18),BF23,IF(AND(AC23>$BF$18,AC23<=$BG$18),BG23,IF(AND(AC23>$BG$18,AC23<=$BH$18),BH23,IF(AC23>$BH$18,BH23)))))))) -> 1 | BB23: 1 | BC23: 1 | BD23: 1 | BE23: 2 | BF23: 2 | BG23: 2 | BH23: 2 | BI23: =IF(AC23<=$BJ$18,BJ23,IF(AND(AC23>$BJ$18,AC23<=$BK$18),BK23,IF(AND(AC23>$BK$18,AC23<=$BL$18),BL23,IF(AND(AC23>$BL$18,AC23<=$BM$18),BM23,IF(AND(AC23>$BM$18,AC23<=$BN$18),BN23,IF(AND(AC23>$BN$18,AC23<=$BO$18),BO23,IF(AND(AC23>$BO$18,AC23<=$BP$18),BP23,IF(AC23>$BP$18,BP23)))))))) -> 140 | BJ23: 100 | BK23: 125 | BL23: 140 | BM23: 140 | BN23: 140 | BO23: 140 | BP23: 140 | BQ23: =IF(OR($E$5=$AD$5,$E$5=$AD$6,$E$5=$AD$7,$E$5=$AD$8),G23,IF(OR($E$5=$AD$9,$E$5=$AD$10,$E$5=$AD$11,$E$5=$AD$12),G23/0.5875)) -> 190 | BR23: =+IF(AD23<0,0,AD23) -> 24.45910592 | BS23: =(-0.000023788293*BI23^3 + 0.006551313626*BI23^2 - 0.573673222638*BI23 + 42.996345567831)*LN((BQ23*(AC23/1000))/BA23)+(0.000099312149*BI23^3 - 0.024864140926*BI23^2 + 1.505393168403*BI23 - 101.04319263046)+10*LOG(BA23) -> 30.32742747 | BT23: =57.5627700098*LOG(BQ23) -107.295103557+10*LOG(AC23/1000) -> 23.87626588 | BU23: =10*LOG(10^(0.1*BS23)+10^(0.1*BT23)) -> 31.21376259 | BV23: LDB clean/3 | BW23: DLU | BX23: 0° | BY23: =IF(OR($E$5=$AD$5,$E$5=$AD$6,$E$5=$AD$7,$E$5=$AD$8),G23*(AC23/1000),((G23*0.5875)*(AC23/1000))*0.5875) -> 38.52806641
E24: =IF($E$4=$AC$3,Legende!A22,IF($E$4=$AC$4,Legende!B22,IF($E$4=$AC$5,Legende!C22,IF($E$4=$AC$6,Legende!D22)))) -> LDB 12 clean | F24: =IF($E$4=$AC$3,Legende!A29,IF($E$4=$AC$4,Legende!B29,IF($E$4=$AC$5,Legende!C29,IF($E$4=$AC$6,Legende!D29)))) -> 4-slot | G24: 146.875 | H24: =IF(OR($E$5=$AD$5,$E$5=$AD$6,$E$5=$AD$7,$E$5=$AD$8),"m³/(h*m)",IF(OR($E$5=$AD$9,$E$5=$AD$10,$E$5=$AD$11,$E$5=$AD$12),"cfm/ft","")) -> cfm/ft | I24: =IF(OR($E$5=$AD$5,$E$5=$AD$6,$E$5=$AD$7,$E$5=$AD$8),250,IF(OR($E$5=$AD$9,$E$5=$AD$10,$E$5=$AD$11,$E$5=$AD$12),250*0.5875,"")) -> 146.875 | J24: =IF(OR($E$5=$AD$5,$E$5=$AD$6,$E$5=$AD$7,$E$5=$AD$8),"m³/(h*m)",IF(OR($E$5=$AD$9,$E$5=$AD$10,$E$5=$AD$11,$E$5=$AD$12),"cfm","")) -> cfm | K24: 39,00 in | L24: =IF((ROUNDUP($L$6/(G24*AC24/1000),0))=0,1,ROUNDUP($L$6/(G24*AC24/1000),0)) -> 4 | M24: =IF(OR($E$5=$AD$5,$E$5=$AD$6,$E$5=$AD$7,$E$5=$AD$8),AC24*L24/1000,IF(OR($E$5=$AD$9,$E$5=$AD$10,$E$5=$AD$11,$E$5=$AD$12),AC24*L24/1000*3.28084)) -> 13.12336 | N24: =IF(OR($E$5=$AD$5,$E$5=$AD$6,$E$5=$AD$7,$E$5=$AD$8),"m",IF(OR($E$5=$AD$9,$E$5=$AD$10,$E$5=$AD$11,$E$5=$AD$12),"ft","")) -> ft | O24: =ROUND(1.6778*EXP(0.0637*AD25),0) -> 8 | P24: =IF(OR($E$5=$AD$5,$E$5=$AD$6,$E$5=$AD$7,$E$5=$AD$8),AO24,IF(OR($E$5=$AD$9,$E$5=$AD$10,$E$5=$AD$11,$E$5=$AD$12),AO24*3.28084)) -> 10.498688 | Q24: =IF(OR($E$5=$AD$5,$E$5=$AD$6,$E$5=$AD$7,$E$5=$AD$8),"m",IF(OR($E$5=$AD$9,$E$5=$AD$10,$E$5=$AD$11,$E$5=$AD$12),"ft","")) -> ft | R24: =IF(OR($E$5=$AD$5,$E$5=$AD$6,$E$5=$AD$7,$E$5=$AD$8),AZ24,IF(OR($E$5=$AD$9,$E$5=$AD$10,$E$5=$AD$11,$E$5=$AD$12),AZ24*3.28084)) -> 0.656168 | S24: =IF(OR($E$5=$AD$5,$E$5=$AD$6,$E$5=$AD$7,$E$5=$AD$8),"m/s",IF(OR($E$5=$AD$9,$E$5=$AD$10,$E$5=$AD$11,$E$5=$AD$12),"ft/s","")) -> ft/s | T24: =IF(OR($E$5=$AD$5,$E$5=$AD$6,$E$5=$AD$7,$E$5=$AD$8),ROUND(((34-$L$7)*((IF(AZ24<0.05,0.05,AZ24)-0.05)^0.62)*((0.37*IF(AZ24<0.05,0.05,AZ24)*40)+3.14)),0),IF(OR($E$5=$AD$9,$E$5=$AD$10,$E$5=$AD$11,$E$5=$AD$12),ROUND(((34-(($L$7-32)/1.8))*((IF(AZ24<0.05,0.05,AZ24)-0.05)^0.62)*((0.37*IF(AZ24<0.05,0.05,AZ24)*40)+3.14)),0))) -> 15 | U24: =IF(T24<10,"A",IF(T24<20,"B",IF(T24<30,"C","keine"))) -> B | V24: =ROUNDDOWN(IF(BU24<15,15,BU24),1) -> 30 | W24: 1927 | X24: cfm | Y24: =ROUNDDOWN(10*LOG(L24*10^(0.1*V24))-$L$9,1) -> 29.6 | AC24: 1000 | AD24: =IF(OR($E$5=$AD$5,$E$5=$AD$6,$E$5=$AD$7,$E$5=$AD$8),+(LN(G24)-LN(87.631))/0.0366,IF(OR($E$5=$AD$9,$E$5=$AD$10,$E$5=$AD$11,$E$5=$AD$12),+(LN(G24/0.5875)-LN(87.631))/0.0366)) -> 28.64278965 | AE24: =0.5027*EXP(0.0724*$AD$24) -> 3.998727808 | AF24: =+AE24+(AH24-AE24)/3 -> 3.604176118 | AG24: =+(AF24+AH24)/2 -> 3.209624428 | AH24: =0.3174*EXP(0.0762*$AD$24) -> 2.815072738 | AI24: =+(AH24+AJ24)/2 -> 2.630082861 | AJ24: =+(AH24+AL24)/2 -> 2.445092984 | AK24: =+(AJ24+AL24)/2 -> 2.260103107 | AL24: =0.1882*EXP(0.0838*$AD$24) -> 2.07511323 | AM24: =+(AL24+AN24)/2 -> 1.890123353 | AN24: =+AL24+AL24-AJ24 -> 1.705133476 | AO24: =ROUND(HLOOKUP($AC$16,$AE$18:$AN$38,7,FALSE),1) -> 3.2 | AP24: =0.005*($AD$24)^2-0.105*$AD$24+15.525 -> 16.61955408 | AQ24: =AR24-(AR24-AP24)/2 -> 18.08704004 | AR24: =AS24-(AS24-AP24)/3 -> 19.554526 | AS24: =0.0214*($AD$24)^2-0.6471*$AD$24+22 -> 21.02201196 | AT24: =AU24-(AU24-AS24)/2 -> 21.49278179 | AU24: =0.0229*($AD$24)^2-0.8143*$AD$24+26.5 -> 21.96355162 | AV24: =+AU24+AU24-AT24 -> 22.43432146 | AW24: =+AV24+AV24-AU24 -> 22.90509129 | AX24: =+AW24+AW24-AV24 -> 23.37586113 | AY24: 23.84663096 | AZ24: =ROUND(HLOOKUP($AC$16,$AP$18:$AY$38,7,FALSE)/100,2) -> 0.2 | BA24: =IF(AC24<=$BB$18,BB24,IF(AND(AC24>$BB$18,AC24<=$BC$18),BC24,IF(AND(AC24>$BC$18,AC24<=$BD$18),BD24,IF(AND(AC24>$BD$18,AC24<=$BE$18),BE24,IF(AND(AC24>$BE$18,AC24<=$BF$18),BF24,IF(AND(AC24>$BF$18,AC24<=$BG$18),BG24,IF(AND(AC24>$BG$18,AC24<=$BH$18),BH24,IF(AC24>$BH$18,BH24)))))))) -> 2 | BB24: 1 | BC24: 1 | BD24: 2 | BE24: 2 | BF24: 2 | BG24: 2 | BH24: 2 | BI24: =IF(AC24<=$BJ$18,BJ24,IF(AND(AC24>$BJ$18,AC24<=$BK$18),BK24,IF(AND(AC24>$BK$18,AC24<=$BL$18),BL24,IF(AND(AC24>$BL$18,AC24<=$BM$18),BM24,IF(AND(AC24>$BM$18,AC24<=$BN$18),BN24,IF(AND(AC24>$BN$18,AC24<=$BO$18),BO24,IF(AND(AC24>$BO$18,AC24<=$BP$18),BP24,IF(AC24>$BP$18,BP24)))))))) -> 125 | BJ24: 125 | BK24: 140 | BL24: 125 | BM24: 125 | BN24: 140 | BO24: 160 | BP24: 160 | BQ24: =IF(OR($E$5=$AD$5,$E$5=$AD$6,$E$5=$AD$7,$E$5=$AD$8),G24,IF(OR($E$5=$AD$9,$E$5=$AD$10,$E$5=$AD$11,$E$5=$AD$12),G24/0.5875)) -> 250 | BR24: =+IF(AD24<0,0,AD24) -> 28.64278965 | BS24: =(-0.000023788293*BI24^3 + 0.006551313626*BI24^2 - 0.573673222638*BI24 + 42.996345567831)*LN((BQ24*(AC24/1000))/BA24)+(0.000099312149*BI24^3 - 0.024864140926*BI24^2 + 1.505393168403*BI24 - 101.04319263046)+10*LOG(BA24) -> 26.88974198 | BT24: =62.1456597122*LOG(BQ24) -121.8124227521+10*LOG(AC24/1000) -> 27.20914104 | BU24: =10*LOG(10^(0.1*BS24)+10^(0.1*BT24)) -> 30.06267705 | BV24: LDB clean/4 | BW24: DLU | BX24: 0° | BY24: =IF(OR($E$5=$AD$5,$E$5=$AD$6,$E$5=$AD$7,$E$5=$AD$8),G24*(AC24/1000),((G24*0.5875)*(AC24/1000))*0.5875) -> 50.69482422
AD25: =IF(OR($E$5=$AD$5,$E$5=$AD$6,$E$5=$AD$7,$E$5=$AD$8),+(LN(G24/4*3)-LN(86.228))/0.0323,IF(OR($E$5=$AD$9,$E$5=$AD$10,$E$5=$AD$11,$E$5=$AD$12),+(LN(G24/4*3/0.5875)-LN(86.228))/0.0323)) -> 24.04903698 | AE25: Keine Messergebnisse, Dezugswertformel vom 3-Schlitzigen / 4 * 3, Druckverlust ebenfalls 3-Schlitzige Fromel benutzt. Geschwindigkeit und Akustik Formeln vom classic 4-Schlitzigen übernommen
E26: =IF($E$4=$AC$3,Legende!A23,IF($E$4=$AC$4,Legende!B23,IF($E$4=$AC$5,Legende!C23,IF($E$4=$AC$6,Legende!D23)))) -> LDB 12 style | F26: =IF($E$4=$AC$3,Legende!A26,IF($E$4=$AC$4,Legende!B26,IF($E$4=$AC$5,Legende!C26,IF($E$4=$AC$6,Legende!D26)))) -> 1-slot | G26: 41.125 | H26: =IF(OR($E$5=$AD$5,$E$5=$AD$6,$E$5=$AD$7,$E$5=$AD$8),"m³/(h*m)",IF(OR($E$5=$AD$9,$E$5=$AD$10,$E$5=$AD$11,$E$5=$AD$12),"cfm/ft","")) -> cfm/ft | I26: =IF(OR($E$5=$AD$5,$E$5=$AD$6,$E$5=$AD$7,$E$5=$AD$8),70,IF(OR($E$5=$AD$9,$E$5=$AD$10,$E$5=$AD$11,$E$5=$AD$12),70*0.5875,"")) -> 41.125 | J26: =IF(OR($E$5=$AD$5,$E$5=$AD$6,$E$5=$AD$7,$E$5=$AD$8),"m³/(h*m)",IF(OR($E$5=$AD$9,$E$5=$AD$10,$E$5=$AD$11,$E$5=$AD$12),"cfm","")) -> cfm | K26: 39,00 in | L26: =IF((ROUNDUP($L$6/(G26*AC26/1000),0))=0,1,ROUNDUP($L$6/(G26*AC26/1000),0)) -> 15 | M26: =IF(OR($E$5=$AD$5,$E$5=$AD$6,$E$5=$AD$7,$E$5=$AD$8),AC26*L26/1000,IF(OR($E$5=$AD$9,$E$5=$AD$10,$E$5=$AD$11,$E$5=$AD$12),AC26*L26/1000*3.28084)) -> 49.2126 | N26: =IF(OR($E$5=$AD$5,$E$5=$AD$6,$E$5=$AD$7,$E$5=$AD$8),"m",IF(OR($E$5=$AD$9,$E$5=$AD$10,$E$5=$AD$11,$E$5=$AD$12),"ft","")) -> ft | O26: =ROUND(1.8488*EXP(0.0699*AD26),0) -> 8 | P26: =IF(OR($E$5=$AD$5,$E$5=$AD$6,$E$5=$AD$7,$E$5=$AD$8),AO26,IF(OR($E$5=$AD$9,$E$5=$AD$10,$E$5=$AD$11,$E$5=$AD$12),AO26*3.28084)) -> 5.905512 | Q26: =IF(OR($E$5=$AD$5,$E$5=$AD$6,$E$5=$AD$7,$E$5=$AD$8),"m",IF(OR($E$5=$AD$9,$E$5=$AD$10,$E$5=$AD$11,$E$5=$AD$12),"ft","")) -> ft | R26: =IF(OR($E$5=$AD$5,$E$5=$AD$6,$E$5=$AD$7,$E$5=$AD$8),AZ26,IF(OR($E$5=$AD$9,$E$5=$AD$10,$E$5=$AD$11,$E$5=$AD$12),AZ26*3.28084)) -> 0.492126 | S26: =IF(OR($E$5=$AD$5,$E$5=$AD$6,$E$5=$AD$7,$E$5=$AD$8),"m/s",IF(OR($E$5=$AD$9,$E$5=$AD$10,$E$5=$AD$11,$E$5=$AD$12),"ft/s","")) -> ft/s | T26: =IF(OR($E$5=$AD$5,$E$5=$AD$6,$E$5=$AD$7,$E$5=$AD$8),ROUND(((34-$L$7)*((IF(AZ26<0.05,0.05,AZ26)-0.05)^0.62)*((0.37*IF(AZ26<0.05,0.05,AZ26)*40)+3.14)),0),IF(OR($E$5=$AD$9,$E$5=$AD$10,$E$5=$AD$11,$E$5=$AD$12),ROUND(((34-(($L$7-32)/1.8))*((IF(AZ26<0.05,0.05,AZ26)-0.05)^0.62)*((0.37*IF(AZ26<0.05,0.05,AZ26)*40)+3.14)),0))) -> 10 | U26: =IF(T26<10,"A",IF(T26<20,"B",IF(T26<30,"C","keine"))) -> B | V26: =ROUNDDOWN(IF(BU26<15,15,BU26),1) -> 27.1 | W26: 2024 | X26: cfm | Y26: =ROUNDDOWN(10*LOG(L26*10^(0.1*V26))-$L$9,1) -> 32.4 | AC26: 1000 | AD26: =IF(OR($E$5=$AD$5,$E$5=$AD$6,$E$5=$AD$7,$E$5=$AD$8),+(LN(G26)-LN(32.525))/0.0357,IF(OR($E$5=$AD$9,$E$5=$AD$10,$E$5=$AD$11,$E$5=$AD$12),+(LN(G26/0.5875)-LN(32.525))/0.0357)) -> 21.47020218 | AE26: =1.0132*EXP(0.0339*$AD$26) -> 2.097934927 | AF26: =+AE26+(AH26-AE26)/3 -> 1.958813028 | AG26: =+(AF26+AH26)/2 -> 1.819691128 | AH26: =0.7961*EXP(0.0348*$AD$26) -> 1.680569229 | AI26: =+(AH26+AJ26)/2 -> 1.561137693 | AJ26: =+(AH26+AL26)/2 -> 1.441706157 | AK26: =+(AJ26+AL26)/2 -> 1.322274621 | AL26: =0.514*EXP(0.0396*$AD$26) -> 1.202843086 | AM26: =+(AL26+AN26)/2 -> 1.061726606 | AN26: =0.3564*EXP(0.0442*$AD$26) -> 0.920610127 | AO26: =ROUND(HLOOKUP($AC$16,$AE$18:$AN$38,9,FALSE),1) -> 1.8 | AP26: =10.213*EXP(0.0127*$AD$26) -> 13.41445673 | AQ26: =AR26-(AR26-AP26)/2 -> 14.03004756 | AR26: =AS26-(AS26-AP26)/3 -> 14.64563838 | AS26: =11.644*EXP(0.0126*$AD$26) -> 15.2612292 | AT26: =AU26-(AU26-AS26)/2 -> 15.44553051 | AU26: =AV26-(AV26-AS26)/3 -> 15.62983181 | AV26: =AW26-(AW26-AS26)/4 -> 15.81413311 | AW26: =12.259*EXP(0.0124*$AD$26) -> 15.99843441 | AX26: =AY26-(AY26-AW26)/2 -> 16.82621776 | AY26: =0.0071*($AD$26)^2-0.2271*$AD$26+19.257 -> 17.65400111 | AZ26: =ROUND(HLOOKUP($AC$16,$AP$18:$AY$38,9,FALSE)/100,2) -> 0.15 | BA26: =IF(AC26<=$BB$18,BB26,IF(AND(AC26>$BB$18,AC26<=$BC$18),BC26,IF(AND(AC26>$BC$18,AC26<=$BD$18),BD26,IF(AND(AC26>$BD$18,AC26<=$BE$18),BE26,IF(AND(AC26>$BE$18,AC26<=$BF$18),BF26,IF(AND(AC26>$BF$18,AC26<=$BG$18),BG26,IF(AND(AC26>$BG$18,AC26<=$BH$18),BH26,IF(AC26>$BH$18,BH26)))))))) -> 1 | BB26: 1 | BC26: 1 | BD26: 1 | BE26: 1 | BF26: 1 | BG26: 2 | BH26: 2 | BI26: =IF(AC26<=$BJ$18,BJ26,IF(AND(AC26>$BJ$18,AC26<=$BK$18),BK26,IF(AND(AC26>$BK$18,AC26<=$BL$18),BL26,IF(AND(AC26>$BL$18,AC26<=$BM$18),BM26,IF(AND(AC26>$BM$18,AC26<=$BN$18),BN26,IF(AND(AC26>$BN$18,AC26<=$BO$18),BO26,IF(AND(AC26>$BO$18,AC26<=$BP$18),BP26,IF(AC26>$BP$18,BP26)))))))) -> 100 | BJ26: 80 | BK26: 80 | BL26: 100 | BM26: 125 | BN26: 125 | BO26: 80 | BP26: 100 | BQ26: =IF(OR($E$5=$AD$5,$E$5=$AD$6,$E$5=$AD$7,$E$5=$AD$8),G26,IF(OR($E$5=$AD$9,$E$5=$AD$10,$E$5=$AD$11,$E$5=$AD$12),G26/0.5875)) -> 70 | BR26: =+IF(AD26<0,0,AD26) -> 21.47020218 | BS26: =(-0.0022355889*(BI26)^2 + 0.4201809847*BI26 + 5.399628589)*LN((BQ26*(AC26/1000))/BA26)+(-0.0000029509*(BI26)^3 + 0.0099403371*(BI26)^2 - 1.9777335627*BI26+ 21.5271635053)+10*LOG(BA26) -> 26.68137799 | BT26: =73.7573595264*LOG(BQ26)-119.2146207935+10*LOG(AC26/1000) -> 16.87493871 | BU26: =10*LOG(10^(0.1*BS26)+10^(0.1*BT26)) -> 27.11326211 | BV26: LDB style/1 | BW26: DLU | BX26: 0° | BY26: =IF(OR($E$5=$AD$5,$E$5=$AD$6,$E$5=$AD$7,$E$5=$AD$8),G26*(AC26/1000),((G26*0.5875)*(AC26/1000))*0.5875) -> 14.19455078
E27: =IF($E$4=$AC$3,Legende!A23,IF($E$4=$AC$4,Legende!B23,IF($E$4=$AC$5,Legende!C23,IF($E$4=$AC$6,Legende!D23)))) -> LDB 12 style | F27: =IF($E$4=$AC$3,Legende!A27,IF($E$4=$AC$4,Legende!B27,IF($E$4=$AC$5,Legende!C27,IF($E$4=$AC$6,Legende!D27)))) -> 2-slot | G27: 76.375 | H27: =IF(OR($E$5=$AD$5,$E$5=$AD$6,$E$5=$AD$7,$E$5=$AD$8),"m³/(h*m)",IF(OR($E$5=$AD$9,$E$5=$AD$10,$E$5=$AD$11,$E$5=$AD$12),"cfm/ft","")) -> cfm/ft | I27: =IF(OR($E$5=$AD$5,$E$5=$AD$6,$E$5=$AD$7,$E$5=$AD$8),130,IF(OR($E$5=$AD$9,$E$5=$AD$10,$E$5=$AD$11,$E$5=$AD$12),130*0.5875,"")) -> 76.375 | J27: =IF(OR($E$5=$AD$5,$E$5=$AD$6,$E$5=$AD$7,$E$5=$AD$8),"m³/(h*m)",IF(OR($E$5=$AD$9,$E$5=$AD$10,$E$5=$AD$11,$E$5=$AD$12),"cfm","")) -> cfm | K27: 39,00 in | L27: =IF((ROUNDUP($L$6/(G27*AC27/1000),0))=0,1,ROUNDUP($L$6/(G27*AC27/1000),0)) -> 8 | M27: =IF(OR($E$5=$AD$5,$E$5=$AD$6,$E$5=$AD$7,$E$5=$AD$8),AC27*L27/1000,IF(OR($E$5=$AD$9,$E$5=$AD$10,$E$5=$AD$11,$E$5=$AD$12),AC27*L27/1000*3.28084)) -> 26.24672 | N27: =IF(OR($E$5=$AD$5,$E$5=$AD$6,$E$5=$AD$7,$E$5=$AD$8),"m",IF(OR($E$5=$AD$9,$E$5=$AD$10,$E$5=$AD$11,$E$5=$AD$12),"ft","")) -> ft | O27: =ROUND(1.6218*EXP(0.0609*AD27),0) -> 8 | P27: =IF(OR($E$5=$AD$5,$E$5=$AD$6,$E$5=$AD$7,$E$5=$AD$8),AO27,IF(OR($E$5=$AD$9,$E$5=$AD$10,$E$5=$AD$11,$E$5=$AD$12),AO27*3.28084)) -> 7.545932 | Q27: =IF(OR($E$5=$AD$5,$E$5=$AD$6,$E$5=$AD$7,$E$5=$AD$8),"m",IF(OR($E$5=$AD$9,$E$5=$AD$10,$E$5=$AD$11,$E$5=$AD$12),"ft","")) -> ft | R27: =IF(OR($E$5=$AD$5,$E$5=$AD$6,$E$5=$AD$7,$E$5=$AD$8),AZ27,IF(OR($E$5=$AD$9,$E$5=$AD$10,$E$5=$AD$11,$E$5=$AD$12),AZ27*3.28084)) -> 0.5905512 | S27: =IF(OR($E$5=$AD$5,$E$5=$AD$6,$E$5=$AD$7,$E$5=$AD$8),"m/s",IF(OR($E$5=$AD$9,$E$5=$AD$10,$E$5=$AD$11,$E$5=$AD$12),"ft/s","")) -> ft/s | T27: =IF(OR($E$5=$AD$5,$E$5=$AD$6,$E$5=$AD$7,$E$5=$AD$8),ROUND(((34-$L$7)*((IF(AZ27<0.05,0.05,AZ27)-0.05)^0.62)*((0.37*IF(AZ27<0.05,0.05,AZ27)*40)+3.14)),0),IF(OR($E$5=$AD$9,$E$5=$AD$10,$E$5=$AD$11,$E$5=$AD$12),ROUND(((34-(($L$7-32)/1.8))*((IF(AZ27<0.05,0.05,AZ27)-0.05)^0.62)*((0.37*IF(AZ27<0.05,0.05,AZ27)*40)+3.14)),0))) -> 13 | U27: =IF(T27<10,"A",IF(T27<20,"B",IF(T27<30,"C","keine"))) -> B | V27: =ROUNDDOWN(IF(BU27<15,15,BU27),1) -> 27.3 | W27: 2005 | X27: cfm | Y27: =ROUNDDOWN(10*LOG(L27*10^(0.1*V27))-$L$9,1) -> 29.9 | AC27: 1000 | AD27: =IF(OR($E$5=$AD$5,$E$5=$AD$6,$E$5=$AD$7,$E$5=$AD$8),+(LN(G27)-LN(54.787))/0.0326,IF(OR($E$5=$AD$9,$E$5=$AD$10,$E$5=$AD$11,$E$5=$AD$12),+(LN(G27/0.5875)-LN(54.787))/0.0326)) -> 26.50556782 | AE27: =1.1648*EXP(0.0309*$AD$27) -> 2.6420931 | AF27: =+AE27+(AH27-AE27)/3 -> 2.486986703 | AG27: =+(AF27+AH27)/2 -> 2.331880306 | AH27: =0.9247*EXP(0.0323*$AD$27) -> 2.176773908 | AI27: =+(AH27+AJ27)/2 -> 2.051064146 | AJ27: =+(AH27+AL27)/2 -> 1.925354383 | AK27: =+(AJ27+AL27)/2 -> 1.799644621 | AL27: =0.655*EXP(0.0354*$AD$27) -> 1.673934858 | AM27: =+(AL27+AN27)/2 -> 1.515849129 | AN27: =0.4728*EXP(0.0398*$AD$27) -> 1.357763399 | AO27: =ROUND(HLOOKUP($AC$16,$AE$18:$AN$38,10,FALSE),1) -> 2.3 | AP27: =11.644*EXP(0.0126*$AD$27) -> 16.26086304 | AQ27: =AR27-(AR27-AP27)/2 -> 17.10133446 | AR27: =AS27-(AS27-AP27)/3 -> 17.94180587 | AS27: =13.343*EXP(0.0129*$AD$27) -> 18.78227729 | AT27: =AU27-(AU27-AS27)/2 -> 19.146257 | AU27: =AV27-(AV27-AS27)/3 -> 19.51023671 | AV27: =AW27-(AW27-AS27)/4 -> 19.87421641 | AW27: =15.526*EXP(0.01*$AD$27) -> 20.23819612 | AX27: =AY27-(AY27-AW27)/2 -> 20.35477261 | AY27: =0.0129*$AD$27^2-0.4729*$AD$27+23.943 -> 20.4713491 | AZ27: =ROUND(HLOOKUP($AC$16,$AP$18:$AY$38,10,FALSE)/100,2) -> 0.18 | BA27: =IF(AC27<=$BB$18,BB27,IF(AND(AC27>$BB$18,AC27<=$BC$18),BC27,IF(AND(AC27>$BC$18,AC27<=$BD$18),BD27,IF(AND(AC27>$BD$18,AC27<=$BE$18),BE27,IF(AND(AC27>$BE$18,AC27<=$BF$18),BF27,IF(AND(AC27>$BF$18,AC27<=$BG$18),BG27,IF(AND(AC27>$BG$18,AC27<=$BH$18),BH27,IF(AC27>$BH$18,BH27)))))))) -> 1 | BB27: 1 | BC27: 1 | BD27: 1 | BE27: 1 | BF27: 2 | BG27: 2 | BH27: 2 | BI27: =IF(AC27<=$BJ$18,BJ27,IF(AND(AC27>$BJ$18,AC27<=$BK$18),BK27,IF(AND(AC27>$BK$18,AC27<=$BL$18),BL27,IF(AND(AC27>$BL$18,AC27<=$BM$18),BM27,IF(AND(AC27>$BM$18,AC27<=$BN$18),BN27,IF(AND(AC27>$BN$18,AC27<=$BO$18),BO27,IF(AND(AC27>$BO$18,AC27<=$BP$18),BP27,IF(AC27>$BP$18,BP27)))))))) -> 125 | BJ27: 80 | BK27: 100 | BL27: 125 | BM27: 140 | BN27: 100 | BO27: 100 | BP27: 125 | BQ27: =IF(OR($E$5=$AD$5,$E$5=$AD$6,$E$5=$AD$7,$E$5=$AD$8),G27,IF(OR($E$5=$AD$9,$E$5=$AD$10,$E$5=$AD$11,$E$5=$AD$12),G27/0.5875)) -> 130 | BR27: =+IF(AD27<0,0,AD27) -> 26.50556782 | BS27: =(0.000000036775*BI27^4 - 0.000097789296*BI27^3 + 0.031851098925*BI27^2 - 3.518164042311*BI27 + 153.06267686179)*LN((BQ27*(AC27/1000))/BA27)+(-0.000001589267*BI27^4 + 0.001198286334*BI27^3 - 0.287868077763*BI27^2 + 27.229051331336*BI27- 974.551194289673) -> 24.45082515 | BT27: =53.6850931947*LOG(BQ27) -89.3138537125+10*LOG(AC27/1000) -> 24.17339216 | BU27: =10*LOG(10^(0.1*BS27)+10^(0.1*BT27)) -> 27.32462359 | BV27: LDB style/2 | BW27: DLU | BX27: 0° | BY27: =IF(OR($E$5=$AD$5,$E$5=$AD$6,$E$5=$AD$7,$E$5=$AD$8),G27*(AC27/1000),((G27*0.5875)*(AC27/1000))*0.5875) -> 26.36130859
E28: =IF($E$4=$AC$3,Legende!A23,IF($E$4=$AC$4,Legende!B23,IF($E$4=$AC$5,Legende!C23,IF($E$4=$AC$6,Legende!D23)))) -> LDB 12 style | F28: =IF($E$4=$AC$3,Legende!A28,IF($E$4=$AC$4,Legende!B28,IF($E$4=$AC$5,Legende!C28,IF($E$4=$AC$6,Legende!D28)))) -> 3-slot | G28: 111.625 | H28: =IF(OR($E$5=$AD$5,$E$5=$AD$6,$E$5=$AD$7,$E$5=$AD$8),"m³/(h*m)",IF(OR($E$5=$AD$9,$E$5=$AD$10,$E$5=$AD$11,$E$5=$AD$12),"cfm/ft","")) -> cfm/ft | I28: =IF(OR($E$5=$AD$5,$E$5=$AD$6,$E$5=$AD$7,$E$5=$AD$8),190,IF(OR($E$5=$AD$9,$E$5=$AD$10,$E$5=$AD$11,$E$5=$AD$12),190*0.5875,"")) -> 111.625 | J28: =IF(OR($E$5=$AD$5,$E$5=$AD$6,$E$5=$AD$7,$E$5=$AD$8),"m³/(h*m)",IF(OR($E$5=$AD$9,$E$5=$AD$10,$E$5=$AD$11,$E$5=$AD$12),"cfm","")) -> cfm | K28: 39,00 in | L28: =IF((ROUNDUP($L$6/(G28*AC28/1000),0))=0,1,ROUNDUP($L$6/(G28*AC28/1000),0)) -> 6 | M28: =IF(OR($E$5=$AD$5,$E$5=$AD$6,$E$5=$AD$7,$E$5=$AD$8),AC28*L28/1000,IF(OR($E$5=$AD$9,$E$5=$AD$10,$E$5=$AD$11,$E$5=$AD$12),AC28*L28/1000*3.28084)) -> 19.68504 | N28: =IF(OR($E$5=$AD$5,$E$5=$AD$6,$E$5=$AD$7,$E$5=$AD$8),"m",IF(OR($E$5=$AD$9,$E$5=$AD$10,$E$5=$AD$11,$E$5=$AD$12),"ft","")) -> ft | O28: =ROUND(1.6778*EXP(0.0637*AD28),0) -> 8 | P28: =IF(OR($E$5=$AD$5,$E$5=$AD$6,$E$5=$AD$7,$E$5=$AD$8),AO28,IF(OR($E$5=$AD$9,$E$5=$AD$10,$E$5=$AD$11,$E$5=$AD$12),AO28*3.28084)) -> 5.249344 | Q28: =IF(OR($E$5=$AD$5,$E$5=$AD$6,$E$5=$AD$7,$E$5=$AD$8),"m",IF(OR($E$5=$AD$9,$E$5=$AD$10,$E$5=$AD$11,$E$5=$AD$12),"ft","")) -> ft | R28: =IF(OR($E$5=$AD$5,$E$5=$AD$6,$E$5=$AD$7,$E$5=$AD$8),AZ28,IF(OR($E$5=$AD$9,$E$5=$AD$10,$E$5=$AD$11,$E$5=$AD$12),AZ28*3.28084)) -> 0.5577428 | S28: =IF(OR($E$5=$AD$5,$E$5=$AD$6,$E$5=$AD$7,$E$5=$AD$8),"m/s",IF(OR($E$5=$AD$9,$E$5=$AD$10,$E$5=$AD$11,$E$5=$AD$12),"ft/s","")) -> ft/s | T28: =IF(OR($E$5=$AD$5,$E$5=$AD$6,$E$5=$AD$7,$E$5=$AD$8),ROUND(((34-$L$7)*((IF(AZ28<0.05,0.05,AZ28)-0.05)^0.62)*((0.37*IF(AZ28<0.05,0.05,AZ28)*40)+3.14)),0),IF(OR($E$5=$AD$9,$E$5=$AD$10,$E$5=$AD$11,$E$5=$AD$12),ROUND(((34-(($L$7-32)/1.8))*((IF(AZ28<0.05,0.05,AZ28)-0.05)^0.62)*((0.37*IF(AZ28<0.05,0.05,AZ28)*40)+3.14)),0))) -> 12 | U28: =IF(T28<10,"A",IF(T28<20,"B",IF(T28<30,"C","keine"))) -> B | V28: =ROUNDDOWN(IF(BU28<15,15,BU28),1) -> 31.2 | W28: 2197 | X28: cfm | Y28: =ROUNDDOWN(10*LOG(L28*10^(0.1*V28))-$L$9,1) -> 32.5 | AC28: 1000 | AD28: =IF(OR($E$5=$AD$5,$E$5=$AD$6,$E$5=$AD$7,$E$5=$AD$8),+(LN(G28)-LN(86.228))/0.0323,IF(OR($E$5=$AD$9,$E$5=$AD$10,$E$5=$AD$11,$E$5=$AD$12),+(LN(G28/0.5875)-LN(86.228))/0.0323)) -> 24.45910592 | AE28: =0.8069*EXP(0.034*$AD$28) -> 1.853459823 | AF28: =+AE28+(AH28-AE28)/3 -> 1.744639279 | AG28: =+(AF28+AH28)/2 -> 1.635818735 | AH28: =0.693*EXP(0.0323*$AD$28) -> 1.526998191 | AI28: =+(AH28+AJ28)/2 -> 1.461787671 | AJ28: =+(AH28+AL28)/2 -> 1.396577152 | AK28: =+(AJ28+AL28)/2 -> 1.331366633 | AL28: =0.4842*EXP(0.0393*$AD$28) -> 1.266156113 | AM28: =+(AL28+AN28)/2 -> 1.150401128 | AN28: =0.3947*EXP(0.0394*$AD$28) -> 1.034646143 | AO28: =ROUND(HLOOKUP($AC$16,$AE$18:$AN$38,11,FALSE),1) -> 1.6 | AP28: =15.159*EXP(0.0091*$AD$28) -> 18.93803396 | AQ28: =AR28-(AR28-AP28)/2 -> 18.20874124 | AR28: =AS28-(AS28-AP28)/3 -> 17.47944851 | AS28: =0.01*($AD$28)^2-0.31*$AD$28+18.35 -> 16.75015579 | AT28: =AU28-(AU28-AS28)/2 -> 17.06642156 | AU28: =AV28-(AV28-AS28)/3 -> 17.38268733 | AV28: =AW28-(AW28-AS28)/4 -> 17.6989531 | AW28: =0.02*$AD$28^2-0.74*$AD$28+24.15 -> 18.01521887 | AX28: =AY28-(AY28-AW28)/2 -> 18.81185463 | AY28: =0.02*($AD$28)^2-0.82*$AD$28+27.7 -> 19.60849039 | AZ28: =ROUND(HLOOKUP($AC$16,$AP$18:$AY$38,11,FALSE)/100,2) -> 0.17 | BA28: =IF(AC28<=$BB$18,BB28,IF(AND(AC28>$BB$18,AC28<=$BC$18),BC28,IF(AND(AC28>$BC$18,AC28<=$BD$18),BD28,IF(AND(AC28>$BD$18,AC28<=$BE$18),BE28,IF(AND(AC28>$BE$18,AC28<=$BF$18),BF28,IF(AND(AC28>$BF$18,AC28<=$BG$18),BG28,IF(AND(AC28>$BG$18,AC28<=$BH$18),BH28,IF(AC28>$BH$18,BH28)))))))) -> 1 | BB28: 1 | BC28: 1 | BD28: 1 | BE28: 2 | BF28: 2 | BG28: 2 | BH28: 2 | BI28: =IF(AC28<=$BJ$18,BJ28,IF(AND(AC28>$BJ$18,AC28<=$BK$18),BK28,IF(AND(AC28>$BK$18,AC28<=$BL$18),BL28,IF(AND(AC28>$BL$18,AC28<=$BM$18),BM28,IF(AND(AC28>$BM$18,AC28<=$BN$18),BN28,IF(AND(AC28>$BN$18,AC28<=$BO$18),BO28,IF(AND(AC28>$BO$18,AC28<=$BP$18),BP28,IF(AC28>$BP$18,BP28)))))))) -> 140 | BJ28: 100 | BK28: 125 | BL28: 140 | BM28: 140 | BN28: 140 | BO28: 140 | BP28: 140 | BQ28: =IF(OR($E$5=$AD$5,$E$5=$AD$6,$E$5=$AD$7,$E$5=$AD$8),G28,IF(OR($E$5=$AD$9,$E$5=$AD$10,$E$5=$AD$11,$E$5=$AD$12),G28/0.5875)) -> 190 | BR28: =+IF(AD28<0,0,AD28) -> 24.45910592 | BS28: =(-0.000023788293*BI28^3 + 0.006551313626*BI28^2 - 0.573673222638*BI28 + 42.996345567831)*LN((BQ28*(AC28/1000))/BA28)+(0.000099312149*BI28^3 - 0.024864140926*BI28^2 + 1.505393168403*BI28 - 101.04319263046)+10*LOG(BA28) -> 30.32742747 | BT28: =57.5627700098*LOG(BQ28) -107.295103557+10*LOG(AC28/1000) -> 23.87626588 | BU28: =10*LOG(10^(0.1*BS28)+10^(0.1*BT28)) -> 31.21376259 | BV28: LDB style/3 | BW28: DLU | BX28: 0° | BY28: =IF(OR($E$5=$AD$5,$E$5=$AD$6,$E$5=$AD$7,$E$5=$AD$8),G28*(AC28/1000),((G28*0.5875)*(AC28/1000))*0.5875) -> 38.52806641
E29: =IF($E$4=$AC$3,Legende!A23,IF($E$4=$AC$4,Legende!B23,IF($E$4=$AC$5,Legende!C23,IF($E$4=$AC$6,Legende!D23)))) -> LDB 12 style | F29: =IF($E$4=$AC$3,Legende!A29,IF($E$4=$AC$4,Legende!B29,IF($E$4=$AC$5,Legende!C29,IF($E$4=$AC$6,Legende!D29)))) -> 4-slot | G29: 146.875 | H29: =IF(OR($E$5=$AD$5,$E$5=$AD$6,$E$5=$AD$7,$E$5=$AD$8),"m³/(h*m)",IF(OR($E$5=$AD$9,$E$5=$AD$10,$E$5=$AD$11,$E$5=$AD$12),"cfm/ft","")) -> cfm/ft | I29: =IF(OR($E$5=$AD$5,$E$5=$AD$6,$E$5=$AD$7,$E$5=$AD$8),250,IF(OR($E$5=$AD$9,$E$5=$AD$10,$E$5=$AD$11,$E$5=$AD$12),250*0.5875,"")) -> 146.875 | J29: =IF(OR($E$5=$AD$5,$E$5=$AD$6,$E$5=$AD$7,$E$5=$AD$8),"m³/(h*m)",IF(OR($E$5=$AD$9,$E$5=$AD$10,$E$5=$AD$11,$E$5=$AD$12),"cfm","")) -> cfm | K29: 39,00 in | L29: =IF((ROUNDUP($L$6/(G29*AC29/1000),0))=0,1,ROUNDUP($L$6/(G29*AC29/1000),0)) -> 4 | M29: =IF(OR($E$5=$AD$5,$E$5=$AD$6,$E$5=$AD$7,$E$5=$AD$8),AC29*L29/1000,IF(OR($E$5=$AD$9,$E$5=$AD$10,$E$5=$AD$11,$E$5=$AD$12),AC29*L29/1000*3.28084)) -> 13.12336 | N29: =IF(OR($E$5=$AD$5,$E$5=$AD$6,$E$5=$AD$7,$E$5=$AD$8),"m",IF(OR($E$5=$AD$9,$E$5=$AD$10,$E$5=$AD$11,$E$5=$AD$12),"ft","")) -> ft | O29: =ROUND(1.6778*EXP(0.0637*AD30),0) -> 8 | P29: =IF(OR($E$5=$AD$5,$E$5=$AD$6,$E$5=$AD$7,$E$5=$AD$8),AO29,IF(OR($E$5=$AD$9,$E$5=$AD$10,$E$5=$AD$11,$E$5=$AD$12),AO29*3.28084)) -> 10.498688 | Q29: =IF(OR($E$5=$AD$5,$E$5=$AD$6,$E$5=$AD$7,$E$5=$AD$8),"m",IF(OR($E$5=$AD$9,$E$5=$AD$10,$E$5=$AD$11,$E$5=$AD$12),"ft","")) -> ft | R29: =IF(OR($E$5=$AD$5,$E$5=$AD$6,$E$5=$AD$7,$E$5=$AD$8),AZ29,IF(OR($E$5=$AD$9,$E$5=$AD$10,$E$5=$AD$11,$E$5=$AD$12),AZ29*3.28084)) -> 0.656168 | S29: =IF(OR($E$5=$AD$5,$E$5=$AD$6,$E$5=$AD$7,$E$5=$AD$8),"m/s",IF(OR($E$5=$AD$9,$E$5=$AD$10,$E$5=$AD$11,$E$5=$AD$12),"ft/s","")) -> ft/s | T29: =IF(OR($E$5=$AD$5,$E$5=$AD$6,$E$5=$AD$7,$E$5=$AD$8),ROUND(((34-$L$7)*((IF(AZ29<0.05,0.05,AZ29)-0.05)^0.62)*((0.37*IF(AZ29<0.05,0.05,AZ29)*40)+3.14)),0),IF(OR($E$5=$AD$9,$E$5=$AD$10,$E$5=$AD$11,$E$5=$AD$12),ROUND(((34-(($L$7-32)/1.8))*((IF(AZ29<0.05,0.05,AZ29)-0.05)^0.62)*((0.37*IF(AZ29<0.05,0.05,AZ29)*40)+3.14)),0))) -> 15 | U29: =IF(T29<10,"A",IF(T29<20,"B",IF(T29<30,"C","keine"))) -> B | V29: =ROUNDDOWN(IF(BU29<15,15,BU29),1) -> 30 | W29: 1927 | X29: cfm | Y29: =ROUNDDOWN(10*LOG(L29*10^(0.1*V29))-$L$9,1) -> 29.6 | AC29: 1000 | AD29: =IF(OR($E$5=$AD$5,$E$5=$AD$6,$E$5=$AD$7,$E$5=$AD$8),+(LN(G29)-LN(87.631))/0.0366,IF(OR($E$5=$AD$9,$E$5=$AD$10,$E$5=$AD$11,$E$5=$AD$12),+(LN(G29/0.5875)-LN(87.631))/0.0366)) -> 28.64278965 | AE29: =0.5027*EXP(0.0724*$AD$29) -> 3.998727808 | AF29: =+AE29+(AH29-AE29)/3 -> 3.604176118 | AG29: =+(AF29+AH29)/2 -> 3.209624428 | AH29: =0.3174*EXP(0.0762*$AD$29) -> 2.815072738 | AI29: =+(AH29+AJ29)/2 -> 2.630082861 | AJ29: =+(AH29+AL29)/2 -> 2.445092984 | AK29: =+(AJ29+AL29)/2 -> 2.260103107 | AL29: =0.1882*EXP(0.0838*$AD$29) -> 2.07511323 | AM29: =+(AL29+AN29)/2 -> 1.890123353 | AN29: =+AL29+AL29-AJ29 -> 1.705133476 | AO29: =ROUND(HLOOKUP($AC$16,$AE$18:$AN$38,12,FALSE),1) -> 3.2 | AP29: =0.005*($AD$29)^2-0.105*$AD$29+15.525 -> 16.61955408 | AQ29: =AR29-(AR29-AP29)/2 -> 18.08704004 | AR29: =AS29-(AS29-AP29)/3 -> 19.554526 | AS29: =0.0214*($AD$29)^2-0.6471*$AD$29+22 -> 21.02201196 | AT29: =AU29-(AU29-AS29)/2 -> 21.49278179 | AU29: =0.0229*($AD$29)^2-0.8143*$AD$29+26.5 -> 21.96355162 | AV29: =+AU29+AU29-AT29 -> 22.43432146 | AW29: =+AV29+AV29-AU29 -> 22.90509129 | AX29: =+AW29+AW29-AV29 -> 23.37586113 | AY29: 23.84663096 | AZ29: =ROUND(HLOOKUP($AC$16,$AP$18:$AY$38,12,FALSE)/100,2) -> 0.2 | BA29: =IF(AC29<=$BB$18,BB29,IF(AND(AC29>$BB$18,AC29<=$BC$18),BC29,IF(AND(AC29>$BC$18,AC29<=$BD$18),BD29,IF(AND(AC29>$BD$18,AC29<=$BE$18),BE29,IF(AND(AC29>$BE$18,AC29<=$BF$18),BF29,IF(AND(AC29>$BF$18,AC29<=$BG$18),BG29,IF(AND(AC29>$BG$18,AC29<=$BH$18),BH29,IF(AC29>$BH$18,BH29)))))))) -> 2 | BB29: 1 | BC29: 1 | BD29: 2 | BE29: 2 | BF29: 2 | BG29: 2 | BH29: 2 | BI29: =IF(AC29<=$BJ$18,BJ29,IF(AND(AC29>$BJ$18,AC29<=$BK$18),BK29,IF(AND(AC29>$BK$18,AC29<=$BL$18),BL29,IF(AND(AC29>$BL$18,AC29<=$BM$18),BM29,IF(AND(AC29>$BM$18,AC29<=$BN$18),BN29,IF(AND(AC29>$BN$18,AC29<=$BO$18),BO29,IF(AND(AC29>$BO$18,AC29<=$BP$18),BP29,IF(AC29>$BP$18,BP29)))))))) -> 125 | BJ29: 125 | BK29: 140 | BL29: 125 | BM29: 125 | BN29: 140 | BO29: 160 | BP29: 160 | BQ29: =IF(OR($E$5=$AD$5,$E$5=$AD$6,$E$5=$AD$7,$E$5=$AD$8),G29,IF(OR($E$5=$AD$9,$E$5=$AD$10,$E$5=$AD$11,$E$5=$AD$12),G29/0.5875)) -> 250 | BR29: =+IF(AD29<0,0,AD29) -> 28.64278965 | BS29: =(-0.000023788293*BI29^3 + 0.006551313626*BI29^2 - 0.573673222638*BI29 + 42.996345567831)*LN((BQ29*(AC29/1000))/BA29)+(0.000099312149*BI29^3 - 0.024864140926*BI29^2 + 1.505393168403*BI29 - 101.04319263046)+10*LOG(BA29) -> 26.88974198 | BT29: =62.1456597122*LOG(BQ29) -121.8124227521+10*LOG(AC29/1000) -> 27.20914104 | BU29: =10*LOG(10^(0.1*BS29)+10^(0.1*BT29)) -> 30.06267705 | BV29: LDB style/4 | BW29: DLU | BX29: 0° | BY29: =IF(OR($E$5=$AD$5,$E$5=$AD$6,$E$5=$AD$7,$E$5=$AD$8),G29*(AC29/1000),((G29*0.5875)*(AC29/1000))*0.5875) -> 50.69482422
AD30: =IF(OR($E$5=$AD$5,$E$5=$AD$6,$E$5=$AD$7,$E$5=$AD$8),+(LN(G29/4*3)-LN(86.228))/0.0323,IF(OR($E$5=$AD$9,$E$5=$AD$10,$E$5=$AD$11,$E$5=$AD$12),+(LN(G29/4*3/0.5875)-LN(86.228))/0.0323)) -> 24.04903698 | AE30: Keine Messergebnisse, Dezugswertformel vom 3-Schlitzigen / 4 * 3, Druckverlust ebenfalls 3-Schlitzige Fromel benutzt. Geschwindigkeit und Akustik Formeln vom classic 4-Schlitzigen übernommen
E31: =IF($E$4=$AC$3,Legende!A24,IF($E$4=$AC$4,Legende!B24,IF($E$4=$AC$5,Legende!C24,IF($E$4=$AC$6,Legende!D24)))) -> LDB 20 classic | F31: =IF($E$4=$AC$3,Legende!A26,IF($E$4=$AC$4,Legende!B26,IF($E$4=$AC$5,Legende!C26,IF($E$4=$AC$6,Legende!D26)))) -> 1-slot | G31: 52.875 | H31: =IF(OR($E$5=$AD$5,$E$5=$AD$6,$E$5=$AD$7,$E$5=$AD$8),"m³/(h*m)",IF(OR($E$5=$AD$9,$E$5=$AD$10,$E$5=$AD$11,$E$5=$AD$12),"cfm/ft","")) -> cfm/ft | I31: =IF(OR($E$5=$AD$5,$E$5=$AD$6,$E$5=$AD$7,$E$5=$AD$8),130,IF(OR($E$5=$AD$9,$E$5=$AD$10,$E$5=$AD$11,$E$5=$AD$12),130*0.5875,"")) -> 76.375 | J31: =IF(OR($E$5=$AD$5,$E$5=$AD$6,$E$5=$AD$7,$E$5=$AD$8),"m³/(h*m)",IF(OR($E$5=$AD$9,$E$5=$AD$10,$E$5=$AD$11,$E$5=$AD$12),"cfm","")) -> cfm | K31: 48,75 in | L31: =IF((ROUNDUP($L$6/(G31*AC31/1000),0))=0,1,ROUNDUP($L$6/(G31*AC31/1000),0)) -> 9 | M31: =IF(OR($E$5=$AD$5,$E$5=$AD$6,$E$5=$AD$7,$E$5=$AD$8),AC31*L31/1000,IF(OR($E$5=$AD$9,$E$5=$AD$10,$E$5=$AD$11,$E$5=$AD$12),AC31*L31/1000*3.28084)) -> 36.90945 | N31: =IF(OR($E$5=$AD$5,$E$5=$AD$6,$E$5=$AD$7,$E$5=$AD$8),"m",IF(OR($E$5=$AD$9,$E$5=$AD$10,$E$5=$AD$11,$E$5=$AD$12),"ft","")) -> ft | O31: =ROUND(1.2244*EXP(0.0739*AD31),0) -> 10 | P31: =IF(OR($E$5=$AD$5,$E$5=$AD$6,$E$5=$AD$7,$E$5=$AD$8),AO31,IF(OR($E$5=$AD$9,$E$5=$AD$10,$E$5=$AD$11,$E$5=$AD$12),AO31*3.28084)) -> 7.545932 | Q31: =IF(OR($E$5=$AD$5,$E$5=$AD$6,$E$5=$AD$7,$E$5=$AD$8),"m",IF(OR($E$5=$AD$9,$E$5=$AD$10,$E$5=$AD$11,$E$5=$AD$12),"ft","")) -> ft | R31: =IF(OR($E$5=$AD$5,$E$5=$AD$6,$E$5=$AD$7,$E$5=$AD$8),AZ31,IF(OR($E$5=$AD$9,$E$5=$AD$10,$E$5=$AD$11,$E$5=$AD$12),AZ31*3.28084)) -> 0.5249344 | S31: =IF(OR($E$5=$AD$5,$E$5=$AD$6,$E$5=$AD$7,$E$5=$AD$8),"m/s",IF(OR($E$5=$AD$9,$E$5=$AD$10,$E$5=$AD$11,$E$5=$AD$12),"ft/s","")) -> ft/s | T31: =IF(OR($E$5=$AD$5,$E$5=$AD$6,$E$5=$AD$7,$E$5=$AD$8),ROUND(((34-$L$7)*((IF(AZ31<0.05,0.05,AZ31)-0.05)^0.62)*((0.37*IF(AZ31<0.05,0.05,AZ31)*40)+3.14)),0),IF(OR($E$5=$AD$9,$E$5=$AD$10,$E$5=$AD$11,$E$5=$AD$12),ROUND(((34-(($L$7-32)/1.8))*((IF(AZ31<0.05,0.05,AZ31)-0.05)^0.62)*((0.37*IF(AZ31<0.05,0.05,AZ31)*40)+3.14)),0))) -> 11 | U31: =IF(T31<10,"A",IF(T31<20,"B",IF(T31<30,"C","keine"))) -> B | V31: =ROUNDDOWN(IF(BU31<15,15,BU31),1) -> 30.8 | W31: 1952 | X31: cfm | Y31: =ROUNDDOWN(10*LOG(L31*10^(0.1*V31))-$L$9,1) -> 33.9 | AC31: 1250 | AD31: =IF(OR($E$5=$AD$5,$E$5=$AD$6,$E$5=$AD$7,$E$5=$AD$8),+(LN(G31)-LN(31.634))/0.0362,IF(OR($E$5=$AD$9,$E$5=$AD$10,$E$5=$AD$11,$E$5=$AD$12),+(LN(G31/0.5875)-LN(31.634))/0.0362)) -> 28.88334748 | AE31: =0.6716*EXP(0.0492*$AD$31) -> 2.781438785 | AF31: =+AE31+(AH31-AE31)/3 -> 2.544222199 | AG31: =+(AF31+AH31)/2 -> 2.307005613 | AH31: =0.5159*EXP(0.0481*$AD$31) -> 2.069789028 | AI31: =+(AH31+AJ31)/2 -> 1.865771913 | AJ31: =+(AH31+AL31)/2 -> 1.661754797 | AK31: =+(AJ31+AL31)/2 -> 1.457737682 | AL31: =0.2341*EXP(0.0581*$AD$31) -> 1.253720567 | AM31: =+(AL31+AN31)/2 -> 1.049703452 | AN31: =+AL31+AL31-AJ31 -> 0.8456863368 | AO31: =ROUND(HLOOKUP($AC$16,$AE$18:$AN$38,14,FALSE),1) -> 2.3 | AP31: =0.005*($AD$31)^2-0.1479*$AD$31+14.514 -> 14.41339172 | AQ31: =AR31-(AR31-AP31)/2 -> 15.19001647 | AR31: =AS31-(AS31-AP31)/3 -> 15.96664122 | AS31: =0.0064*($AD$31)^2-0.215*$AD$31+17.614 -> 16.74326597 | AT31: =AU31-(AU31-AS31)/2 -> 17.27926409 | AU31: =AV31-(AV31-AS31)/3 -> 17.8152622 | AV31: =AW31-(AW31-AS31)/4 -> 18.35126032 | AW31: =0.0054*($AD$31)^2-0.1982*$AD$31+20.107 -> 18.88725844 | AX31: 19.42325656 | AY31: 19.95925468 | AZ31: =ROUND(HLOOKUP($AC$16,$AP$18:$AY$38,14,FALSE)/100,2) -> 0.16 | BA31: =IF(AC31<=$BB$18,BB31,IF(AND(AC31>$BB$18,AC31<=$BC$18),BC31,IF(AND(AC31>$BC$18,AC31<=$BD$18),BD31,IF(AND(AC31>$BD$18,AC31<=$BE$18),BE31,IF(AND(AC31>$BE$18,AC31<=$BF$18),BF31,IF(AND(AC31>$BF$18,AC31<=$BG$18),BG31,IF(AND(AC31>$BG$18,AC31<=$BH$18),BH31,IF(AC31>$BH$18,BH31)))))))) -> 2 | BB31: 1 | BC31: 1 | BD31: 1 | BE31: 2 | BF31: 2 | BG31: 2 | BH31: 2 | BI31: =IF(AC31<=$BJ$18,BJ31,IF(AND(AC31>$BJ$18,AC31<=$BK$18),BK31,IF(AND(AC31>$BK$18,AC31<=$BL$18),BL31,IF(AND(AC31>$BL$18,AC31<=$BM$18),BM31,IF(AND(AC31>$BM$18,AC31<=$BN$18),BN31,IF(AND(AC31>$BN$18,AC31<=$BO$18),BO31,IF(AND(AC31>$BO$18,AC31<=$BP$18),BP31,IF(AC31>$BP$18,BP31)))))))) -> 100 | BJ31: 100 | BK31: 100 | BL31: 125 | BM31: 100 | BN31: 100 | BO31: 125 | BP31: 125 | BQ31: =IF(OR($E$5=$AD$5,$E$5=$AD$6,$E$5=$AD$7,$E$5=$AD$8),G31,IF(OR($E$5=$AD$9,$E$5=$AD$10,$E$5=$AD$11,$E$5=$AD$12),G31/0.5875)) -> 90 | BR31: =+IF(AD31<0,0,AD31) -> 28.88334748 | BS31: =(-0.0022355889*(BI31)^2 + 0.4201809847*BI31 + 5.399628589)*LN((BQ31*(AC31/1000))/BA31)+(-0.0000029509*(BI31)^3 + 0.0099403371*(BI31)^2 - 1.9777335627*BI31+ 21.5271635053)+10*LOG(BA31) -> 24.2109246 | BT31: =54.6883629879*LOG(BQ31) -78.1021786699+10*LOG(AC31/1000) -> 29.74124518 | BU31: =10*LOG(10^(0.1*BS31)+10^(0.1*BT31)) -> 30.81292913 | BV31: LDB classic/1 | BW31: DLU | BX31: 0° | BY31: =IF(OR($E$5=$AD$5,$E$5=$AD$6,$E$5=$AD$7,$E$5=$AD$8),G31*(AC31/1000),((G31*0.5875)*(AC31/1000))*0.5875) -> 22.8126709
E32: =IF($E$4=$AC$3,Legende!A24,IF($E$4=$AC$4,Legende!B24,IF($E$4=$AC$5,Legende!C24,IF($E$4=$AC$6,Legende!D24)))) -> LDB 20 classic | F32: =IF($E$4=$AC$3,Legende!A27,IF($E$4=$AC$4,Legende!B27,IF($E$4=$AC$5,Legende!C27,IF($E$4=$AC$6,Legende!D27)))) -> 2-slot | G32: 94 | H32: =IF(OR($E$5=$AD$5,$E$5=$AD$6,$E$5=$AD$7,$E$5=$AD$8),"m³/(h*m)",IF(OR($E$5=$AD$9,$E$5=$AD$10,$E$5=$AD$11,$E$5=$AD$12),"cfm/ft","")) -> cfm/ft | I32: =IF(OR($E$5=$AD$5,$E$5=$AD$6,$E$5=$AD$7,$E$5=$AD$8),190,IF(OR($E$5=$AD$9,$E$5=$AD$10,$E$5=$AD$11,$E$5=$AD$12),190*0.5875,"")) -> 111.625 | J32: =IF(OR($E$5=$AD$5,$E$5=$AD$6,$E$5=$AD$7,$E$5=$AD$8),"m³/(h*m)",IF(OR($E$5=$AD$9,$E$5=$AD$10,$E$5=$AD$11,$E$5=$AD$12),"cfm","")) -> cfm | K32: 39,00 in | L32: =IF((ROUNDUP($L$6/(G32*AC32/1000),0))=0,1,ROUNDUP($L$6/(G32*AC32/1000),0)) -> 7 | M32: =IF(OR($E$5=$AD$5,$E$5=$AD$6,$E$5=$AD$7,$E$5=$AD$8),AC32*L32/1000,IF(OR($E$5=$AD$9,$E$5=$AD$10,$E$5=$AD$11,$E$5=$AD$12),AC32*L32/1000*3.28084)) -> 22.96588 | N32: =IF(OR($E$5=$AD$5,$E$5=$AD$6,$E$5=$AD$7,$E$5=$AD$8),"m",IF(OR($E$5=$AD$9,$E$5=$AD$10,$E$5=$AD$11,$E$5=$AD$12),"ft","")) -> ft | O32: =ROUND(1.0351*EXP(0.0668*AD32),0) -> 9 | P32: =IF(OR($E$5=$AD$5,$E$5=$AD$6,$E$5=$AD$7,$E$5=$AD$8),AO32,IF(OR($E$5=$AD$9,$E$5=$AD$10,$E$5=$AD$11,$E$5=$AD$12),AO32*3.28084)) -> 11.48294 | Q32: =IF(OR($E$5=$AD$5,$E$5=$AD$6,$E$5=$AD$7,$E$5=$AD$8),"m",IF(OR($E$5=$AD$9,$E$5=$AD$10,$E$5=$AD$11,$E$5=$AD$12),"ft","")) -> ft | R32: =IF(OR($E$5=$AD$5,$E$5=$AD$6,$E$5=$AD$7,$E$5=$AD$8),AZ32,IF(OR($E$5=$AD$9,$E$5=$AD$10,$E$5=$AD$11,$E$5=$AD$12),AZ32*3.28084)) -> 0.6233596 | S32: =IF(OR($E$5=$AD$5,$E$5=$AD$6,$E$5=$AD$7,$E$5=$AD$8),"m/s",IF(OR($E$5=$AD$9,$E$5=$AD$10,$E$5=$AD$11,$E$5=$AD$12),"ft/s","")) -> ft/s | T32: =IF(OR($E$5=$AD$5,$E$5=$AD$6,$E$5=$AD$7,$E$5=$AD$8),ROUND(((34-$L$7)*((IF(AZ32<0.05,0.05,AZ32)-0.05)^0.62)*((0.37*IF(AZ32<0.05,0.05,AZ32)*40)+3.14)),0),IF(OR($E$5=$AD$9,$E$5=$AD$10,$E$5=$AD$11,$E$5=$AD$12),ROUND(((34-(($L$7-32)/1.8))*((IF(AZ32<0.05,0.05,AZ32)-0.05)^0.62)*((0.37*IF(AZ32<0.05,0.05,AZ32)*40)+3.14)),0))) -> 14 | U32: =IF(T32<10,"A",IF(T32<20,"B",IF(T32<30,"C","keine"))) -> B | V32: =ROUNDDOWN(IF(BU32<15,15,BU32),1) -> 32.8 | W32: 2159 | X32: cfm | Y32: =ROUNDDOWN(10*LOG(L32*10^(0.1*V32))-$L$9,1) -> 34.8 | AC32: 1000 | AD32: =IF(OR($E$5=$AD$5,$E$5=$AD$6,$E$5=$AD$7,$E$5=$AD$8),+(LN(G32)-LN(56.314))/0.0325,IF(OR($E$5=$AD$9,$E$5=$AD$10,$E$5=$AD$11,$E$5=$AD$12),+(LN(G32/0.5875)-LN(56.314))/0.0325)) -> 32.13017364 | AE32: =0.8253*EXP(0.0508*$AD$32) -> 4.22155903 | AF32: =+AE32+(AH32-AE32)/3 -> 3.862070016 | AG32: =+(AF32+AH32)/2 -> 3.502581002 | AH32: =0.558*EXP(0.0538*$AD$32) -> 3.143091988 | AI32: =+(AH32+AJ32)/2 -> 2.903579755 | AJ32: =+(AH32+AL32)/2 -> 2.664067523 | AK32: =+(AJ32+AL32)/2 -> 2.42455529 | AL32: =0.3078*EXP(0.061*$AD$32) -> 2.185043057 | AM32: =+(AL32+AN32)/2 -> 1.945530825 | AN32: =+AL32+AL32-AJ32 -> 1.706018592 | AO32: =ROUND(HLOOKUP($AC$16,$AE$18:$AN$38,15,FALSE),1) -> 3.5 | AP32: =0.0057*($AD$32)^2-0.0686*$AD$32+18 -> 21.68025402 | AQ32: =AR32-(AR32-AP32)/2 -> 20.51819205 | AR32: =AS32-(AS32-AP32)/3 -> 19.35613008 | AS32: =0.0068*($AD$32)^2-0.1882*$AD$32+17.221 -> 18.19406812 | AT32: =AU32-(AU32-AS32)/2 -> 19.03297417 | AU32: =AV32-(AV32-AS32)/3 -> 19.87188023 | AV32: =AW32-(AW32-AS32)/4 -> 20.71078628 | AW32: =0.0286*($AD$32)^2-1.3771*$AD$32+36.271 -> 21.54969234 | AX32: 22.3885984 | AY32: 23.22750445 | AZ32: =ROUND(HLOOKUP($AC$16,$AP$18:$AY$38,15,FALSE)/100,2) -> 0.19 | BA32: =IF(AC32<=$BB$18,BB32,IF(AND(AC32>$BB$18,AC32<=$BC$18),BC32,IF(AND(AC32>$BC$18,AC32<=$BD$18),BD32,IF(AND(AC32>$BD$18,AC32<=$BE$18),BE32,IF(AND(AC32>$BE$18,AC32<=$BF$18),BF32,IF(AND(AC32>$BF$18,AC32<=$BG$18),BG32,IF(AND(AC32>$BG$18,AC32<=$BH$18),BH32,IF(AC32>$BH$18,BH32)))))))) -> 1 | BB32: 1 | BC32: 1 | BD32: 1 | BE32: 2 | BF32: 2 | BG32: 2 | BH32: 2 | BI32: =IF(AC32<=$BJ$18,BJ32,IF(AND(AC32>$BJ$18,AC32<=$BK$18),BK32,IF(AND(AC32>$BK$18,AC32<=$BL$18),BL32,IF(AND(AC32>$BL$18,AC32<=$BM$18),BM32,IF(AND(AC32>$BM$18,AC32<=$BN$18),BN32,IF(AND(AC32>$BN$18,AC32<=$BO$18),BO32,IF(AND(AC32>$BO$18,AC32<=$BP$18),BP32,IF(AC32>$BP$18,BP32)))))))) -> 125 | BJ32: 100 | BK32: 125 | BL32: 125 | BM32: 100 | BN32: 125 | BO32: 125 | BP32: 125 | BQ32: =IF(OR($E$5=$AD$5,$E$5=$AD$6,$E$5=$AD$7,$E$5=$AD$8),G32,IF(OR($E$5=$AD$9,$E$5=$AD$10,$E$5=$AD$11,$E$5=$AD$12),G32/0.5875)) -> 160 | BR32: =+IF(AD32<0,0,AD32) -> 32.13017364 | BS32: =(0.000000036775*BI32^4 - 0.000097789296*BI32^3 + 0.031851098925*BI32^2 - 3.518164042311*BI32 + 153.06267686179)*LN((BQ32*(AC32/1000))/BA32)+(-0.000001589267*BI32^4 + 0.001198286334*BI32^3 - 0.287868077763*BI32^2 + 27.229051331336*BI32- 974.551194289673) -> 30.46180723 | BT32: =53.6850931947*LOG(BQ32) -89.3138537125+10*LOG(AC32/1000) -> 29.01453297 | BU32: =10*LOG(10^(0.1*BS32)+10^(0.1*BT32)) -> 32.80848066 | BV32: LDB classic/2 | BW32: DLU | BX32: 0° | BY32: =IF(OR($E$5=$AD$5,$E$5=$AD$6,$E$5=$AD$7,$E$5=$AD$8),G32*(AC32/1000),((G32*0.5875)*(AC32/1000))*0.5875) -> 32.4446875
E33: =IF($E$4=$AC$3,Legende!A24,IF($E$4=$AC$4,Legende!B24,IF($E$4=$AC$5,Legende!C24,IF($E$4=$AC$6,Legende!D24)))) -> LDB 20 classic | F33: =IF($E$4=$AC$3,Legende!A28,IF($E$4=$AC$4,Legende!B28,IF($E$4=$AC$5,Legende!C28,IF($E$4=$AC$6,Legende!D28)))) -> 3-slot | G33: 146.875 | H33: =IF(OR($E$5=$AD$5,$E$5=$AD$6,$E$5=$AD$7,$E$5=$AD$8),"m³/(h*m)",IF(OR($E$5=$AD$9,$E$5=$AD$10,$E$5=$AD$11,$E$5=$AD$12),"cfm/ft","")) -> cfm/ft | I33: =IF(OR($E$5=$AD$5,$E$5=$AD$6,$E$5=$AD$7,$E$5=$AD$8),250,IF(OR($E$5=$AD$9,$E$5=$AD$10,$E$5=$AD$11,$E$5=$AD$12),250*0.5875,"")) -> 146.875 | J33: =IF(OR($E$5=$AD$5,$E$5=$AD$6,$E$5=$AD$7,$E$5=$AD$8),"m³/(h*m)",IF(OR($E$5=$AD$9,$E$5=$AD$10,$E$5=$AD$11,$E$5=$AD$12),"cfm","")) -> cfm | K33: 48,75 in | L33: =IF((ROUNDUP($L$6/(G33*AC33/1000),0))=0,1,ROUNDUP($L$6/(G33*AC33/1000),0)) -> 4 | M33: =IF(OR($E$5=$AD$5,$E$5=$AD$6,$E$5=$AD$7,$E$5=$AD$8),AC33*L33/1000,IF(OR($E$5=$AD$9,$E$5=$AD$10,$E$5=$AD$11,$E$5=$AD$12),AC33*L33/1000*3.28084)) -> 16.4042 | N33: =IF(OR($E$5=$AD$5,$E$5=$AD$6,$E$5=$AD$7,$E$5=$AD$8),"m",IF(OR($E$5=$AD$9,$E$5=$AD$10,$E$5=$AD$11,$E$5=$AD$12),"ft","")) -> ft | O33: =ROUND(0.7972*EXP(0.0692*AD33),0) -> 9 | P33: =IF(OR($E$5=$AD$5,$E$5=$AD$6,$E$5=$AD$7,$E$5=$AD$8),AO33,IF(OR($E$5=$AD$9,$E$5=$AD$10,$E$5=$AD$11,$E$5=$AD$12),AO33*3.28084)) -> 16.4042 | Q33: =IF(OR($E$5=$AD$5,$E$5=$AD$6,$E$5=$AD$7,$E$5=$AD$8),"m",IF(OR($E$5=$AD$9,$E$5=$AD$10,$E$5=$AD$11,$E$5=$AD$12),"ft","")) -> ft | R33: =IF(OR($E$5=$AD$5,$E$5=$AD$6,$E$5=$AD$7,$E$5=$AD$8),AZ33,IF(OR($E$5=$AD$9,$E$5=$AD$10,$E$5=$AD$11,$E$5=$AD$12),AZ33*3.28084)) -> 0.7217848 | S33: =IF(OR($E$5=$AD$5,$E$5=$AD$6,$E$5=$AD$7,$E$5=$AD$8),"m/s",IF(OR($E$5=$AD$9,$E$5=$AD$10,$E$5=$AD$11,$E$5=$AD$12),"ft/s","")) -> ft/s | T33: =IF(OR($E$5=$AD$5,$E$5=$AD$6,$E$5=$AD$7,$E$5=$AD$8),ROUND(((34-$L$7)*((IF(AZ33<0.05,0.05,AZ33)-0.05)^0.62)*((0.37*IF(AZ33<0.05,0.05,AZ33)*40)+3.14)),0),IF(OR($E$5=$AD$9,$E$5=$AD$10,$E$5=$AD$11,$E$5=$AD$12),ROUND(((34-(($L$7-32)/1.8))*((IF(AZ33<0.05,0.05,AZ33)-0.05)^0.62)*((0.37*IF(AZ33<0.05,0.05,AZ33)*40)+3.14)),0))) -> 17 | U33: =IF(T33<10,"A",IF(T33<20,"B",IF(T33<30,"C","keine"))) -> B | V33: =ROUNDDOWN(IF(BU33<15,15,BU33),1) -> 31.2 | W33: 2409 | X33: cfm | Y33: =ROUNDDOWN(10*LOG(L33*10^(0.1*V33))-$L$9,1) -> 30.8 | AC33: 1250 | AD33: =IF(OR($E$5=$AD$5,$E$5=$AD$6,$E$5=$AD$7,$E$5=$AD$8),+(LN(G33)-LN(74.282))/0.0342,IF(OR($E$5=$AD$9,$E$5=$AD$10,$E$5=$AD$11,$E$5=$AD$12),+(LN(G33/0.5875)-LN(74.282))/0.0342)) -> 35.4851537 | AE33: =0.6244*EXP(0.0654*$AD$33) -> 6.358324897 | AF33: =+AE33+(AH33-AE33)/3 -> 5.677514582 | AG33: =+(AF33+AH33)/2 -> 4.996704266 | AH33: =0.4407*EXP(0.0643*$AD$33) -> 4.315893951 | AI33: =+(AH33+AJ33)/2 -> 4.066710805 | AJ33: =+(AH33+AL33)/2 -> 3.817527659 | AK33: =+(AJ33+AL33)/2 -> 3.568344513 | AL33: =0.2489*EXP(0.073*$AD$33) -> 3.319161367 | AM33: =+(AL33+AN33)/2 -> 3.069978221 | AN33: =+AL33+AL33-AJ33 -> 2.820795075 | AO33: =ROUND(HLOOKUP($AC$16,$AE$18:$AN$38,16,FALSE),1) -> 5 | AP33: =0.005*($AD$33)^2-0.105*$AD$33+15.525 -> 18.09503953 | AQ33: =AR33-(AR33-AP33)/2 -> 19.88466614 | AR33: =AS33-(AS33-AP33)/3 -> 21.67429276 | AS33: =0.0129*($AD$33)^2-0.3529*$AD$33+19.743 -> 23.46391938 | AT33: =AU33-(AU33-AS33)/2 -> 24.75000387 | AU33: =0.0196*($AD$33)^2-0.6496*$AD$33+24.407 -> 26.03608837 | AV33: =+AU33+AU33-AT33 -> 27.32217286 | AW33: =+AV33+AV33-AU33 -> 28.60825736 | AX33: 29.89434185 | AY33: 31.18042635 | AZ33: =ROUND(HLOOKUP($AC$16,$AP$18:$AY$38,16,FALSE)/100,2) -> 0.22 | BA33: =IF(AC33<=$BB$18,BB33,IF(AND(AC33>$BB$18,AC33<=$BC$18),BC33,IF(AND(AC33>$BC$18,AC33<=$BD$18),BD33,IF(AND(AC33>$BD$18,AC33<=$BE$18),BE33,IF(AND(AC33>$BE$18,AC33<=$BF$18),BF33,IF(AND(AC33>$BF$18,AC33<=$BG$18),BG33,IF(AND(AC33>$BG$18,AC33<=$BH$18),BH33,IF(AC33>$BH$18,BH33)))))))) -> 2 | BB33: 1 | BC33: 1 | BD33: 1 | BE33: 2 | BF33: 2 | BG33: 2 | BH33: 3 | BI33: =IF(AC33<=$BJ$18,BJ33,IF(AND(AC33>$BJ$18,AC33<=$BK$18),BK33,IF(AND(AC33>$BK$18,AC33<=$BL$18),BL33,IF(AND(AC33>$BL$18,AC33<=$BM$18),BM33,IF(AND(AC33>$BM$18,AC33<=$BN$18),BN33,IF(AND(AC33>$BN$18,AC33<=$BO$18),BO33,IF(AND(AC33>$BO$18,AC33<=$BP$18),BP33,IF(AC33>$BP$18,BP33)))))))) -> 140 | BJ33: 125 | BK33: 140 | BL33: 140 | BM33: 140 | BN33: 140 | BO33: 140 | BP33: 140 | BQ33: =IF(OR($E$5=$AD$5,$E$5=$AD$6,$E$5=$AD$7,$E$5=$AD$8),G33,IF(OR($E$5=$AD$9,$E$5=$AD$10,$E$5=$AD$11,$E$5=$AD$12),G33/0.5875)) -> 250 | BR33: =+IF(AD33<0,0,AD33) -> 35.4851537 | BS33: =(-0.000023788293*BI33^3 + 0.006551313626*BI33^2 - 0.573673222638*BI33 + 42.996345567831)*LN((BQ33*(AC33/1000))/BA33)+(0.000099312149*BI33^3 - 0.024864140926*BI33^2 + 1.505393168403*BI33 - 101.04319263046)+10*LOG(BA33) -> 28.28960791 | BT33: =65.3168380226*LOG(BQ33) -129.3287746354+10*LOG(AC33/1000) -> 28.26618463 | BU33: =10*LOG(10^(0.1*BS33)+10^(0.1*BT33)) -> 31.28821202 | BV33: LDB classic/3 | BW33: DLU | BX33: 0° | BY33: =IF(OR($E$5=$AD$5,$E$5=$AD$6,$E$5=$AD$7,$E$5=$AD$8),G33*(AC33/1000),((G33*0.5875)*(AC33/1000))*0.5875) -> 63.36853027
E34: =IF($E$4=$AC$3,Legende!A24,IF($E$4=$AC$4,Legende!B24,IF($E$4=$AC$5,Legende!C24,IF($E$4=$AC$6,Legende!D24)))) -> LDB 20 classic | F34: =IF($E$4=$AC$3,Legende!A29,IF($E$4=$AC$4,Legende!B29,IF($E$4=$AC$5,Legende!C29,IF($E$4=$AC$6,Legende!D29)))) -> 4-slot | G34: 176.25 | H34: =IF(OR($E$5=$AD$5,$E$5=$AD$6,$E$5=$AD$7,$E$5=$AD$8),"m³/(h*m)",IF(OR($E$5=$AD$9,$E$5=$AD$10,$E$5=$AD$11,$E$5=$AD$12),"cfm/ft","")) -> cfm/ft | I34: =IF(OR($E$5=$AD$5,$E$5=$AD$6,$E$5=$AD$7,$E$5=$AD$8),300,IF(OR($E$5=$AD$9,$E$5=$AD$10,$E$5=$AD$11,$E$5=$AD$12),300*0.5875,"")) -> 176.25 | J34: =IF(OR($E$5=$AD$5,$E$5=$AD$6,$E$5=$AD$7,$E$5=$AD$8),"m³/(h*m)",IF(OR($E$5=$AD$9,$E$5=$AD$10,$E$5=$AD$11,$E$5=$AD$12),"cfm","")) -> cfm | K34: 78,00 in | L34: =IF((ROUNDUP($L$6/(G34*AC34/1000),0))=0,1,ROUNDUP($L$6/(G34*AC34/1000),0)) -> 2 | M34: =IF(OR($E$5=$AD$5,$E$5=$AD$6,$E$5=$AD$7,$E$5=$AD$8),AC34*L34/1000,IF(OR($E$5=$AD$9,$E$5=$AD$10,$E$5=$AD$11,$E$5=$AD$12),AC34*L34/1000*3.28084)) -> 13.12336 | N34: =IF(OR($E$5=$AD$5,$E$5=$AD$6,$E$5=$AD$7,$E$5=$AD$8),"m",IF(OR($E$5=$AD$9,$E$5=$AD$10,$E$5=$AD$11,$E$5=$AD$12),"ft","")) -> ft | O34: =ROUND(0.705*EXP(0.0677*AD34),0) -> 7 | P34: =IF(OR($E$5=$AD$5,$E$5=$AD$6,$E$5=$AD$7,$E$5=$AD$8),AO34,IF(OR($E$5=$AD$9,$E$5=$AD$10,$E$5=$AD$11,$E$5=$AD$12),AO34*3.28084)) -> 15.419948 | Q34: =IF(OR($E$5=$AD$5,$E$5=$AD$6,$E$5=$AD$7,$E$5=$AD$8),"m",IF(OR($E$5=$AD$9,$E$5=$AD$10,$E$5=$AD$11,$E$5=$AD$12),"ft","")) -> ft | R34: =IF(OR($E$5=$AD$5,$E$5=$AD$6,$E$5=$AD$7,$E$5=$AD$8),AZ34,IF(OR($E$5=$AD$9,$E$5=$AD$10,$E$5=$AD$11,$E$5=$AD$12),AZ34*3.28084)) -> 0.7217848 | S34: =IF(OR($E$5=$AD$5,$E$5=$AD$6,$E$5=$AD$7,$E$5=$AD$8),"m/s",IF(OR($E$5=$AD$9,$E$5=$AD$10,$E$5=$AD$11,$E$5=$AD$12),"ft/s","")) -> ft/s | T34: =IF(OR($E$5=$AD$5,$E$5=$AD$6,$E$5=$AD$7,$E$5=$AD$8),ROUND(((34-$L$7)*((IF(AZ34<0.05,0.05,AZ34)-0.05)^0.62)*((0.37*IF(AZ34<0.05,0.05,AZ34)*40)+3.14)),0),IF(OR($E$5=$AD$9,$E$5=$AD$10,$E$5=$AD$11,$E$5=$AD$12),ROUND(((34-(($L$7-32)/1.8))*((IF(AZ34<0.05,0.05,AZ34)-0.05)^0.62)*((0.37*IF(AZ34<0.05,0.05,AZ34)*40)+3.14)),0))) -> 17 | U34: =IF(T34<10,"A",IF(T34<20,"B",IF(T34<30,"C","keine"))) -> B | V34: =ROUNDDOWN(IF(BU34<15,15,BU34),1) -> 36.3 | W34: 2313 | X34: cfm | Y34: =ROUNDDOWN(10*LOG(L34*10^(0.1*V34))-$L$9,1) -> 32.9 | AC34: 2000 | AD34: =IF(OR($E$5=$AD$5,$E$5=$AD$6,$E$5=$AD$7,$E$5=$AD$8),+(LN(G34)-LN(87.631))/0.0366,IF(OR($E$5=$AD$9,$E$5=$AD$10,$E$5=$AD$11,$E$5=$AD$12),+(LN(G34/0.5875)-LN(87.631))/0.0366)) -> 33.62425295 | AE34: =0.5027*EXP(0.0724*$AD$34) -> 5.735266425 | AF34: =+AE34+(AH34-AE34)/3 -> 5.195090889 | AG34: =+(AF34+AH34)/2 -> 4.654915353 | AH34: =0.3174*EXP(0.0762*$AD$34) -> 4.114739816 | AI34: =+(AH34+AJ34)/2 -> 3.873602029 | AJ34: =+(AH34+AL34)/2 -> 3.632464242 | AK34: =+(AJ34+AL34)/2 -> 3.391326455 | AL34: =0.1882*EXP(0.0838*$AD$34) -> 3.150188668 | AM34: =+(AL34+AN34)/2 -> 2.90905088 | AN34: =+AL34+AL34-AJ34 -> 2.667913093 | AO34: =ROUND(HLOOKUP($AC$16,$AE$18:$AN$38,17,FALSE),1) -> 4.7 | AP34: =0.005*($AD$34)^2-0.105*$AD$34+15.525 -> 17.64740537 | AQ34: =AR34-(AR34-AP34)/2 -> 19.91039698 | AR34: =AS34-(AS34-AP34)/3 -> 22.17338858 | AS34: =0.0214*($AD$34)^2-0.6471*$AD$34+22 -> 24.43638019 | AT34: =AU34-(AU34-AS34)/2 -> 24.72333543 | AU34: =0.0229*($AD$34)^2-0.8143*$AD$34+26.5 -> 25.01029067 | AV34: =+AU34+AU34-AT34 -> 25.29724592 | AW34: =+AV34+AV34-AU34 -> 25.58420116 | AX34: 25.8711564 | AY34: 26.15811165 | AZ34: =ROUND(HLOOKUP($AC$16,$AP$18:$AY$38,17,FALSE)/100,2) -> 0.22 | BA34: =IF(AC34<=$BB$18,BB34,IF(AND(AC34>$BB$18,AC34<=$BC$18),BC34,IF(AND(AC34>$BC$18,AC34<=$BD$18),BD34,IF(AND(AC34>$BD$18,AC34<=$BE$18),BE34,IF(AND(AC34>$BE$18,AC34<=$BF$18),BF34,IF(AND(AC34>$BF$18,AC34<=$BG$18),BG34,IF(AND(AC34>$BG$18,AC34<=$BH$18),BH34,IF(AC34>$BH$18,BH34)))))))) -> 4 | BB34: 1 | BC34: 1 | BD34: 2 | BE34: 2 | BF34: 3 | BG34: 3 | BH34: 4 | BI34: =IF(AC34<=$BJ$18,BJ34,IF(AND(AC34>$BJ$18,AC34<=$BK$18),BK34,IF(AND(AC34>$BK$18,AC34<=$BL$18),BL34,IF(AND(AC34>$BL$18,AC34<=$BM$18),BM34,IF(AND(AC34>$BM$18,AC34<=$BN$18),BN34,IF(AND(AC34>$BN$18,AC34<=$BO$18),BO34,IF(AND(AC34>$BO$18,AC34<=$BP$18),BP34,IF(AC34>$BP$18,BP34)))))))) -> 140 | BJ34: 140 | BK34: 140 | BL34: 140 | BM34: 140 | BN34: 140 | BO34: 140 | BP34: 140 | BQ34: =IF(OR($E$5=$AD$5,$E$5=$AD$6,$E$5=$AD$7,$E$5=$AD$8),G34,IF(OR($E$5=$AD$9,$E$5=$AD$10,$E$5=$AD$11,$E$5=$AD$12),G34/0.5875)) -> 300 | BR34: =+IF(AD34<0,0,AD34) -> 33.62425295 | BS34: =(-0.000023788293*BI34^3 + 0.006551313626*BI34^2 - 0.573673222638*BI34 + 42.996345567831)*LN((BQ34*(AC34/1000))/BA34)+(0.000099312149*BI34^3 - 0.024864140926*BI34^2 + 1.505393168403*BI34 - 101.04319263046)+10*LOG(BA34) -> 30.2461793 | BT34: =62.1456597122*LOG(BQ34) -121.8124227521+10*LOG(AC34/1000) -> 35.14021177 | BU34: =10*LOG(10^(0.1*BS34)+10^(0.1*BT34)) -> 36.35921824 | BV34: LDB classic/4 | BW34: DLU | BX34: 0° | BY34: =IF(OR($E$5=$AD$5,$E$5=$AD$6,$E$5=$AD$7,$E$5=$AD$8),G34*(AC34/1000),((G34*0.5875)*(AC34/1000))*0.5875) -> 121.6675781
BB35: 300 | BC35: 600 | BD35: 900 | BE35: 1200 | BF35: 1500 | BG35: 1800 | BH35: 2100 | BJ35: 300 | BK35: 600 | BL35: 900 | BM35: 1200 | BN35: 1500 | BO35: 1800 | BP35: 2100
E36: =IF($E$4=$AC$3,Legende!A25,IF($E$4=$AC$4,Legende!B25,IF($E$4=$AC$5,Legende!C25,IF($E$4=$AC$6,Legende!D25)))) -> LDB 50 maxx | F36: =IF($E$4=$AC$3,Legende!A26,IF($E$4=$AC$4,Legende!B26,IF($E$4=$AC$5,Legende!C26,IF($E$4=$AC$6,Legende!D26)))) -> 1-slot | G36: 164.5 | H36: =IF(OR($E$5=$AD$5,$E$5=$AD$6,$E$5=$AD$7,$E$5=$AD$8),"m³/(h*m)",IF(OR($E$5=$AD$9,$E$5=$AD$10,$E$5=$AD$11,$E$5=$AD$12),"cfm/ft","")) -> cfm/ft | I36: =IF(OR($E$5=$AD$5,$E$5=$AD$6,$E$5=$AD$7,$E$5=$AD$8),280,IF(OR($E$5=$AD$9,$E$5=$AD$10,$E$5=$AD$11,$E$5=$AD$12),280*0.5875,"")) -> 164.5 | J36: =IF(OR($E$5=$AD$5,$E$5=$AD$6,$E$5=$AD$7,$E$5=$AD$8),"m³/(h*m)",IF(OR($E$5=$AD$9,$E$5=$AD$10,$E$5=$AD$11,$E$5=$AD$12),"cfm","")) -> cfm | K36: 81,90 in | L36: =IF((ROUNDUP($L$6/(G36*AC36/1000),0))=0,1,ROUNDUP($L$6/(G36*AC36/1000),0)) -> 2 | M36: =IF(OR($E$5=$AD$5,$E$5=$AD$6,$E$5=$AD$7,$E$5=$AD$8),AC36*L36/1000,IF(OR($E$5=$AD$9,$E$5=$AD$10,$E$5=$AD$11,$E$5=$AD$12),AC36*L36/1000*3.28084)) -> 13.779528 | N36: =IF(OR($E$5=$AD$5,$E$5=$AD$6,$E$5=$AD$7,$E$5=$AD$8),"m",IF(OR($E$5=$AD$9,$E$5=$AD$10,$E$5=$AD$11,$E$5=$AD$12),"ft","")) -> ft | O36: =ROUND(1.6546*EXP(0.066*AD36),0) -> 15 | P36: =IF(OR($E$5=$AD$5,$E$5=$AD$6,$E$5=$AD$7,$E$5=$AD$8),AO36,IF(OR($E$5=$AD$9,$E$5=$AD$10,$E$5=$AD$11,$E$5=$AD$12),AO36*3.28084)) -> 16.4042 | Q36: =IF(OR($E$5=$AD$5,$E$5=$AD$6,$E$5=$AD$7,$E$5=$AD$8),"m",IF(OR($E$5=$AD$9,$E$5=$AD$10,$E$5=$AD$11,$E$5=$AD$12),"ft","")) -> ft | R36: =IF(OR(AND($E$5=$AD$5,$E$5=$AD$6,$E$5=$AD$7,$E$5=$AD$8),AZ36<>"-"),AZ36,IF(OR(AND($E$5=$AD$9,$E$5=$AD$10,$E$5=$AD$11,$E$5=$AD$12),AZ36<>"-"),AZ36*3.28084,"-")) -> 0.22 | S36: =IF(AND(OR($E$5=$AD$5,$E$5=$AD$6,$E$5=$AD$7,$E$5=$AD$8),R36<>"-"),"m/s",IF(AND(OR($E$5=$AD$9,$E$5=$AD$10,$E$5=$AD$11,$E$5=$AD$12),R36<>"-"),"ft/s","")) -> ft/s | T36: =IF(AZ36="-","-",IF(OR($E$5=$AD$5,$E$5=$AD$6,$E$5=$AD$7,$E$5=$AD$8),ROUND(((34-$L$7)*((IF(AZ36<0.05,0.05,AZ36)-0.05)^0.62)*((0.37*IF(AZ36<0.05,0.05,AZ36)*40)+3.14)),0),IF(OR($E$5=$AD$9,$E$5=$AD$10,$E$5=$AD$11,$E$5=$AD$12),ROUND(((34-(($L$7-32)/1.8))*((IF(AZ36<0.05,0.05,AZ36)-0.05)^0.62)*((0.37*IF(AZ36<0.05,0.05,AZ36)*40)+3.14)),0)))) -> 17 | U36: =IF(T36="-","-",IF(T36<10,"A",IF(T36<20,"B",IF(T36<30,"C","keine")))) -> B | V36: =ROUNDDOWN(IF(BU36<15,15,BU36),1) -> 36.9 | W36: 2267 | X36: cfm | Y36: =ROUNDDOWN(10*LOG(L36*10^(0.1*V36))-$L$9,1) -> 33.5 | AC36: 2100 | AD36: =IF(OR($E$5=$AD$5,$E$5=$AD$6,$E$5=$AD$7,$E$5=$AD$8),+(LN(G36)-LN(91.69))/0.0331,IF(OR($E$5=$AD$9,$E$5=$AD$10,$E$5=$AD$11,$E$5=$AD$12),+(LN(G36/0.5875)-LN(91.69))/0.0331)) -> 33.72738009 | AE36: =+((AF36-(AH36-AF36))+AF36)/2 -> 5.975818884 | AF36: =3.107*EXP(0.0169*$AD$36) -> 5.493965752 | AG36: =+(AF36+AH36)/2 -> 5.012112621 | AH36: =2.3469*EXP(0.0195*$AD$36) -> 4.530259489 | AI36: =+(AH36+AJ36)/2 -> 4.326363458 | AJ36: =+(AH36+AL36)/2 -> 4.122467427 | AK36: 3.918571396 | AL36: =1.7392*EXP(0.0225*$AD$36) -> 3.714675365 | AM36: =+(AL36+AN36)/2 -> 3.510779334 | AN36: =+AL36+AL36-AJ36 -> 3.306883303 | AO36: =ROUND(HLOOKUP($AC$16,$AE$18:$AN$38,19,FALSE),1) -> 5 | AP36: =+AS36-(AV36-AS36) -> 23.50741331 | AQ36: =+(AR36+AP36)/2 -> 22.79459371 | AR36: =+AS36-(AT36-AS36) -> 22.08177411 | AS36: =9.6405*EXP(0.0236*$AD$36) -> 21.36895451 | AT36: =AU36-(AU36-AS36)/2 -> 20.65613491 | AU36: =AV36-(AV36-AS36)/3 -> 19.94331531 | AV36: =AW36-(AW36-AS36)/4 -> 19.23049571 | AW36: =0.0086*($AD$36)^2-0.0714*$AD$36+11.143 -> 18.51767611 | AX36: - | AY36: - | AZ36: =IF(HLOOKUP($AC$16,$AP$18:$AY$38,19,FALSE)="-","-",ROUND(HLOOKUP($AC$16,$AP$18:$AY$38,19,FALSE)/100,2)) -> 0.22 | BA36: =IF(AC36<=$BB$35,BB36,IF(AND(AC36>$BB$35,AC36<=$BC$35),BC36,IF(AND(AC36>$BC$35,AC36<=$BD$35),BD36,IF(AND(AC36>$BD$35,AC36<=$BE$35),BE36,IF(AND(AC36>$BE$35,AC36<=$BF$35),BF36,IF(AND(AC36>$BF$35,AC36<=$BG$35),BG36,IF(AND(AC36>$BG$35,AC36<=$BH$35),BH36,IF(AC36>$BH$35,BH36)))))))) -> 3 | BB36: 1 | BC36: 1 | BD36: 2 | BE36: 2 | BF36: 3 | BG36: 3 | BH36: 3 | BI36: =IF(AC36<=$BJ$35,BJ36,IF(AND(AC36>$BJ$35,AC36<=$BK$35),BK36,IF(AND(AC36>$BK$35,AC36<=$BL$35),BL36,IF(AND(AC36>$BL$35,AC36<=$BM$35),BM36,IF(AND(AC36>$BM$35,AC36<=$BN$35),BN36,IF(AND(AC36>$BN$35,AC36<=$BO$35),BO36,IF(AND(AC36>$BO$35,AC36<=$BP$35),BP36,IF(AC36>$BP$35,BP36)))))))) -> 200 | BJ36: 200 | BK36: 200 | BL36: 200 | BM36: 200 | BN36: 200 | BO36: 200 | BP36: 200 | BQ36: =IF(OR($E$5=$AD$5,$E$5=$AD$6,$E$5=$AD$7,$E$5=$AD$8),G36,IF(OR($E$5=$AD$9,$E$5=$AD$10,$E$5=$AD$11,$E$5=$AD$12),G36/0.5875)) -> 280 | BR36: =+IF(AD36<0,0,AD36) -> 33.72738009 | BU36: =10*LOG((AC36/1000)*10^(0.1*BR36)) -> 36.94957304 | BV36: LDB maxx/1 | BW36: SDA | BX36: - | BY36: =IF(OR($E$5=$AD$5,$E$5=$AD$6,$E$5=$AD$7,$E$5=$AD$8),G36*(AC36/1000),((G36*0.5875)*(AC36/1000))*0.5875) -> 119.2342266
E37: =IF($E$4=$AC$3,Legende!A25,IF($E$4=$AC$4,Legende!B25,IF($E$4=$AC$5,Legende!C25,IF($E$4=$AC$6,Legende!D25)))) -> LDB 50 maxx | F37: =IF($E$4=$AC$3,Legende!A27,IF($E$4=$AC$4,Legende!B27,IF($E$4=$AC$5,Legende!C27,IF($E$4=$AC$6,Legende!D27)))) -> 2-slot | G37: 246.75 | H37: =IF(OR($E$5=$AD$5,$E$5=$AD$6,$E$5=$AD$7,$E$5=$AD$8),"m³/(h*m)",IF(OR($E$5=$AD$9,$E$5=$AD$10,$E$5=$AD$11,$E$5=$AD$12),"cfm/ft","")) -> cfm/ft | I37: =IF(OR($E$5=$AD$5,$E$5=$AD$6,$E$5=$AD$7,$E$5=$AD$8),650,IF(OR($E$5=$AD$9,$E$5=$AD$10,$E$5=$AD$11,$E$5=$AD$12),650*0.5875,"")) -> 381.875 | J37: =IF(OR($E$5=$AD$5,$E$5=$AD$6,$E$5=$AD$7,$E$5=$AD$8),"m³/(h*m)",IF(OR($E$5=$AD$9,$E$5=$AD$10,$E$5=$AD$11,$E$5=$AD$12),"cfm","")) -> cfm | K37: 58,50 in | L37: =IF((ROUNDUP($L$6/(G37*AC37/1000),0))=0,1,ROUNDUP($L$6/(G37*AC37/1000),0)) -> 2 | M37: =IF(OR($E$5=$AD$5,$E$5=$AD$6,$E$5=$AD$7,$E$5=$AD$8),AC37*L37/1000,IF(OR($E$5=$AD$9,$E$5=$AD$10,$E$5=$AD$11,$E$5=$AD$12),AC37*L37/1000*3.28084)) -> 9.84252 | N37: =IF(OR($E$5=$AD$5,$E$5=$AD$6,$E$5=$AD$7,$E$5=$AD$8),"m",IF(OR($E$5=$AD$9,$E$5=$AD$10,$E$5=$AD$11,$E$5=$AD$12),"ft","")) -> ft | O37: =ROUND(1.4423*EXP(0.0638*AD37),0) -> 14 | P37: =IF(OR($E$5=$AD$5,$E$5=$AD$6,$E$5=$AD$7,$E$5=$AD$8),AO37,IF(OR($E$5=$AD$9,$E$5=$AD$10,$E$5=$AD$11,$E$5=$AD$12),AO37*3.28084)) -> 15.748032 | Q37: =IF(OR($E$5=$AD$5,$E$5=$AD$6,$E$5=$AD$7,$E$5=$AD$8),"m",IF(OR($E$5=$AD$9,$E$5=$AD$10,$E$5=$AD$11,$E$5=$AD$12),"ft","")) -> ft | R37: =IF(OR(AND($E$5=$AD$5,$E$5=$AD$6,$E$5=$AD$7,$E$5=$AD$8),AZ37<>"-"),AZ37,IF(OR(AND($E$5=$AD$9,$E$5=$AD$10,$E$5=$AD$11,$E$5=$AD$12),AZ37<>"-"),AZ37*3.28084,"-")) -> 0.21 | S37: =IF(AND(OR($E$5=$AD$5,$E$5=$AD$6,$E$5=$AD$7,$E$5=$AD$8),R37<>"-"),"m/s",IF(AND(OR($E$5=$AD$9,$E$5=$AD$10,$E$5=$AD$11,$E$5=$AD$12),R37<>"-"),"ft/s","")) -> ft/s | T37: =IF(AZ37="-","-",IF(OR($E$5=$AD$5,$E$5=$AD$6,$E$5=$AD$7,$E$5=$AD$8),ROUND(((34-$L$7)*((IF(AZ37<0.05,0.05,AZ37)-0.05)^0.62)*((0.37*IF(AZ37<0.05,0.05,AZ37)*40)+3.14)),0),IF(OR($E$5=$AD$9,$E$5=$AD$10,$E$5=$AD$11,$E$5=$AD$12),ROUND(((34-(($L$7-32)/1.8))*((IF(AZ37<0.05,0.05,AZ37)-0.05)^0.62)*((0.37*IF(AZ37<0.05,0.05,AZ37)*40)+3.14)),0)))) -> 16 | U37: =IF(T37="-","-",IF(T37<10,"A",IF(T37<20,"B",IF(T37<30,"C","keine")))) -> B | V37: =ROUNDDOWN(IF(BU37<15,15,BU37),1) -> 37.3 | W37: 2429 | X37: cfm | Y37: =ROUNDDOWN(10*LOG(L37*10^(0.1*V37))-$L$9,1) -> 33.9 | AC37: 1500 | AD37: =IF(OR($E$5=$AD$5,$E$5=$AD$6,$E$5=$AD$7,$E$5=$AD$8),+(LN(G37)-LN(134.77))/0.0319,IF(OR($E$5=$AD$9,$E$5=$AD$10,$E$5=$AD$11,$E$5=$AD$12),+(LN(G37/0.5875)-LN(134.77))/0.0319)) -> 35.63276143 | AE37: =AF37+(AF37-AG37) -> 5.580311691 | AF37: =2.8219*EXP(0.0171*$AD$37) -> 5.189984119 | AG37: =+(AF37+AH37)/2 -> 4.799656548 | AH37: =2.2485*EXP(0.0189*$AD$37) -> 4.409328976 | AI37: 4.231663257 | AJ37: =+(AH37+AL37)/2 -> 4.053997539 | AK37: 3.87633182 | AL37: =1.7131*EXP(0.0216*$AD$37) -> 3.698666102 | AM37: =+(AL37+AN37)/2 -> 3.521000383 | AN37: =+AL37+AL37-AJ37 -> 3.343334664 | AO37: =ROUND(HLOOKUP($AC$16,$AE$18:$AN$38,20,FALSE),1) -> 4.8 | AP37: =+AQ37-(AR37-AQ37) -> 16.0804174 | AQ37: =+AS37-(AU37-AS37) -> 18.41467823 | AR37: =+AS37+(AS37-AT37) -> 20.74893907 | AS37: =10.428*EXP(0.0223*$AD$37) -> 23.0831999 | AT37: =AU37-(AU37-AS37)/2 -> 25.41746073 | AU37: =0.03*($AD$37)^2-1.01*$AD$37+25.65 -> 27.75172157 | AV37: - | AW37: - | AX37: - | AY37: - | AZ37: =IF(HLOOKUP($AC$16,$AP$18:$AY$38,20,FALSE)="-","-",ROUND(HLOOKUP($AC$16,$AP$18:$AY$38,20,FALSE)/100,2)) -> 0.21 | BA37: =IF(AC37<=$BB$35,BB37,IF(AND(AC37>$BB$35,AC37<=$BC$35),BC37,IF(AND(AC37>$BC$35,AC37<=$BD$35),BD37,IF(AND(AC37>$BD$35,AC37<=$BE$35),BE37,IF(AND(AC37>$BE$35,AC37<=$BF$35),BF37,IF(AND(AC37>$BF$35,AC37<=$BG$35),BG37,IF(AND(AC37>$BG$35,AC37<=$BH$35),BH37,IF(AC37>$BH$35,BH37)))))))) -> 3 | BB37: 1 | BC37: 1 | BD37: 2 | BE37: 2 | BF37: 3 | BG37: 3 | BH37: 4 | BI37: =IF(AC37<=$BJ$35,BJ37,IF(AND(AC37>$BJ$35,AC37<=$BK$35),BK37,IF(AND(AC37>$BK$35,AC37<=$BL$35),BL37,IF(AND(AC37>$BL$35,AC37<=$BM$35),BM37,IF(AND(AC37>$BM$35,AC37<=$BN$35),BN37,IF(AND(AC37>$BN$35,AC37<=$BO$35),BO37,IF(AND(AC37>$BO$35,AC37<=$BP$35),BP37,IF(AC37>$BP$35,BP37)))))))) -> 200 | BJ37: 200 | BK37: 200 | BL37: 200 | BM37: 200 | BN37: 200 | BO37: 200 | BP37: 200 | BQ37: =IF(OR($E$5=$AD$5,$E$5=$AD$6,$E$5=$AD$7,$E$5=$AD$8),G37,IF(OR($E$5=$AD$9,$E$5=$AD$10,$E$5=$AD$11,$E$5=$AD$12),G37/0.5875)) -> 420 | BR37: =+IF(AD37<0,0,AD37) -> 35.63276143 | BU37: =10*LOG((AC37/1000)*10^(0.1*BR37)) -> 37.39367402 | BV37: LDB maxx/2 | BW37: SDA | BX37: - | BY37: =IF(OR($E$5=$AD$5,$E$5=$AD$6,$E$5=$AD$7,$E$5=$AD$8),G37*(AC37/1000),((G37*0.5875)*(AC37/1000))*0.5875) -> 127.750957
E38: =IF($E$4=$AC$3,Legende!A25,IF($E$4=$AC$4,Legende!B25,IF($E$4=$AC$5,Legende!C25,IF($E$4=$AC$6,Legende!D25)))) -> LDB 50 maxx | F38: =IF($E$4=$AC$3,Legende!A28,IF($E$4=$AC$4,Legende!B28,IF($E$4=$AC$5,Legende!C28,IF($E$4=$AC$6,Legende!D28)))) -> 3-slot | G38: 287.875 | H38: =IF(OR($E$5=$AD$5,$E$5=$AD$6,$E$5=$AD$7,$E$5=$AD$8),"m³/(h*m)",IF(OR($E$5=$AD$9,$E$5=$AD$10,$E$5=$AD$11,$E$5=$AD$12),"cfm/ft","")) -> cfm/ft | I38: =IF(OR($E$5=$AD$5,$E$5=$AD$6,$E$5=$AD$7,$E$5=$AD$8),800,IF(OR($E$5=$AD$9,$E$5=$AD$10,$E$5=$AD$11,$E$5=$AD$12),800*0.5875,"")) -> 470 | J38: =IF(OR($E$5=$AD$5,$E$5=$AD$6,$E$5=$AD$7,$E$5=$AD$8),"m³/(h*m)",IF(OR($E$5=$AD$9,$E$5=$AD$10,$E$5=$AD$11,$E$5=$AD$12),"cfm","")) -> cfm | K38: 58,50 in | L38: =IF((ROUNDUP($L$6/(G38*AC38/1000),0))=0,1,ROUNDUP($L$6/(G38*AC38/1000),0)) -> 2 | M38: =IF(OR($E$5=$AD$5,$E$5=$AD$6,$E$5=$AD$7,$E$5=$AD$8),AC38*L38/1000,IF(OR($E$5=$AD$9,$E$5=$AD$10,$E$5=$AD$11,$E$5=$AD$12),AC38*L38/1000*3.28084)) -> 9.84252 | N38: =IF(OR($E$5=$AD$5,$E$5=$AD$6,$E$5=$AD$7,$E$5=$AD$8),"m",IF(OR($E$5=$AD$9,$E$5=$AD$10,$E$5=$AD$11,$E$5=$AD$12),"ft","")) -> ft | O38: =ROUND(0.4739*EXP(0.0789*AD38),0) -> 9 | P38: =IF(OR($E$5=$AD$5,$E$5=$AD$6,$E$5=$AD$7,$E$5=$AD$8),AO38,IF(OR($E$5=$AD$9,$E$5=$AD$10,$E$5=$AD$11,$E$5=$AD$12),AO38*3.28084)) -> 13.12336 | Q38: =IF(OR($E$5=$AD$5,$E$5=$AD$6,$E$5=$AD$7,$E$5=$AD$8),"m",IF(OR($E$5=$AD$9,$E$5=$AD$10,$E$5=$AD$11,$E$5=$AD$12),"ft","")) -> ft | R38: =IF(OR(AND($E$5=$AD$5,$E$5=$AD$6,$E$5=$AD$7,$E$5=$AD$8),AZ38<>"-"),AZ38,IF(OR(AND($E$5=$AD$9,$E$5=$AD$10,$E$5=$AD$11,$E$5=$AD$12),AZ38<>"-"),AZ38*3.28084,"-")) -> 0.22 | S38: =IF(AND(OR($E$5=$AD$5,$E$5=$AD$6,$E$5=$AD$7,$E$5=$AD$8),R38<>"-"),"m/s",IF(AND(OR($E$5=$AD$9,$E$5=$AD$10,$E$5=$AD$11,$E$5=$AD$12),R38<>"-"),"ft/s","")) -> ft/s | T38: 17 | U38: =IF(T38="-","-",IF(T38<10,"A",IF(T38<20,"B",IF(T38<30,"C","keine")))) -> B | V38: =ROUNDDOWN(IF(BU38<15,15,BU38),1) -> 38.3 | W38: 2833 | X38: cfm | Y38: =ROUNDDOWN(10*LOG(L38*10^(0.1*V38))-$L$9,1) -> 34.9 | AC38: 1500 | AD38: =IF(OR($E$5=$AD$5,$E$5=$AD$6,$E$5=$AD$7,$E$5=$AD$8),+(LN(G38)-LN(126.5))/0.037,IF(OR($E$5=$AD$9,$E$5=$AD$10,$E$5=$AD$11,$E$5=$AD$12),+(LN(G38/0.5875)-LN(126.5))/0.037)) -> 36.59900224 | AE38: =AF38+(AF38-AG38) -> 4.701957297 | AF38: =2.1117*EXP(0.0198*$AD$38) -> 4.358611549 | AG38: =+(AF38+AH38)/2 -> 4.015265802 | AH38: =1.6595*EXP(0.0217*$AD$38) -> 3.671920054 | AI38: 3.546496265 | AJ38: =+(AH38+AL38)/2 -> 3.421072476 | AK38: 3.295648687 | AL38: =1.2152*EXP(0.0262*$AD$38) -> 3.170224898 | AM38: =+(AL38+AN38)/2 -> 3.044801109 | AN38: =+AL38+AL38-AJ38 -> 2.919377319 | AO38: =ROUND(HLOOKUP($AC$16,$AE$18:$AN$38,21,FALSE),1) -> 4 | AP38: =+AQ38-(AR38-AQ38) -> 14.87587849 | AQ38: =0.0057*($AD$38)^2-0.1829*$AD$38+17.257 -> 18.19811819 | AR38: =AS38-(AS38-AQ38)/2 -> 21.52035789 | AS38: =0.0014*($AD$38)^2+0.0643*$AD$38+20.614 -> 24.8425976 | AT38: =+(AU38+AS38)/2 -> 28.1648373 | AU38: =+AS38+AS38-AQ38 -> 31.487077 | AV38: - | AW38: - | AX38: - | AY38: - | AZ38: =IF(HLOOKUP($AC$16,$AP$18:$AY$38,21,FALSE)="-","-",ROUND(HLOOKUP($AC$16,$AP$18:$AY$38,21,FALSE)/100,2)) -> 0.22 | BA38: =IF(AC38<=$BB$35,BB38,IF(AND(AC38>$BB$35,AC38<=$BC$35),BC38,IF(AND(AC38>$BC$35,AC38<=$BD$35),BD38,IF(AND(AC38>$BD$35,AC38<=$BE$35),BE38,IF(AND(AC38>$BE$35,AC38<=$BF$35),BF38,IF(AND(AC38>$BF$35,AC38<=$BG$35),BG38,IF(AND(AC38>$BG$35,AC38<=$BH$35),BH38,IF(AC38>$BH$35,BH38)))))))) -> 3 | BB38: 1 | BC38: 1 | BD38: 2 | BE38: 2 | BF38: 3 | BG38: 3 | BH38: 4 | BI38: =IF(AC38<=$BJ$35,BJ38,IF(AND(AC38>$BJ$35,AC38<=$BK$35),BK38,IF(AND(AC38>$BK$35,AC38<=$BL$35),BL38,IF(AND(AC38>$BL$35,AC38<=$BM$35),BM38,IF(AND(AC38>$BM$35,AC38<=$BN$35),BN38,IF(AND(AC38>$BN$35,AC38<=$BO$35),BO38,IF(AND(AC38>$BO$35,AC38<=$BP$35),BP38,IF(AC38>$BP$35,BP38)))))))) -> 200 | BJ38: 200 | BK38: 200 | BL38: 200 | BM38: 200 | BN38: 200 | BO38: 200 | BP38: 200 | BQ38: =IF(OR($E$5=$AD$5,$E$5=$AD$6,$E$5=$AD$7,$E$5=$AD$8),G38,IF(OR($E$5=$AD$9,$E$5=$AD$10,$E$5=$AD$11,$E$5=$AD$12),G38/0.5875)) -> 490 | BR38: =+IF(AD38<0,0,AD38) -> 36.59900224 | BU38: =10*LOG((AC38/1000)*10^(0.1*BR38)) -> 38.35991483 | BV38: LDB maxx/3 | BW38: SDA | BX38: - | BY38: =IF(OR($E$5=$AD$5,$E$5=$AD$6,$E$5=$AD$7,$E$5=$AD$8),G38*(AC38/1000),((G38*0.5875)*(AC38/1000))*0.5875) -> 149.0427832
D40: =IF($E$4=$AC$3,Legende!A72,IF($E$4=$AC$4,Legende!B72,IF($E$4=$AC$5,Legende!C72,IF($E$4=$AC$6,Legende!D72)))) -> © LTG Aktiengesellschaft: 28.07.2021 - LES - V1.5
D41: =IF($E$4=$AC$3,Legende!A73,IF($E$4=$AC$4,Legende!B73,IF($E$4=$AC$5,Legende!C73,IF($E$4=$AC$6,Legende!D73)))) -> Information on tolerances and other specifications can be found in the current technical documentation.
D42: =IF($E$4=$AC$3,Legende!A74,IF($E$4=$AC$4,Legende!B74,IF($E$4=$AC$5,Legende!C74,IF($E$4=$AC$6,Legende!D74)))) -> You can find this at www.LTG.de. We cannot guarantee that the program is free from errors.

Sheet Raumabsorption
S1: ='LDB Übersicht'!$AC$3 -> Deutsch | T1: ='LDB Übersicht'!$AC$4 -> English | U1: ='LDB Übersicht'!$AC$5 -> Francais | V1: ='LDB Übersicht'!$AC$6 -> Italiano
C3: ='LDB Übersicht'!C7:D7 -> Date: | E3: =IF('LDB Übersicht'!E7:F7="","",'LDB Übersicht'!E7:F7) -> 2021-07-29 | R3: =IF('LDB Übersicht'!$E$4='LDB Übersicht'!$AC$3,R$4,IF('LDB Übersicht'!$E$4='LDB Übersicht'!$AC$4,R$5,IF('LDB Übersicht'!$E$4='LDB Übersicht'!$AC$5,R$6,IF('LDB Übersicht'!$E$4='LDB Übersicht'!$AC$6,R$7)))) -> back + accept | S3: Gewählte Nachhallzeit: | T3: Selected reverberation time: | U3: Temps de réverbération sélectionné. | V3: Tempo di riverbero selezionato.
C4: ='LDB Übersicht'!C8:D8 -> Editor: | E4: =IF('LDB Übersicht'!E8:F8="","",'LDB Übersicht'!E8:F8) ->  | R4: Zurück + Übernehmen | S4: Beispiele üblicher Nachhallzeiten nach VDI 2081-BI. 1 (2001) | T4: Examples of common reverberation times according to VDI 2081-BI. 1 (2001) | U4: Exemples de temps de réverbération courants selon VDI 2081-BI. 1 (2001) | V4: Esempi di tempi di riverbero comuni secondo VDI 2081-BI. 1 (2001)
C5: ='LDB Übersicht'!C9:D9 -> Project: | E5: =IF('LDB Übersicht'!E9:F9="","",'LDB Übersicht'!E9:F9) ->  | R5: back + accept | S5: Büro: | T5: Office: | U5: Bureau: | V5: Ufficio:
C6: ='LDB Übersicht'!C10:D10 -> Variant: | E6: =IF('LDB Übersicht'!E10:F10="","",'LDB Übersicht'!E10:F10) ->  | M6: E-Mail: Info@LTG.de | R6: Retour + Appliquer | S6: Kleiner Büroraum: | T6: Small office room: | U6: Petit espace de bureau: | V6: Piccolo spazio ufficio:
C7: ='LDB Übersicht'!C11:D11 -> Order number: | E7: =IF('LDB Übersicht'!E11:F11="","",'LDB Übersicht'!E11:F11) ->  | M7: Tel. +49 (0)711 8201-0 | R7: indietro + accetta | S7: Großraumbüro: | T7: Open-plan office: | U7: Bureau ouverts: | V7: Ufficio open space:
R8: =IF('LDB Übersicht'!$E$4='LDB Übersicht'!$AC$3,R$9,IF('LDB Übersicht'!$E$4='LDB Übersicht'!$AC$4,R$10,IF('LDB Übersicht'!$E$4='LDB Übersicht'!$AC$5,R$11,IF('LDB Übersicht'!$E$4='LDB Übersicht'!$AC$6,R$12)))) -> Abort | S8: Besprechungsraum: | T8: Meeting room: | U8: Salle de réunion: | V8: Sala riunioni:
E9: =IF('LDB Übersicht'!$E$4='LDB Übersicht'!$AC$3,Legende!A49,IF('LDB Übersicht'!$E$4='LDB Übersicht'!$AC$4,Legende!B49,IF('LDB Übersicht'!$E$4='LDB Übersicht'!$AC$5,Legende!C49,IF('LDB Übersicht'!$E$4='LDB Übersicht'!$AC$6,Legende!D49,"")))) -> Room dimensions: | R9: Abbrechen | S9: Wohngebäude: | T9: Residential building: | U9: Bâtiment résidentiel: | V9: Edifici residenziali:
R10: Abort | S10: Wohn-/Schlafräume: | T10: Living- and sleeping room: | U10: Salon Chambre: | V10: Camera da letto / soggiorno:
E11: =IF('LDB Übersicht'!$E$4='LDB Übersicht'!$AC$3,Legende!A50,IF('LDB Übersicht'!$E$4='LDB Übersicht'!$AC$4,Legende!B50,IF('LDB Übersicht'!$E$4='LDB Übersicht'!$AC$5,Legende!C50,IF('LDB Übersicht'!$E$4='LDB Übersicht'!$AC$6,Legende!D50,"")))) -> Width: | F11: 5 | I11: =IF('LDB Übersicht'!$E$4='LDB Übersicht'!$AC$3,Legende!A55,IF('LDB Übersicht'!$E$4='LDB Übersicht'!$AC$4,Legende!B55,IF('LDB Übersicht'!$E$4='LDB Übersicht'!$AC$5,Legende!C55,IF('LDB Übersicht'!$E$4='LDB Übersicht'!$AC$6,Legende!D55,"")))) -> Room sound absorpion: | L11: =IF((10*LOG10(0.163*((F11*F15*F13)/L15)/4))<0,0.001,(10*LOG10(0.163*((F11*F15*F13)/L15)/4))) -> 6.400908365 | R11: Avorter | S11: Hotels: | T11: Hotel: | U11: Hôtels: | V11: Hotels:
R12: Interrompi | S12: kleines Hotelzimmer (V < 40m³): | T12: small Hotelroom (V > 40m^3): | U12: petite chambre d'hôtel (V <40m³): | V12: piccola stanza d'albergo (V <40m^3):
E13: =IF('LDB Übersicht'!$E$4='LDB Übersicht'!$AC$3,Legende!A51,IF('LDB Übersicht'!$E$4='LDB Übersicht'!$AC$4,Legende!B51,IF('LDB Übersicht'!$E$4='LDB Übersicht'!$AC$5,Legende!C51,IF('LDB Übersicht'!$E$4='LDB Übersicht'!$AC$6,Legende!D51,"")))) -> Height: | F13: 3 | I13: =IF('LDB Übersicht'!$E$4='LDB Übersicht'!$AC$3,Legende!A54,IF('LDB Übersicht'!$E$4='LDB Übersicht'!$AC$4,Legende!B54,IF('LDB Übersicht'!$E$4='LDB Übersicht'!$AC$5,Legende!C54,IF('LDB Übersicht'!$E$4='LDB Übersicht'!$AC$6,Legende!D54,"")))) -> Equivalent absorption area: | L13: =0.163*((F11*F13*F15)/L15) -> 17.46428571 | S13: kleines Hotelzimmer (V > 40m³): | T13: big Hotelroom (V > 40m^3): | U13: petite chambre d'hôtel (V> 40m³): | V13: grande camera d'albergo (V> 40 m^3):
S14: Studios: | T14: Studios: | U14: Studios: | V14: Studios:
E15: =IF('LDB Übersicht'!$E$4='LDB Übersicht'!$AC$3,Legende!A52,IF('LDB Übersicht'!$E$4='LDB Übersicht'!$AC$4,Legende!B52,IF('LDB Übersicht'!$E$4='LDB Übersicht'!$AC$5,Legende!C52,IF('LDB Übersicht'!$E$4='LDB Übersicht'!$AC$6,Legende!D52,"")))) -> Depth: | F15: 5 | I15: =IF('LDB Übersicht'!$E$4='LDB Übersicht'!$AC$3,Legende!A53,IF('LDB Übersicht'!$E$4='LDB Übersicht'!$AC$4,Legende!B53,IF('LDB Übersicht'!$E$4='LDB Übersicht'!$AC$5,Legende!C53,IF('LDB Übersicht'!$E$4='LDB Übersicht'!$AC$6,Legende!D53,"")))) -> Selected reverberation period: | L15: 0.7 | R15: 0.5 | S15: Rundfunkstudio: | T15: Radio studio: | U15: Studio de diffusion: | V15: Studio Broadcasting:
R16: 0.6 | S16: Fernsehstudio: | T16: TV studio: | U16: Studio de télévision: | V16: Studio televisivo:
R17: 0.7 | S17: Krankenhaus: | T17: Hospital: | U17: Hôpital: | V17: Ospedale:
D18: =IF('LDB Übersicht'!$E$4='LDB Übersicht'!$AC$3,Raumabsorption!S4,IF('LDB Übersicht'!$E$4='LDB Übersicht'!$AC$4,Raumabsorption!T4,IF('LDB Übersicht'!$E$4='LDB Übersicht'!$AC$5,Raumabsorption!U4,IF('LDB Übersicht'!$E$4='LDB Übersicht'!$AC$6,Raumabsorption!V4,"")))) -> Examples of common reverberation times according to VDI 2081-BI. 1 (2001) | R18: 0.8 | S18: Bettenzimmer: | T18: Bedroom: | U18: Chambre: | V18: Camere da letto:
D19: =IF('LDB Übersicht'!$E$4='LDB Übersicht'!$AC$3,Raumabsorption!S37,IF('LDB Übersicht'!$E$4='LDB Übersicht'!$AC$4,Raumabsorption!T37,IF('LDB Übersicht'!$E$4='LDB Übersicht'!$AC$5,Raumabsorption!U37,IF('LDB Übersicht'!$E$4='LDB Übersicht'!$AC$6,Raumabsorption!V37,"")))) -> Permissible A-weighting sound pressure level. Standard values ​​go to EN 13779 | R19: 0.9 | S19: Hallen, Korridore: | T19: Hall, Corridor: | U19: Halls, couloirs: | V19: Sale, corridoi:
R20: 1 | S20: Untersuchungsräume: | T20: Medical inspection rooms: | U20: Salles d'examen: | V20: Sale di visita:
D21: =IF('LDB Übersicht'!$E$4='LDB Übersicht'!$AC$3,Raumabsorption!S5,IF('LDB Übersicht'!$E$4=Raumabsorption!$T$1,Raumabsorption!T5,IF('LDB Übersicht'!$E$4=Raumabsorption!$U$1,Raumabsorption!U5,IF('LDB Übersicht'!$E$4=Raumabsorption!$V$1,Raumabsorption!V5,"")))) -> Office: | J21: =IF('LDB Übersicht'!$E$4='LDB Übersicht'!$AC$3,Raumabsorption!S17,IF('LDB Übersicht'!$E$4='LDB Übersicht'!$AC$4,Raumabsorption!T17,IF('LDB Übersicht'!$E$4='LDB Übersicht'!$AC$5,Raumabsorption!U17,IF('LDB Übersicht'!$E$4='LDB Übersicht'!$AC$6,Raumabsorption!V17,"")))) -> Hospital: | R21: 1.1 | S21: OP-Räume: | T21: Operation rooms: | U21: Salles d'opération: | V21: Sale operatorie:
D22: =IF('LDB Übersicht'!$E$4='LDB Übersicht'!$AC$3,Raumabsorption!S6,IF('LDB Übersicht'!$E$4='LDB Übersicht'!$AC$4,Raumabsorption!T6,IF('LDB Übersicht'!$E$4='LDB Übersicht'!$AC$5,Raumabsorption!U6,IF('LDB Übersicht'!$E$4='LDB Übersicht'!$AC$6,Raumabsorption!V6,"")))) -> Small office room: | G22: 0,5 s | H22: 35 dB(A) | J22: =IF('LDB Übersicht'!$E$4='LDB Übersicht'!$AC$3,Raumabsorption!S18,IF('LDB Übersicht'!$E$4='LDB Übersicht'!$AC$4,Raumabsorption!T18,IF('LDB Übersicht'!$E$4='LDB Übersicht'!$AC$5,Raumabsorption!U18,IF('LDB Übersicht'!$E$4='LDB Übersicht'!$AC$6,Raumabsorption!V18,"")))) -> Bedroom: | M22: 1,0 s | N22: 30 dB(A) | R22: 1.2 | S22: Versammlungssäle: | T22: Meeting rooms: | U22: Salles de réunions: | V22: Sale riunioni:
D23: =IF('LDB Übersicht'!$E$4='LDB Übersicht'!$AC$3,Raumabsorption!S7,IF('LDB Übersicht'!$E$4='LDB Übersicht'!$AC$4,Raumabsorption!T7,IF('LDB Übersicht'!$E$4='LDB Übersicht'!$AC$5,Raumabsorption!U7,IF('LDB Übersicht'!$E$4='LDB Übersicht'!$AC$6,Raumabsorption!V7,"")))) -> Open-plan office: | G23: 0,5 s | H23: 40 dB(A) | J23: =IF('LDB Übersicht'!$E$4='LDB Übersicht'!$AC$3,Raumabsorption!S19,IF('LDB Übersicht'!$E$4='LDB Übersicht'!$AC$4,Raumabsorption!T19,IF('LDB Übersicht'!$E$4='LDB Übersicht'!$AC$5,Raumabsorption!U19,IF('LDB Übersicht'!$E$4='LDB Übersicht'!$AC$6,Raumabsorption!V19,"")))) -> Hall, Corridor: | M23: 2,0 s | N23: 40 dB(A) | R23: 1.3 | S23: Theater: | T23: Theatre: | U23: Théâtre: | V23: Teatro:
D24: =IF('LDB Übersicht'!$E$4='LDB Übersicht'!$AC$3,Raumabsorption!S8,IF('LDB Übersicht'!$E$4='LDB Übersicht'!$AC$4,Raumabsorption!T8,IF('LDB Übersicht'!$E$4='LDB Übersicht'!$AC$5,Raumabsorption!U8,IF('LDB Übersicht'!$E$4='LDB Übersicht'!$AC$6,Raumabsorption!V8,"")))) -> Meeting room: | G24: 1,0 s | H24: 35 dB(A) | J24: =IF('LDB Übersicht'!$E$4='LDB Übersicht'!$AC$3,Raumabsorption!S20,IF('LDB Übersicht'!$E$4='LDB Übersicht'!$AC$4,Raumabsorption!T20,IF('LDB Übersicht'!$E$4='LDB Übersicht'!$AC$5,Raumabsorption!U20,IF('LDB Übersicht'!$E$4='LDB Übersicht'!$AC$6,Raumabsorption!V20,"")))) -> Medical inspection rooms: | M24: 2,0 s | N24: 40 dB(A) | R24: 1.4 | S24: Opernhaus: | T24: Opera House: | U24: Opéra: | V24: Teatro dell'opera:
J25: =IF('LDB Übersicht'!$E$4='LDB Übersicht'!$AC$3,Raumabsorption!S21,IF('LDB Übersicht'!$E$4='LDB Übersicht'!$AC$4,Raumabsorption!T21,IF('LDB Übersicht'!$E$4='LDB Übersicht'!$AC$5,Raumabsorption!U21,IF('LDB Übersicht'!$E$4='LDB Übersicht'!$AC$6,Raumabsorption!V21,"")))) -> Operation rooms: | M25: 3,0 s | N25: 40 dB(A) | R25: 1.5 | S25: Konzertsaal: | T25: Concert hall: | U25: Salle de concert: | V25: Sala concerti:
D26: =IF('LDB Übersicht'!$E$4='LDB Übersicht'!$AC$3,Raumabsorption!S9,IF('LDB Übersicht'!$E$4='LDB Übersicht'!$AC$4,Raumabsorption!T9,IF('LDB Übersicht'!$E$4='LDB Übersicht'!$AC$5,Raumabsorption!U9,IF('LDB Übersicht'!$E$4='LDB Übersicht'!$AC$6,Raumabsorption!V9,"")))) -> Residential building: | R26: 1.6 | S26: Kino, Hörsaal, Lesesaal: | T26: Cinema, lecture hall, reading room: | U26: Cinéma, amphithéâtre, salle de lecture: | V26: Cinema, aula magna, sala lettura:
D27: =IF('LDB Übersicht'!$E$4='LDB Übersicht'!$AC$3,Raumabsorption!S10,IF('LDB Übersicht'!$E$4='LDB Übersicht'!$AC$4,Raumabsorption!T10,IF('LDB Übersicht'!$E$4='LDB Übersicht'!$AC$5,Raumabsorption!U10,IF('LDB Übersicht'!$E$4='LDB Übersicht'!$AC$6,Raumabsorption!V10,"")))) -> Living- and sleeping room: | G27: 0,5 s | H27: - | J27: =IF('LDB Übersicht'!$E$4='LDB Übersicht'!$AC$3,Raumabsorption!S11,IF('LDB Übersicht'!$E$4='LDB Übersicht'!$AC$4,Raumabsorption!T11,IF('LDB Übersicht'!$E$4='LDB Übersicht'!$AC$5,Raumabsorption!U11,IF('LDB Übersicht'!$E$4='LDB Übersicht'!$AC$6,Raumabsorption!V11,"")))) -> Hotel: | R27: 1.7 | S27: Kirche: | T27: Church: | U27: Église: | V27: Chiesa:
J28: =IF('LDB Übersicht'!$E$4='LDB Übersicht'!$AC$3,Raumabsorption!S12,IF('LDB Übersicht'!$E$4='LDB Übersicht'!$AC$4,Raumabsorption!T12,IF('LDB Übersicht'!$E$4='LDB Übersicht'!$AC$5,Raumabsorption!U12,IF('LDB Übersicht'!$E$4='LDB Übersicht'!$AC$6,Raumabsorption!V12,"")))) -> small Hotelroom (V > 40m^3): | M28: 1,0 s | N28: 30 - 35 dB(A) | R28: 1.8 | S28: Sport: | T28: Sports: | U28: Des sports: | V28: Gli sport:
D29: =IF('LDB Übersicht'!$E$4='LDB Übersicht'!$AC$3,Raumabsorption!S22,IF('LDB Übersicht'!$E$4='LDB Übersicht'!$AC$4,Raumabsorption!T22,IF('LDB Übersicht'!$E$4='LDB Übersicht'!$AC$5,Raumabsorption!U22,IF('LDB Übersicht'!$E$4='LDB Übersicht'!$AC$6,Raumabsorption!V22,"")))) -> Meeting rooms: | J29: =IF('LDB Übersicht'!$E$4='LDB Übersicht'!$AC$3,Raumabsorption!S13,IF('LDB Übersicht'!$E$4='LDB Übersicht'!$AC$4,Raumabsorption!T13,IF('LDB Übersicht'!$E$4='LDB Übersicht'!$AC$5,Raumabsorption!U13,IF('LDB Übersicht'!$E$4='LDB Übersicht'!$AC$6,Raumabsorption!V13,"")))) -> big Hotelroom (V > 40m^3): | M29: 0,5 s | N29: 30 - 35 dB(A) | R29: 1.9 | S29: Turnhalle: | T29: Gym: | U29: Gym: | V29: Palestra:
D30: =IF('LDB Übersicht'!$E$4='LDB Übersicht'!$AC$3,Raumabsorption!S23,IF('LDB Übersicht'!$E$4='LDB Übersicht'!$AC$4,Raumabsorption!T23,IF('LDB Übersicht'!$E$4='LDB Übersicht'!$AC$5,Raumabsorption!U23,IF('LDB Übersicht'!$E$4='LDB Übersicht'!$AC$6,Raumabsorption!V23,"")))) -> Theatre: | G30: 1,0 s | H30: - | R30: 2 | S30: Schwimmbäder: | T30: Swimming pools: | U30: Piscines: | V30: Piscine:
D31: =IF('LDB Übersicht'!$E$4='LDB Übersicht'!$AC$3,Raumabsorption!S24,IF('LDB Übersicht'!$E$4='LDB Übersicht'!$AC$4,Raumabsorption!T24,IF('LDB Übersicht'!$E$4='LDB Übersicht'!$AC$5,Raumabsorption!U24,IF('LDB Übersicht'!$E$4='LDB Übersicht'!$AC$6,Raumabsorption!V24,"")))) -> Opera House: | G31: 1,5 s | H31: - | J31: =IF('LDB Übersicht'!$E$4='LDB Übersicht'!$AC$3,Raumabsorption!S28,IF('LDB Übersicht'!$E$4='LDB Übersicht'!$AC$4,Raumabsorption!T28,IF('LDB Übersicht'!$E$4='LDB Übersicht'!$AC$5,Raumabsorption!U28,IF('LDB Übersicht'!$E$4='LDB Übersicht'!$AC$6,Raumabsorption!V28,"")))) -> Sports: | R31: 2.1 | S31: Sonstige: | T31: Others: | U31: Autre: | V31: Altro:
D32: =IF('LDB Übersicht'!$E$4='LDB Übersicht'!$AC$3,Raumabsorption!S25,IF('LDB Übersicht'!$E$4='LDB Übersicht'!$AC$4,Raumabsorption!T25,IF('LDB Übersicht'!$E$4='LDB Übersicht'!$AC$5,Raumabsorption!U25,IF('LDB Übersicht'!$E$4='LDB Übersicht'!$AC$6,Raumabsorption!V25,"")))) -> Concert hall: | G32: 2,0 s | H32: - | J32: =IF('LDB Übersicht'!$E$4='LDB Übersicht'!$AC$3,Raumabsorption!S29,IF('LDB Übersicht'!$E$4='LDB Übersicht'!$AC$4,Raumabsorption!T29,IF('LDB Übersicht'!$E$4='LDB Übersicht'!$AC$5,Raumabsorption!U29,IF('LDB Übersicht'!$E$4='LDB Übersicht'!$AC$6,Raumabsorption!V29,"")))) -> Gym: | M32: 1,5 s | N32: 45 dB(A) | R32: 2.2 | S32: Gaststätten: | T32: Restaurants: | U32: Restaurants: | V32: Ristoranti:
D33: =IF('LDB Übersicht'!$E$4='LDB Übersicht'!$AC$3,Raumabsorption!S26,IF('LDB Übersicht'!$E$4='LDB Übersicht'!$AC$4,Raumabsorption!T26,IF('LDB Übersicht'!$E$4='LDB Übersicht'!$AC$5,Raumabsorption!U26,IF('LDB Übersicht'!$E$4='LDB Übersicht'!$AC$6,Raumabsorption!V26,"")))) -> Cinema, lecture hall, reading room: | G33: 1,0 s | H33: 33 dB(A) | J33: =IF('LDB Übersicht'!$E$4='LDB Übersicht'!$AC$3,Raumabsorption!S30,IF('LDB Übersicht'!$E$4='LDB Übersicht'!$AC$4,Raumabsorption!T30,IF('LDB Übersicht'!$E$4='LDB Übersicht'!$AC$5,Raumabsorption!U30,IF('LDB Übersicht'!$E$4='LDB Übersicht'!$AC$6,Raumabsorption!V30,"")))) -> Swimming pools: | M33: 2,0 s | N33: 45 dB(A) | R33: 2.3 | S33: Museen: | T33: Museeum: | U33: Musées: | V33: Musei:
D34: =IF('LDB Übersicht'!$E$4='LDB Übersicht'!$AC$3,Raumabsorption!S27,IF('LDB Übersicht'!$E$4='LDB Übersicht'!$AC$4,Raumabsorption!T27,IF('LDB Übersicht'!$E$4='LDB Übersicht'!$AC$5,Raumabsorption!U27,IF('LDB Übersicht'!$E$4='LDB Übersicht'!$AC$6,Raumabsorption!V27,"")))) -> Church: | G34: 3,0 s | H34: - | R34: 2.4 | S34: Klassenräume: | T34: Class rooms: | U34: Salles de classe: | V34: Aule:
J35: =IF('LDB Übersicht'!$E$4='LDB Übersicht'!$AC$3,Raumabsorption!S31,IF('LDB Übersicht'!$E$4='LDB Übersicht'!$AC$4,Raumabsorption!T31,IF('LDB Übersicht'!$E$4='LDB Übersicht'!$AC$5,Raumabsorption!U31,IF('LDB Übersicht'!$E$4='LDB Übersicht'!$AC$6,Raumabsorption!V31,"")))) -> Others: | R35: 2.5 | S35: © LTG Aktiengesellschaft - Letzte Änderung: 05-03-2021; V1; LES | T35: © LTG Aktiengesellschaft - Last update: 05-03-2021; V1; LES | U35: © LTG Aktiengesellschaft - Dernière modification: 05-03-2021; V1; LES | V35: © LTG Aktiengesellschaft - Ultimo aggiornamento: 05-03-2021; V1; LES
D36: =IF('LDB Übersicht'!$E$4='LDB Übersicht'!$AC$3,Raumabsorption!S14,IF('LDB Übersicht'!$E$4='LDB Übersicht'!$AC$4,Raumabsorption!T14,IF('LDB Übersicht'!$E$4='LDB Übersicht'!$AC$5,Raumabsorption!U14,IF('LDB Übersicht'!$E$4='LDB Übersicht'!$AC$6,Raumabsorption!V14,"")))) -> Studios: | J36: =IF('LDB Übersicht'!$E$4='LDB Übersicht'!$AC$3,Raumabsorption!S32,IF('LDB Übersicht'!$E$4='LDB Übersicht'!$AC$4,Raumabsorption!T32,IF('LDB Übersicht'!$E$4='LDB Übersicht'!$AC$5,Raumabsorption!U32,IF('LDB Übersicht'!$E$4='LDB Übersicht'!$AC$6,Raumabsorption!V32,"")))) -> Restaurants: | M36: 1,0 s | N36: 40 dB(A) | R36: 2.6 | S36: Aus Programmierfehlern entstandener Schaden geht nicht zu Lasten der LTG. Technische Änderungen im Rahmen der Weiterentwicklung vorbehalten. | T36: LTG is not responsible for any damage resulting from programming errors. Subject to technical changes in the course of further development. | U36: LTG n'est pas responsable des dommages résultant d'erreurs de programmation. Sous réserve de modifications techniques en cours de développement. | V36: LTG non è responsabile per eventuali danni derivanti da errori di programmazione. Soggetto a modifiche tecniche nel corso di ulteriori sviluppi.
D37: =IF('LDB Übersicht'!$E$4='LDB Übersicht'!$AC$3,Raumabsorption!S15,IF('LDB Übersicht'!$E$4='LDB Übersicht'!$AC$4,Raumabsorption!T15,IF('LDB Übersicht'!$E$4='LDB Übersicht'!$AC$5,Raumabsorption!U15,IF('LDB Übersicht'!$E$4='LDB Übersicht'!$AC$6,Raumabsorption!V15,"")))) -> Radio studio: | G37: 1,0 s | H37: - | J37: =IF('LDB Übersicht'!$E$4='LDB Übersicht'!$AC$3,Raumabsorption!S33,IF('LDB Übersicht'!$E$4='LDB Übersicht'!$AC$4,Raumabsorption!T33,IF('LDB Übersicht'!$E$4='LDB Übersicht'!$AC$5,Raumabsorption!U33,IF('LDB Übersicht'!$E$4='LDB Übersicht'!$AC$6,Raumabsorption!V33,"")))) -> Museeum: | M37: 1,5 s | N37: 30 db(A) | R37: 2.7 | S37: Zulässige A-bewertete Schalldruckpegel. Standardwerte gemäß EN 13779 | T37: Permissible A-weighting sound pressure level. Standard values ​​go to EN 13779 | U37: Niveau de pression acoustique pondéré A. admissible. Les valeurs standard vont à EN 13779 | V37: Livello di pressione sonora di ponderazione A consentito. I valori standard vanno a EN 13779
D38: =IF('LDB Übersicht'!$E$4='LDB Übersicht'!$AC$3,Raumabsorption!S16,IF('LDB Übersicht'!$E$4='LDB Übersicht'!$AC$4,Raumabsorption!T16,IF('LDB Übersicht'!$E$4='LDB Übersicht'!$AC$5,Raumabsorption!U16,IF('LDB Übersicht'!$E$4='LDB Übersicht'!$AC$6,Raumabsorption!V16,"")))) -> TV studio: | G38: 1,5 s | H38: - | J38: =IF('LDB Übersicht'!$E$4='LDB Übersicht'!$AC$3,Raumabsorption!S34,IF('LDB Übersicht'!$E$4='LDB Übersicht'!$AC$4,Raumabsorption!T34,IF('LDB Übersicht'!$E$4='LDB Übersicht'!$AC$5,Raumabsorption!U34,IF('LDB Übersicht'!$E$4='LDB Übersicht'!$AC$6,Raumabsorption!V34,"")))) -> Class rooms: | M38: 1,0 s | N38: 35 dB(A) | R38: 2.8
R39: 2.9
R40: 3
C41: ='LDB Übersicht'!D40 -> © LTG Aktiengesellschaft: 28.07.2021 - LES - V1.5
C42: ='LDB Übersicht'!D41 -> Information on tolerances and other specifications can be found in the current technical documentation.
C43: ='LDB Übersicht'!D42 -> You can find this at www.LTG.de. We cannot guarantee that the program is free from errors.

Sheet LDB Auswahl
C3: ='LDB Übersicht'!C3 -> LTG Linear Diffusers Type LDB and LDB System Clean | P3: Stückzahl | Q3: LDB Typ | R3: Länge | S3: Stutzendurchmesser original | T3: Stutzendurchmesser gewählt | V3: DLU | W3: Dp
P4: 2 | Q4: LDB maxx/1 | R4: 2100 | S4: 200 | T4: =IF(H20="80 mm",80,IF(H20="100 mm",100,IF(H20="125 mm",125,IF(H20="140 mm",140,IF(H20="160 mm",160,IF(H20="200 mm",200)))))) -> 200
C5: ='LDB Übersicht'!C7:D7 -> Date: | E5: =IF('LDB Übersicht'!E7="","",'LDB Übersicht'!E7) -> 2021-07-29 | R5: Volumenstrom | S5: Stutzenanzahl original | T5: Stutzenanzahl gewählt
C6: ='LDB Übersicht'!C8:D8 -> Editor: | E6: =IF('LDB Übersicht'!E8="","",'LDB Übersicht'!E8) ->  | K6: E-Mail: Info@LTG.de | R6: =IF(OR('LDB Übersicht'!$E$5='LDB Übersicht'!$AD$5,'LDB Übersicht'!$E$5='LDB Übersicht'!$AD$6,'LDB Übersicht'!$E$5='LDB Übersicht'!$AD$7,'LDB Übersicht'!$E$5='LDB Übersicht'!$AD$8),H22,IF(OR('LDB Übersicht'!$E$5='LDB Übersicht'!$AD$9,'LDB Übersicht'!$E$5='LDB Übersicht'!$AD$10,'LDB Übersicht'!$E$5='LDB Übersicht'!$AD$11,'LDB Übersicht'!$E$5='LDB Übersicht'!$AD$12),H22/0.5875,"")) -> 1000.851064 | S6: 3 | T6: =H18 -> 3 | W6: 0° | X6: 45° | Y6: 60° | Z6: 75° | AA6: 90° | AB6: =H46 -> -
C7: ='LDB Übersicht'!C9:D9 -> Project: | E7: =IF('LDB Übersicht'!E9="","",'LDB Übersicht'!E9) ->  | K7: Tel. +49 (0)711 8201-0 | P7: Schallleistung | Q7: Schallleistung korrigiert | R7: Schallleistung Rest | S7: 80 mm | T7: 1 | V7: 80 | W7: 0 | X7: =0.0013*(R6/T6)^2 - 0.0111*(R6/T6) -> 140.987263 | Y7: =0.0025*(R6/T6)^2 + 0.0016*(R6/T6) - 0.0000000000003 -> 278.7845794 | Z7: =0.0048*(R6/T6)^2 + 0.0083*(R6/T6) - 0.00000000000006 -> 537.0105423 | AA7: =0.0075*(R6/T6)^2 + 0.05*(R6/T6) + 0.0000000000005 -> 851.4332277 | AB7: =HLOOKUP(H46,$W$6:$AA$11,2,FALSE) ->  | AC7: DLU DP
C8: ='LDB Übersicht'!C10:D10 -> Variant: | E8: =IF('LDB Übersicht'!E10="","",'LDB Übersicht'!E10) ->  | P8: =IF(OR($H$14=Q42,$H$14=Q43,$H$14=Q44,$H$14=Q45,$H$14=Q47,$H$14=Q48,$H$14=Q49,$H$14=Q50,$H$14=Q52,$H$14=Q53,$H$14=Q54,$H$14=Q55),Q8,R8) -> 36.94957304 | Q8: =+VLOOKUP(H14,Q42:T55,4,FALSE) ->  | R8: 36.94957304 | S8: 100 mm | T8: =+IF($T$12>2,2,"") -> 2 | V8: 100 | W8: 0 | X8: =0.0013*(R6/T6)^2 - 0.0111*(R6/T6) -> 140.987263 | Y8: =0.0025*(R6/T6)^2 + 0.0016*(R6/T6) - 0.0000000000003 -> 278.7845794 | Z8: =0.0048*(R6/T6)^2 + 0.0083*(R6/T6) - 0.00000000000006 -> 537.0105423 | AA8: =0.0075*(R6/T6)^2 + 0.05*(R6/T6) + 0.0000000000005 -> 851.4332277 | AB8: =HLOOKUP(H46,$W$6:$AA$11,3,FALSE) ->  | AC8: =+IF(AD8<0,0,AD8) ->  | AD8: =+VLOOKUP(T4,V7:AB11,7,FALSE) -> 
C9: ='LDB Übersicht'!C11:D11 -> Order number: | E9: =IF('LDB Übersicht'!E11="","",'LDB Übersicht'!E11) ->  | S9: 125 mm | T9: =+IF($T$12>3,3,"") -> 3 | V9: 125 | W9: 0 | X9: =0.0003*(R6/T6)^2 + 0.0267*(R6/T6) + 0.00000000000006 -> 42.29766953 | Y9: =0.0012*(R6/T6)^2 - 0.0058*(R6/T6) - 0.00000000000004 -> 131.6254015 | Z9: =0.0024*(R6/T6)^2 - 0.0117*(R6/T6) - 0.00000000000009 -> 263.2174414 | AA9: =0.0045*(R6/T6)^2 + 0.0118*(R6/T6) + 0.2196 -> 505.0077068 | AB9: =HLOOKUP(H46,$W$6:$AA$11,4,FALSE) -> 
S10: 140 mm | T10: =+IF($T$12>4,4,"") -> 4 | V10: 140 | W10: 0 | X10: =0.0004*(R6/T6)^2 - 0.0042*(R6/T6) - 0.00000000000001 -> 43.11893526 | Y10: =0.0009*(R6/T6)^2 - 0.0217*(R6/T6) + 0.00000000000006 -> 92.93079584 | Z10: =0.0013*(R6/T6)^2 + 0.05*(R6/T6) + 0.0000000000008 -> 161.371263 | AA10: =0.0034*(R6/T6)^2 - 0.0062*(R6/T6) - 0.00000000000006 -> 376.3526519 | AB10: =HLOOKUP(H46,$W$6:$AA$11,5,FALSE) -> 
P11: =IF('LDB Übersicht'!$E$4='LDB Übersicht'!$AC$3,P12,IF('LDB Übersicht'!$E$4='LDB Übersicht'!$AC$4,P13,IF('LDB Übersicht'!$E$4='LDB Übersicht'!$AC$5,P14,IF('LDB Übersicht'!$E$4='LDB Übersicht'!$AC$6,P15)))) -> Print selection | S11: 160 mm | V11: 160 | W11: 0 | X11: =0.0004*(R6/T6)^2 - 0.0042*(R6/T6) - 0.00000000000001 -> 43.11893526 | Y11: =0.0009*(R6/T6)^2 - 0.0217*(R6/T6) + 0.00000000000006 -> 92.93079584 | Z11: =0.0013*(R6/T6)^2 + 0.05*(R6/T6) + 0.0000000000008 -> 161.371263 | AA11: =0.0034*(R6/T6)^2 - 0.0062*(R6/T6) - 0.00000000000006 -> 376.3526519 | AB11: =HLOOKUP(H46,$W$6:$AA$11,6,FALSE) -> 
D12: =IF('LDB Übersicht'!$E$4='LDB Übersicht'!$AC$3,Legende!A56,IF('LDB Übersicht'!$E$4='LDB Übersicht'!$AC$4,Legende!B56,IF('LDB Übersicht'!$E$4='LDB Übersicht'!$AC$5,Legende!C56,IF('LDB Übersicht'!$E$4='LDB Übersicht'!$AC$6,Legende!D56,"")))) -> Room name | G12: : | P12: Auswahl drucken | S12: 200 mm | T12: =+ROUNDDOWN((R4-200)/T4,0) -> 9 | X12: LWA
P13: Print selection | W13: 0° | X13: 45° | Y13: 60° | Z13: 75° | AA13: 90° | AB13: =H46 -> - | AC13: DLU LWA
D14: ='LDB Übersicht'!D17 -> LDB Type | G14: : | H14: LDB 50 maxx 1-schlitzig | P14: Sélection de l'impression | V14: 80 | W14: 0 | X14: =18.581*LN((R6/T6)) - 58.599 -> 49.35649279 | Y14: =21.392*LN((R6/T6)) - 66.656 -> 57.63138506 | Z14: =36.995*LN((R6/T6)) - 137.11 -> 77.83071664 | AA14: =36.995*LN((R6/T6)) - 137.11 -> 77.83071664 | AB14: =HLOOKUP(H46,$W$13:$AA$18,2,FALSE) ->  | AC14: =+IF(AD14<0,0,AD14) ->  | AD14: =+VLOOKUP(T4,V14:AB18,7,FALSE) -> 
P15: Selezione di stampa | V15: 100 | W15: 0 | X15: =18.581*LN((R6/T6)) - 58.599 -> 49.35649279 | Y15: =21.392*LN((R6/T6)) - 66.656 -> 57.63138506 | Z15: =36.995*LN((R6/T6)) - 137.11 -> 77.83071664 | AA15: =36.995*LN((R6/T6)) - 137.11 -> 77.83071664 | AB15: =HLOOKUP(H46,$W$13:$AA$18,3,FALSE) -> 
D16: ='LDB Übersicht'!K16 -> Diffuser element length | G16: : | H16: 2100 mm | V16: 125 | W16: 0 | X16: =21.64*LN((R6/T6)) - 78.603 -> 47.1252635 | Y16: =22.407*LN((R6/T6)) - 78.72 -> 51.46452866 | Z16: =22.407*LN((R6/T6)) - 73.189 -> 56.99552866 | AA16: =22.197*LN((R6/T6)) - 71.267 -> 57.69742999 | AB16: =HLOOKUP(H46,$W$13:$AA$18,4,FALSE) -> 
V17: 140 | W17: 0 | X17: =25.974*LN((R6/T6)) - 103.36 -> 47.54877616 | Y17: =24.302*LN((R6/T6)) - 91.672 -> 49.52246671 | Z17: =25.532*LN((R6/T6)) - 93.578 -> 54.76275895 | AA17: =25.532*LN((R6/T6)) - 89.578 -> 58.76275895 | AB17: =HLOOKUP(H46,$W$13:$AA$18,5,FALSE) -> 
D18: =IF('LDB Übersicht'!$E$4='LDB Übersicht'!$AC$3,Legende!A57,IF('LDB Übersicht'!$E$4='LDB Übersicht'!$AC$4,Legende!B57,IF('LDB Übersicht'!$E$4='LDB Übersicht'!$AC$5,Legende!C57,IF('LDB Übersicht'!$E$4='LDB Übersicht'!$AC$6,Legende!D57,"")))) -> No. of spigots [pc] | G18: : | H18: 3 | V18: 160 | W18: 0 | X18: =25.974*LN((R6/T6)) - 103.36 -> 47.54877616 | Y18: =24.302*LN((R6/T6)) - 91.672 -> 49.52246671 | Z18: =25.532*LN((R6/T6)) - 93.578 -> 54.76275895 | AA18: =25.532*LN((R6/T6)) - 89.578 -> 58.76275895 | AB18: =HLOOKUP(H46,$W$13:$AA$18,6,FALSE) -> 
D20: =IF('LDB Übersicht'!$E$4='LDB Übersicht'!$AC$3,Legende!A58,IF('LDB Übersicht'!$E$4='LDB Übersicht'!$AC$4,Legende!B58,IF('LDB Übersicht'!$E$4='LDB Übersicht'!$AC$5,Legende!C58,IF('LDB Übersicht'!$E$4='LDB Übersicht'!$AC$6,Legende!D58,"")))) -> Spigot diameter [mm] | G20: : | H20: 200 mm | W20: D=100 | X20: D=125 | Y20: D=140 | Z20: D=160 | AA20: D=200 | AB20: offen | AC20: 30° | AD20: 45° | AE20: 60° | AF20: 90° | AG20: offen | AH20: 20° | AI20: 30° | AJ20: 40° | AK20: 55°
AC21: 22.001 | AD21: 21.937 | AE21: 21.977 | AF21: 21.761 | AH21: 22.001 | AI21: 21.937 | AJ21: 21.977 | AK21: 21.761
D22: =IF('LDB Übersicht'!$E$4='LDB Übersicht'!$AC$3,Legende!A59,IF('LDB Übersicht'!$E$4='LDB Übersicht'!$AC$4,Legende!B59,IF('LDB Übersicht'!$E$4='LDB Übersicht'!$AC$5,Legende!C59,IF('LDB Übersicht'!$E$4='LDB Übersicht'!$AC$6,Legende!D59,"")))) -> Air flow rate | G22: : | H22: 588 | I22: =IF(OR('LDB Übersicht'!$E$5='LDB Übersicht'!$AD$5,'LDB Übersicht'!$E$5='LDB Übersicht'!$AD$6,'LDB Übersicht'!$E$5='LDB Übersicht'!$AD$7,'LDB Übersicht'!$E$5='LDB Übersicht'!$AD$8),"m³/h",IF(OR('LDB Übersicht'!$E$5='LDB Übersicht'!$AD$9,'LDB Übersicht'!$E$5='LDB Übersicht'!$AD$10,'LDB Übersicht'!$E$5='LDB Übersicht'!$AD$11,'LDB Übersicht'!$E$5='LDB Übersicht'!$AD$12),"cfm","")) -> cfm | V22: KLA | W22: =HLOOKUP(H46,$AB$20:$AF$25,2,FALSE) ->  | X22: =HLOOKUP(H46,$AB$20:$AF$25,3,FALSE) ->  | Y22: =HLOOKUP(H46,$AB$20:$AF$25,4,FALSE) ->  | Z22: =HLOOKUP(H46,$AB$20:$AF$25,5,FALSE) ->  | AA22: =HLOOKUP(H46,$AB$20:$AF$25,6,FALSE) ->  | AC22: 23.226 | AD22: 22.532 | AE22: 22.636 | AF22: 22.713 | AH22: 23.226 | AI22: 22.532 | AJ22: 22.636 | AK22: 22.713
V23: KLU | W23: =HLOOKUP(H46,$AG$20:$AK$25,2,FALSE) ->  | X23: =HLOOKUP(H46,$AG$20:$AK$25,3,FALSE) ->  | Y23: =HLOOKUP(H46,$AG$20:$AK$25,4,FALSE) ->  | Z23: =HLOOKUP(H46,$AG$20:$AK$25,5,FALSE) ->  | AA23: =HLOOKUP(H46,$AG$20:$AK$25,6,FALSE) ->  | AC23: 22.785 | AD23: 22.371 | AE23: 22.371 | AF23: 21.661 | AH23: 22.785 | AI23: 22.371 | AJ23: 22.371 | AK23: 21.661
D24: =IF('LDB Übersicht'!$E$4='LDB Übersicht'!$AC$3,Legende!A108,IF('LDB Übersicht'!$E$4='LDB Übersicht'!$AC$4,Legende!B108,IF('LDB Übersicht'!$E$4='LDB Übersicht'!$AC$5,Legende!C108,IF('LDB Übersicht'!$E$4='LDB Übersicht'!$AC$6,Legende!D108,"")))) -> Supply air under temperature | G24: : | H24: ='LDB Übersicht'!AC16 -> 5 | I24: K | V24: DLU | AC24: 22.994 | AD24: 23.08 | AE24: 22.666 | AF24: 23.083 | AH24: 22.994 | AI24: 23.08 | AJ24: 22.666 | AK24: 23.083
Q25: Profilabschluss | R25: Kasten | S25: Schalldämpfer | T25: Second fix | U25: Aufhängung | AC25: 22.407 | AD25: 21.762 | AE25: 21.441 | AF25: 21.441 | AH25: 22.407 | AI25: 21.762 | AJ25: 21.441 | AK25: 21.441
D26: ='LDB Übersicht'!$P$14 -> Jet spreading supply air | G26: : | H26: 5 | I26: =IF(OR('LDB Übersicht'!$E$5='LDB Übersicht'!$AD$5,'LDB Übersicht'!$E$5='LDB Übersicht'!$AD$6,'LDB Übersicht'!$E$5='LDB Übersicht'!$AD$7,'LDB Übersicht'!$E$5='LDB Übersicht'!$AD$8),"m",IF(OR('LDB Übersicht'!$E$5='LDB Übersicht'!$AD$9,'LDB Übersicht'!$E$5='LDB Übersicht'!$AD$10,'LDB Übersicht'!$E$5='LDB Übersicht'!$AD$11,'LDB Übersicht'!$E$5='LDB Übersicht'!$AD$12),"ft","")) -> ft | Q26: - | R26: - | S26: - | T26: O | U26: O
Q27: B | R27: S | S27: S | T27: M | U27: B
D28: ='LDB Übersicht'!$R$14 -> Max. air velocity | G28: : | H28: 0.22 | I28: =IF(OR('LDB Übersicht'!$E$5='LDB Übersicht'!$AD$5,'LDB Übersicht'!$E$5='LDB Übersicht'!$AD$6,'LDB Übersicht'!$E$5='LDB Übersicht'!$AD$7,'LDB Übersicht'!$E$5='LDB Übersicht'!$AD$8),"m/s",IF(OR('LDB Übersicht'!$E$5='LDB Übersicht'!$AD$9,'LDB Übersicht'!$E$5='LDB Übersicht'!$AD$10,'LDB Übersicht'!$E$5='LDB Übersicht'!$AD$11,'LDB Übersicht'!$E$5='LDB Übersicht'!$AD$12),"ft/s","")) -> ft/s | Q28: R | R28: D | U28: DB | V28: Konstantenauswahl aus rechtsstehender Liste | AB28: KLA Konstante für Akustikgleichung | AG28: KLU Konstante für Akustikgleichung
Q29: L | R29: X | W29: D=100 | X29: D=125 | Y29: D=140 | Z29: D=160 | AA29: D=200 | AB29: offen | AC29: 30° | AD29: 45° | AE29: 60° | AF29: 90° | AG29: offen | AH29: 20° | AI29: 30° | AJ29: 40° | AK29: 55°
D30: ='LDB Übersicht'!$T$14 -> Draught risk | G30: : | H30: 17 | R30: W | AC30: -63.154 | AD30: -61.764 | AE30: -61.006 | AF30: -59.148 | AH30: -63.154 | AI30: -61.764 | AJ30: -61.006 | AK30: -59.148
Q31: Drossel | V31: KLA | W31: =HLOOKUP(H46,$AB$29:$AF$34,2,FALSE) ->  | X31: =HLOOKUP(H46,$AB$29:$AF$34,3,FALSE) ->  | Y31: =HLOOKUP(H46,$AB$29:$AF$34,4,FALSE) ->  | Z31: =HLOOKUP(H46,$AB$29:$AF$34,5,FALSE) ->  | AA31: =HLOOKUP(H46,$AB$29:$AF$34,6,FALSE) ->  | AC31: -78.36 | AD31: -74.185 | AE31: -73.732 | AF31: -72.991 | AH31: -78.36 | AI31: -74.185 | AJ31: -73.732 | AK31: -72.991
D32: ='LDB Übersicht'!$U$15 -> Category DIN EN ISO 7730 | G32: : | H32: B | P32: =IF('LDB Übersicht'!$E$4='LDB Übersicht'!$AC$3,P33,IF('LDB Übersicht'!$E$4='LDB Übersicht'!$AC$4,P34,IF('LDB Übersicht'!$E$4='LDB Übersicht'!$AC$5,P35,IF('LDB Übersicht'!$E$4='LDB Übersicht'!$AC$6,P36)))) -> Information | Q32: SDA | R32: =IF($H$44=$Q$32,"-",IF($H$44="DLU","0°",IF($H$44="-","-",IF($H$44=$Q$34,"30°",IF($H$44=$Q$35,"20°"))))) -> - | V32: KLU | W32: =HLOOKUP(H46,$AG$29:$AK$34,2,FALSE) ->  | X32: =HLOOKUP(H46,$AG$29:$AK$34,3,FALSE) ->  | Y32: =HLOOKUP(H46,$AG$29:$AK$34,4,FALSE) ->  | Z32: =HLOOKUP(H46,$AG$29:$AK$34,5,FALSE) ->  | AA32: =HLOOKUP(H46,$AG$29:$AK$34,6,FALSE) ->  | AC32: -81.469 | AD32: -78.543 | AE32: -77.543 | AF32: -72.854 | AH32: -81.469 | AI32: -78.543 | AJ32: -77.543 | AK32: -72.854
P33: Information | Q33: =IF(OR($H$14=Q42,$H$14=Q43,$H$14=Q44,$H$14=Q45,$H$14=Q47,$H$14=Q48,$H$14=Q49,$H$14=Q50,$H$14=Q52,$H$14=Q53,$H$14=Q54,$H$14=Q55),"DLU","-") -> - | R33: =IF($H$44=$Q$32,"-",IF($H$44="DLU","45°",IF($H$44="-","-",IF($H$44=$Q$34,"45°",IF($H$44=$Q$35,"30°"))))) -> - | V33: DLU | AC33: -89.03 | AD33: -88.383 | AE33: -85.364 | AF33: -86.317 | AH33: -89.03 | AI33: -88.383 | AJ33: -85.364 | AK33: -86.317
D34: =IF('LDB Übersicht'!$E$4='LDB Übersicht'!$AC$3,Legende!A61,IF('LDB Übersicht'!$E$4='LDB Übersicht'!$AC$4,Legende!B61,IF('LDB Übersicht'!$E$4='LDB Übersicht'!$AC$5,Legende!C61,IF('LDB Übersicht'!$E$4='LDB Übersicht'!$AC$6,Legende!D61,"")))) -> End Caps | G34: : | H34: - | P34: Information | Q34: =IF($T$4=79,"-","KLA") -> KLA | R34: =IF($H$44=$Q$32,"-",IF($H$44="DLU","60°",IF($H$44="-","-",IF($H$44=$Q$34,"60°",IF($H$44=$Q$35,"40°"))))) -> - | AC34: -95.504 | AD34: -91.163 | AE34: -88.464 | AF34: -87.464 | AH34: -95.504 | AI34: -91.163 | AJ34: -88.464 | AK34: -87.464
P35: Informations | Q35: =IF($T$4=79,"-","KLU") -> KLU | R35: =IF($H$44=$Q$32,"-",IF($H$44="DLU","75°",IF($H$44="-","-",IF($H$44=$Q$34,"90°",IF($H$44=$Q$35,"55°"))))) -> - | V35: GLEICHUNG | W35: D=99 | X35: D=124 | Y35: D=139 | Z35: D=159 | AA35: D=199
D36: =IF('LDB Übersicht'!$E$4='LDB Übersicht'!$AC$3,Legende!A62,IF('LDB Übersicht'!$E$4='LDB Übersicht'!$AC$4,Legende!B62,IF('LDB Übersicht'!$E$4='LDB Übersicht'!$AC$5,Legende!C62,IF('LDB Übersicht'!$E$4='LDB Übersicht'!$AC$6,Legende!D62,"")))) -> Box Type | G36: : | H36: S | P36: Informazione | R36: =IF($H$44=$Q$32,"-",IF($H$44="DLU","90°",IF($H$44="-","-",IF($H$44=$Q$34,"-",IF($H$44=$Q$35,"-"))))) -> - | W36: 100 | X36: 125 | Y36: 140 | Z36: 160 | AA36: 200
D38: =IF('LDB Übersicht'!$E$4='LDB Übersicht'!$AC$3,Legende!A106,IF('LDB Übersicht'!$E$4='LDB Übersicht'!$AC$4,Legende!B106,IF('LDB Übersicht'!$E$4='LDB Übersicht'!$AC$5,Legende!C106,IF('LDB Übersicht'!$E$4='LDB Übersicht'!$AC$6,Legende!D106,"")))) -> Blind attachment | G38: : | H38: O
V39: FAKTOR | W39: =VLOOKUP(H44,$V$21:$AA$23,2,FALSE) ->  | X39: =VLOOKUP(H44,$V$21:$AA$23,3,FALSE) ->  | Y39: =VLOOKUP(H44,$V$21:$AA$23,4,FALSE) ->  | Z39: =VLOOKUP(H44,$V$21:$AA$23,5,FALSE) ->  | AA39: =VLOOKUP(H44,$V$21:$AA$23,6,FALSE) -> 
D40: =IF('LDB Übersicht'!$E$4='LDB Übersicht'!$AC$3,Legende!A63,IF('LDB Übersicht'!$E$4='LDB Übersicht'!$AC$4,Legende!B63,IF('LDB Übersicht'!$E$4='LDB Übersicht'!$AC$5,Legende!C63,IF('LDB Übersicht'!$E$4='LDB Übersicht'!$AC$6,Legende!D63,"")))) -> sound absorber | G40: : | H40: - | P40: =IF('LDB Übersicht'!$E$4='LDB Übersicht'!$AC$3,P41,IF('LDB Übersicht'!$E$4='LDB Übersicht'!$AC$4,P42,IF('LDB Übersicht'!$E$4='LDB Übersicht'!$AC$5,P43,IF('LDB Übersicht'!$E$4='LDB Übersicht'!$AC$6,P44)))) -> Info sound absorber | R40: LWA Kasten El. | S40: LWASchlitz El. | T40: LWA | V40: KONSTANTE | W40: =VLOOKUP(H44,$V$30:$AA$32,2,FALSE) ->  | X40: =VLOOKUP(H44,$V$30:$AA$32,3,FALSE) ->  | Y40: =VLOOKUP(H44,$V$30:$AA$32,4,FALSE) ->  | Z40: =VLOOKUP(H44,$V$30:$AA$32,5,FALSE) ->  | AA40: =VLOOKUP(H44,$V$30:$AA$32,6,FALSE) -> 
P41: Information zum Schalldämpfer | R41: Mess. Hoffmann | S41: Mess. Hoffmann | T41: Element | V41: KORREKTUR | W41: 0 | X41: 2 | Y41: 3 | Z41: 4 | AA41: 6 | AB41: =+IF(AC41<0,0,AC41) ->  | AC41: =+((HLOOKUP(T4,W36:AA41,2,FALSE))*LN(R6/T6)+(HLOOKUP(T4,W36:AA41,3,FALSE)))+HLOOKUP(T4,W36:AA41,4,FALSE) -> 
D42: =IF('LDB Übersicht'!$E$4='LDB Übersicht'!$AC$3,Legende!A64,IF('LDB Übersicht'!$E$4='LDB Übersicht'!$AC$4,Legende!B64,IF('LDB Übersicht'!$E$4='LDB Übersicht'!$AC$5,Legende!C64,IF('LDB Übersicht'!$E$4='LDB Übersicht'!$AC$6,Legende!D64,"")))) -> Subsequently installation (Sec. Fix) | G42: : | H42: O | P42: Info sound absorber | Q42: ='LDB Übersicht'!E21&" "&'LDB Übersicht'!F21 -> LDB 12 clean 1-slot | R42: =(-0.0022355889*(T4)^2 + 0.4201809847*T4 + 5.399628589)*LN(R6/T6)+(-0.0000029509*(T4)^3 + 0.0099403371*(T4)^2 - 1.9777335627*T4+ 21.5271635053)+10*LOG(T6) -> 4.829233399 | S42: =73.7573595264*LOG(R6/(R4/1000))-119.2146207935+10*LOG(R4/1000) -> 81.5408564 | T42: =10*LOG(10^(0.1*S42)+10^(0.1*R42)) -> 81.54085649
P43: Informations sur le silencieux | Q43: ='LDB Übersicht'!E22&" "&'LDB Übersicht'!F22 -> LDB 12 clean 2-slot | R43: =(0.000000036775*T4^4 - 0.000097789296*T4^3 + 0.031851098925*T4^2 - 3.518164042311*T4 + 153.06267686179)*LN(R6/T6)+(-0.000001589267*T4^4 + 0.001198286334*T4^3 - 0.287868077763*T4^2 + 27.229051331336*T4- 974.551194289673) -> -0.003719047432 | S43: =53.6850931947*LOG(R6/(R4/1000)) -89.3138537125+10*LOG(R4/1000) -> 57.68508019 | T43: =10*LOG(10^(0.1*S43)+10^(0.1*R43)) -> 57.68508758
D44: =IF('LDB Übersicht'!$E$4='LDB Übersicht'!$AC$3,Legende!A65,IF('LDB Übersicht'!$E$4='LDB Übersicht'!$AC$4,Legende!B65,IF('LDB Übersicht'!$E$4='LDB Übersicht'!$AC$5,Legende!C65,IF('LDB Übersicht'!$E$4='LDB Übersicht'!$AC$6,Legende!D65,"")))) -> Connection-Type | G44: : | H44: SDA | P44: Informazioni sull'assorbitore acustico | Q44: ='LDB Übersicht'!E23&" "&'LDB Übersicht'!F23 -> LDB 12 clean 3-slot | R44: =(-0.000023788293*T4^3+0.006551313626*T4^2-0.573673222638*T4+42.996345567831)*LN(R6/T6)+(0.000099312149*T4^3-0.024864140926*T4^2+1.505393168403*T4-101.04319263046)+10*LOG(T6) -> 4.784119594 | S44: =57.5627700098*LOG(R6/(R4/1000)) -107.295103557+10*LOG(R4/1000) -> 50.08883113 | T44: =10*LOG(10^(0.1*S44)+10^(0.1*R44)) -> 50.08895915
Q45: ='LDB Übersicht'!E24&" "&'LDB Übersicht'!F24 -> LDB 12 clean 4-slot | R45: =(-0.000023788293*T4^3 + 0.006551313626*T4^2 - 0.573673222638*T4 + 42.996345567831)*LN(R6/T6)+(0.000099312149*T4^3 - 0.024864140926*T4^2 + 1.505393168403*T4 - 101.04319263046)+10*LOG(T6) -> 4.784119594 | S45: =62.1456597122*LOG(R6/(R4/1000)) -121.8124227521+10*LOG(R4/1000) -> 47.84517872 | T45: =10*LOG(10^(0.1*S45)+10^(0.1*R45)) -> 47.84539334 | V45: Faktorauswahl aus rechtsstehender Liste | AB45: KLA Faktor für Druckverlustgleichung | AG45: KLU Faktor für Druckverlustgleichung
D46: =IF('LDB Übersicht'!$E$4='LDB Übersicht'!$AC$3,Legende!A66,IF('LDB Übersicht'!$E$4='LDB Übersicht'!$AC$4,Legende!B66,IF('LDB Übersicht'!$E$4='LDB Übersicht'!$AC$5,Legende!C66,IF('LDB Übersicht'!$E$4='LDB Übersicht'!$AC$6,Legende!D66,"")))) -> throttle damper | G46: : | H46: - | Q46: ='LDB Übersicht'!E30&" "&'LDB Übersicht'!F30 ->  | W46: D=100 | X46: D=125 | Y46: D=140 | Z46: D=160 | AA46: D=200 | AB46: offen | AC46: 30° | AD46: 45° | AE46: 60° | AF46: 90° | AG46: offen | AH46: 20° | AI46: 30° | AJ46: 40° | AK46: 55°
Q47: ='LDB Übersicht'!E26&" "&'LDB Übersicht'!F26 -> LDB 12 style 1-slot | R47: =(-0.0022355889*(T4)^2 + 0.4201809847*T4 + 5.399628589)*LN(R6/T6)+(-0.0000029509*(T4)^3 + 0.0099403371*(T4)^2 - 1.9777335627*T4+ 21.5271635053)+10*LOG(T6) -> 4.829233399 | S47: =73.7573595264*LOG(R6/(R4/1000))-119.2146207935+10*LOG(R4/1000) -> 81.5408564 | T47: =10*LOG(10^(0.1*S47)+10^(0.1*R47)) -> 81.54085649 | AC47: 0.0011 | AD47: 0.0055 | AE47: 0.0152 | AF47: 0.0243 | AH47: 0.0011 | AI47: 0.0055 | AJ47: 0.0152 | AK47: 0.0243
D48: =IF('LDB Übersicht'!$E$4='LDB Übersicht'!$AC$3,Legende!A67,IF('LDB Übersicht'!$E$4='LDB Übersicht'!$AC$4,Legende!B67,IF('LDB Übersicht'!$E$4='LDB Übersicht'!$AC$5,Legende!C67,IF('LDB Übersicht'!$E$4='LDB Übersicht'!$AC$6,Legende!D67,"")))) -> Pressure loss | G48: : | H48: =P49+IF(H44="DLU",AC8,IF(OR(H44="SDA",H44="-"),0,AB64)) -> 15 | P48: Druckverlust | Q48: ='LDB Übersicht'!E27&" "&'LDB Übersicht'!F27 -> LDB 12 style 2-slot | R48: =(0.000000036775*T4^4 - 0.000097789296*T4^3 + 0.031851098925*T4^2 - 3.518164042311*T4 + 153.06267686179)*LN(R6/T6)+(-0.000001589267*T4^4 + 0.001198286334*T4^3 - 0.287868077763*T4^2 + 27.229051331336*T4- 974.551194289673) -> -0.003719047432 | S48: =53.6850931947*LOG(R6/(R4/1000)) -89.3138537125+10*LOG(R4/1000) -> 57.68508019 | T48: =10*LOG(10^(0.1*S48)+10^(0.1*R48)) -> 57.68508758 | V48: KLA | W48: =HLOOKUP(H46,$AB$46:$AF$51,2,FALSE) ->  | X48: =HLOOKUP(H46,$AB$46:$AF$51,3,FALSE) ->  | Y48: =HLOOKUP(H46,$AB$46:$AF$51,4,FALSE) ->  | Z48: =HLOOKUP(H46,$AB$46:$AF$51,5,FALSE) ->  | AA48: =HLOOKUP(H46,$AB$46:$AF$51,6,FALSE) ->  | AC48: 0.0003 | AD48: 0.0019 | AE48: 0.0033 | AF48: 0.0059 | AH48: 0.0003 | AI48: 0.0019 | AJ48: 0.0033 | AK48: 0.0059
P49: 15 | Q49: ='LDB Übersicht'!E28&" "&'LDB Übersicht'!F28 -> LDB 12 style 3-slot | R49: =(-0.000023788293*T4^3+0.006551313626*T4^2-0.573673222638*T4+42.996345567831)*LN(R6/T6)+(0.000099312149*T4^3-0.024864140926*T4^2+1.505393168403*T4-101.04319263046)+10*LOG(T6) -> 4.784119594 | S49: =57.5627700098*LOG(R6/(R4/1000)) -107.295103557+10*LOG(R4/1000) -> 50.08883113 | T49: =10*LOG(10^(0.1*S49)+10^(0.1*R49)) -> 50.08895915 | V49: KLU | W49: =HLOOKUP(H46,$AG$46:$AK$51,2,FALSE) ->  | X49: =HLOOKUP(H46,$AG$46:$AK$51,3,FALSE) ->  | Y49: =HLOOKUP(H46,$AG$46:$AK$51,4,FALSE) ->  | Z49: =HLOOKUP(H46,$AG$46:$AK$51,5,FALSE) ->  | AA49: =HLOOKUP(H46,$AG$46:$AK$51,6,FALSE) ->  | AC49: 0.0002 | AD49: 0.0012 | AE49: 0.0029 | AF49: 0.0041 | AH49: 0.0002 | AI49: 0.0012 | AJ49: 0.0029 | AK49: 0.0041
D50: =IF('LDB Übersicht'!$E$4='LDB Übersicht'!$AC$3,Legende!A68,IF('LDB Übersicht'!$E$4='LDB Übersicht'!$AC$4,Legende!B68,IF('LDB Übersicht'!$E$4='LDB Übersicht'!$AC$5,Legende!C68,IF('LDB Übersicht'!$E$4='LDB Übersicht'!$AC$6,Legende!D68,"")))) -> A-rated sound power level | G50: : | H50: =ROUNDDOWN(10*LOG((10^(P8/10)+10^(IF(H44="DLU",AC14,IF(OR(H44="SDA",H44="-"),0,AB41))/10))),1) -> 36.9 | Q50: ='LDB Übersicht'!E29&" "&'LDB Übersicht'!F29 -> LDB 12 style 4-slot | R50: =(-0.000023788293*T4^3 + 0.006551313626*T4^2 - 0.573673222638*T4 + 42.996345567831)*LN(R6/T6)+(0.000099312149*T4^3 - 0.024864140926*T4^2 + 1.505393168403*T4 - 101.04319263046)+10*LOG(T6) -> 4.784119594 | S50: =62.1456597122*LOG(R6/(R4/1000)) -121.8124227521+10*LOG(R4/1000) -> 47.84517872 | T50: =10*LOG(10^(0.1*S50)+10^(0.1*R50)) -> 47.84539334 | V50: DLU | AC50: =1*10^-4 -> 0.0001 | AD50: 0.0005 | AE50: 0.0012 | AF50: 0.0025 | AH50: =1*10^-4 -> 0.0001 | AI50: 0.0005 | AJ50: 0.0012 | AK50: 0.0025
P51: max.zulässiger Schalldruck im Raum | AC51: =5*10^-5 -> 5e-05 | AD51: 0.0003 | AE51: 0.0006 | AF51: 0.0008 | AH51: =5*10^-5 -> 5e-05 | AI51: 0.0003 | AJ51: 0.0006 | AK51: 0.0008
D52: ='LDB Übersicht'!$L$15 -> Quantity | G52: : | H52: 2 | P52: ='LDB Übersicht'!L10 -> 35 | Q52: ='LDB Übersicht'!E31&" "&'LDB Übersicht'!F31 -> LDB 20 classic 1-slot | R52: =(-0.0022355889*(T4)^2 + 0.4201809847*T4 + 5.399628589)*LN(R6/T6)+(-0.0000029509*(T4)^3 + 0.0099403371*(T4)^2 - 1.9777335627*T4+ 21.5271635053)+10*LOG(T6) -> 4.829233399 | S52: =54.6883629879*LOG(R6/(R4/1000)) -78.1021786699+10*LOG(R4/1000) -> 71.58366239 | T52: =10*LOG(10^(0.1*S52)+10^(0.1*R52)) -> 71.5836633
Q53: ='LDB Übersicht'!E32&" "&'LDB Übersicht'!F32 -> LDB 20 classic 2-slot | R53: =(0.000000036775*T4^4 - 0.000097789296*T4^3 + 0.031851098925*T4^2 - 3.518164042311*T4 + 153.06267686179)*LN(R6/T6)+(-0.000001589267*T4^4 + 0.001198286334*T4^3 - 0.287868077763*T4^2 + 27.229051331336*T4- 974.551194289673) -> -0.003719047432 | S53: =53.6850931947*LOG(R6/(R4/1000)) -89.3138537125+10*LOG(R4/1000) -> 57.68508019 | T53: =10*LOG(10^(0.1*S53)+10^(0.1*R53)) -> 57.68508758
D54: ='LDB Übersicht'!$M$16 -> Diffuser length total room | G54: : | H54: =IF(OR('LDB Übersicht'!$E$5='LDB Übersicht'!$AD$5,'LDB Übersicht'!$E$5='LDB Übersicht'!$AD$6,'LDB Übersicht'!$E$5='LDB Übersicht'!$AD$7,'LDB Übersicht'!$E$5='LDB Übersicht'!$AD$8),H52*R4/1000,IF(OR('LDB Übersicht'!$E$5='LDB Übersicht'!$AD$9,'LDB Übersicht'!$E$5='LDB Übersicht'!$AD$10,'LDB Übersicht'!$E$5='LDB Übersicht'!$AD$11,'LDB Übersicht'!$E$5='LDB Übersicht'!$AD$12),(+H52*R4/1000)*3.28084)) -> 13.779528 | I54: =IF(OR('LDB Übersicht'!$E$5='LDB Übersicht'!$AD$5,'LDB Übersicht'!$E$5='LDB Übersicht'!$AD$6,'LDB Übersicht'!$E$5='LDB Übersicht'!$AD$7,'LDB Übersicht'!$E$5='LDB Übersicht'!$AD$8),"m",IF(OR('LDB Übersicht'!$E$5='LDB Übersicht'!$AD$9,'LDB Übersicht'!$E$5='LDB Übersicht'!$AD$10,'LDB Übersicht'!$E$5='LDB Übersicht'!$AD$11,'LDB Übersicht'!$E$5='LDB Übersicht'!$AD$12),"ft","")) -> ft | Q54: ='LDB Übersicht'!E33&" "&'LDB Übersicht'!F33 -> LDB 20 classic 3-slot | R54: =(-0.000023788293*T4^3 + 0.006551313626*T4^2 - 0.573673222638*T4 + 42.996345567831)*LN(R6/T6)+(0.000099312149*T4^3 - 0.024864140926*T4^2 + 1.505393168403*T4 - 101.04319263046)+10*LOG(T6) -> 4.784119594 | S54: =65.3168380226*LOG(R6/(R4/1000)) -129.3287746354+10*LOG(R4/1000) -> 48.82171854 | T54: =10*LOG(10^(0.1*S54)+10^(0.1*R54)) -> 48.82188994 | V54: Exponentenauswahl aus rechtsstehender Liste | AB54: KLA Exponent für Druckverlustgleichung | AG54: KLU Exponent für Druckverlustgleichung
Q55: ='LDB Übersicht'!E34&" "&'LDB Übersicht'!F34 -> LDB 20 classic 4-slot | R55: =(-0.000023788293*T4^3 + 0.006551313626*T4^2 - 0.573673222638*T4 + 42.996345567831)*LN(R6/T6)+(0.000099312149*T4^3 - 0.024864140926*T4^2 + 1.505393168403*T4 - 101.04319263046)+10*LOG(T6) -> 4.784119594 | S55: =62.1456597122*LOG(R6/(R4/1000)) -121.8124227521+10*LOG(R4/1000) -> 47.84517872 | T55: =10*LOG(10^(0.1*S55)+10^(0.1*R55)) -> 47.84539334 | W55: D=100 | X55: D=125 | Y55: D=140 | Z55: D=160 | AA55: D=200 | AB55: offen | AC55: 30° | AD55: 45° | AE55: 60° | AF55: 90° | AG55: offen | AH55: 20° | AI55: 30° | AJ55: 40° | AK55: 55°
D56: =IF('LDB Übersicht'!$E$4='LDB Übersicht'!$AC$3,Legende!A69,IF('LDB Übersicht'!$E$4='LDB Übersicht'!$AC$4,Legende!B69,IF('LDB Übersicht'!$E$4='LDB Übersicht'!$AC$5,Legende!C69,IF('LDB Übersicht'!$E$4='LDB Übersicht'!$AC$6,Legende!D69,"")))) -> Actual total air flow rate | G56: : | H56: =+ROUND(H52*H22,0) -> 1176 | I56: =IF(OR('LDB Übersicht'!$E$5='LDB Übersicht'!$AD$5,'LDB Übersicht'!$E$5='LDB Übersicht'!$AD$6,'LDB Übersicht'!$E$5='LDB Übersicht'!$AD$7,'LDB Übersicht'!$E$5='LDB Übersicht'!$AD$8),"m³/h",IF(OR('LDB Übersicht'!$E$5='LDB Übersicht'!$AD$9,'LDB Übersicht'!$E$5='LDB Übersicht'!$AD$10,'LDB Übersicht'!$E$5='LDB Übersicht'!$AD$11,'LDB Übersicht'!$E$5='LDB Übersicht'!$AD$12),"cfm","")) -> cfm | AC56: 2.0174 | AD56: 1.8543 | AE56: 1.8121 | AF56: 1.9328 | AH56: 2.0174 | AI56: 1.8543 | AJ56: 1.8121 | AK56: 1.9328
V57: KLA | W57: =HLOOKUP(H46,$AB$55:$AF$60,2,FALSE) ->  | X57: =HLOOKUP(H46,$AB$55:$AF$60,3,FALSE) ->  | Y57: =HLOOKUP(H46,$AB$55:$AF$60,4,FALSE) ->  | Z57: =HLOOKUP(H46,$AB$55:$AF$60,5,FALSE) ->  | AA57: =HLOOKUP(H46,$AB$55:$AF$60,6,FALSE) ->  | AC57: 2.1069 | AD57: 1.8995 | AE57: 1.9675 | AF57: 2.0462 | AH57: 2.1069 | AI57: 1.8995 | AJ57: 1.9675 | AK57: 2.0462
D58: =IF('LDB Übersicht'!$E$4='LDB Übersicht'!$AC$3,Legende!A70,IF('LDB Übersicht'!$E$4='LDB Übersicht'!$AC$4,Legende!B70,IF('LDB Übersicht'!$E$4='LDB Übersicht'!$AC$5,Legende!C70,IF('LDB Übersicht'!$E$4='LDB Übersicht'!$AC$6,Legende!D70,"")))) -> Room sound absorpion | G58: : | H58: 6.4 | I58: dB | P58: =IF('LDB Übersicht'!$E$4='LDB Übersicht'!$AC$3,P59,IF('LDB Übersicht'!$E$4='LDB Übersicht'!$AC$4,P60,IF('LDB Übersicht'!$E$4='LDB Übersicht'!$AC$5,P61,IF('LDB Übersicht'!$E$4='LDB Übersicht'!$AC$6,P62)))) -> Back | Q58: =IF('LDB Übersicht'!$E$4='LDB Übersicht'!$AC$3,Q59,IF('LDB Übersicht'!$E$4='LDB Übersicht'!$AC$4,Q60,IF('LDB Übersicht'!$E$4='LDB Übersicht'!$AC$5,Q61,IF('LDB Übersicht'!$E$4='LDB Übersicht'!$AC$6,Q62)))) -> add to list | R58: =IF('LDB Übersicht'!$E$4='LDB Übersicht'!$AC$3,R59,IF('LDB Übersicht'!$E$4='LDB Übersicht'!$AC$4,R60,IF('LDB Übersicht'!$E$4='LDB Übersicht'!$AC$5,R61,IF('LDB Übersicht'!$E$4='LDB Übersicht'!$AC$6,R62)))) -> Information on throttle setting | V58: KLU | W58: =HLOOKUP(H46,$AG$55:$AK$60,2,FALSE) ->  | X58: =HLOOKUP(H46,$AG$55:$AK$60,3,FALSE) ->  | Y58: =HLOOKUP(H46,$AG$55:$AK$60,4,FALSE) ->  | Z58: =HLOOKUP(H46,$AG$55:$AK$60,5,FALSE) ->  | AA58: =HLOOKUP(H46,$AG$55:$AK$60,6,FALSE) ->  | AC58: 2.0537 | AD58: 1.909 | AE58: 1.9083 | AF58: 2.0313 | AH58: 2.0537 | AI58: 1.909 | AJ58: 1.9083 | AK58: 2.0313
J59: =IF(AND(H60>P52,'LDB Übersicht'!$E$4='LDB Übersicht'!$AC$3),Legende!A107,IF(AND(H60>P52,'LDB Übersicht'!$E$4='LDB Übersicht'!$AC$4),Legende!B107,IF(AND(H60>P52,'LDB Übersicht'!$E$4='LDB Übersicht'!$AC$5),Legende!C107,IF(AND(H60>P52,'LDB Übersicht'!$E$4='LDB Übersicht'!$AC$6),Legende!D107,"")))) ->  | P59: Zurück | Q59: In Liste Übernehmen | R59: Information zur Drosseleinstellung | V59: DLU | AC59: 2.1171 | AD59: 1.9711 | AE59: 1.9613 | AF59: 2.0115 | AH59: 2.1171 | AI59: 1.9711 | AJ59: 1.9613 | AK59: 2.0115
D60: =IF('LDB Übersicht'!$E$4='LDB Übersicht'!$AC$3,Legende!A71,IF('LDB Übersicht'!$E$4='LDB Übersicht'!$AC$4,Legende!B71,IF('LDB Übersicht'!$E$4='LDB Übersicht'!$AC$5,Legende!C71,IF('LDB Übersicht'!$E$4='LDB Übersicht'!$AC$6,Legende!D71,"")))) -> Sound pressure level in the room | G60: : | H60: =ROUNDDOWN(10*LOG(H52*10^(0.1*H50))-H58,1) -> 33.5 | P60: Back | Q60: add to list | R60: Information on throttle setting | AC60: 2.0603 | AD60: 1.9172 | AE60: 1.9367 | AF60: 2.0524 | AH60: 2.0603 | AI60: 1.9172 | AJ60: 1.9367 | AK60: 2.0524
P61: Retour | Q61: ajouter à la liste | R61: Informations sur la manette des gaz | V61: GLEICHUNG | W61: D=100 | X61: D=125 | Y61: D=140 | Z61: D=160 | AA61: D=200
P62: Indietro | Q62: Aggiungi alla lista | R62: Informazioni sull'acceleratore | W62: 100 | X62: 125 | Y62: 140 | Z62: 160 | AA62: 200
V63: FAKTOR | W63: =VLOOKUP(H44,$V$47:$AA$49,2,FALSE) ->  | X63: =VLOOKUP(H44,$V$47:$AA$49,3,FALSE) ->  | Y63: =VLOOKUP(H44,$V$47:$AA$49,4,FALSE) ->  | Z63: =VLOOKUP(H44,$V$47:$AA$49,5,FALSE) ->  | AA63: =VLOOKUP(H44,$V$47:$AA$49,6,FALSE) -> 
C64: ='LDB Übersicht'!D40 -> © LTG Aktiengesellschaft: 28.07.2021 - LES - V1.5 | V64: EXPONENT | W64: =VLOOKUP(H44,$V$56:$AA$58,2,FALSE) ->  | X64: =VLOOKUP(H44,$V$56:$AA$58,3,FALSE) ->  | Y64: =VLOOKUP(H44,$V$56:$AA$58,4,FALSE) ->  | Z64: =VLOOKUP(H44,$V$56:$AA$58,5,FALSE) ->  | AA64: =VLOOKUP(H44,$V$56:$AA$58,6,FALSE) ->  | AB64: =+IF(AC64<0,0,AC64) ->  | AC64: =+HLOOKUP(T4,W62:AA64,2,FALSE)*(R6/T6)^(HLOOKUP(T4,W62:AA64,3,FALSE)) -> 
C65: ='LDB Übersicht'!D41 -> Information on tolerances and other specifications can be found in the current technical documentation.
C66: ='LDB Übersicht'!D42 -> You can find this at www.LTG.de. We cannot guarantee that the program is free from errors.

Sheet Liste
C3: ='LDB Übersicht'!C7 -> Date: | E3: =IF('LDB Übersicht'!E7="","",'LDB Übersicht'!E7) -> 2021-07-29 | V3: =IF('LDB Übersicht'!$E$4='LDB Übersicht'!$AC$3,V4,IF('LDB Übersicht'!$E$4='LDB Übersicht'!$AC$4,V5,IF('LDB Übersicht'!$E$4='LDB Übersicht'!$AC$5,V6,IF('LDB Übersicht'!$E$4='LDB Übersicht'!$AC$6,V7)))) -> Print a list | W3: =IF('LDB Übersicht'!$E$4='LDB Übersicht'!$AC$3,W4,IF('LDB Übersicht'!$E$4='LDB Übersicht'!$AC$4,W5,IF('LDB Übersicht'!$E$4='LDB Übersicht'!$AC$5,W6,IF('LDB Übersicht'!$E$4='LDB Übersicht'!$AC$6,W7)))) -> Create tender text | X3: =IF('LDB Übersicht'!$E$4='LDB Übersicht'!$AC$3,X4,IF('LDB Übersicht'!$E$4='LDB Übersicht'!$AC$4,X5,IF('LDB Übersicht'!$E$4='LDB Übersicht'!$AC$5,X6,IF('LDB Übersicht'!$E$4='LDB Übersicht'!$AC$6,X7)))) -> Delete list | Y3: =IF('LDB Übersicht'!$E$4='LDB Übersicht'!$AC$3,Y4,IF('LDB Übersicht'!$E$4='LDB Übersicht'!$AC$4,Y5,IF('LDB Übersicht'!$E$4='LDB Übersicht'!$AC$5,Y6,IF('LDB Übersicht'!$E$4='LDB Übersicht'!$AC$6,Y7)))) -> Sort list | Z3: =IF('LDB Übersicht'!$E$4='LDB Übersicht'!$AC$3,Z4,IF('LDB Übersicht'!$E$4='LDB Übersicht'!$AC$4,Z5,IF('LDB Übersicht'!$E$4='LDB Übersicht'!$AC$5,Z6,IF('LDB Übersicht'!$E$4='LDB Übersicht'!$AC$6,Z7)))) -> Undo sorting | AA3: =IF('LDB Übersicht'!$E$4='LDB Übersicht'!$AC$3,AA4,IF('LDB Übersicht'!$E$4='LDB Übersicht'!$AC$4,AA5,IF('LDB Übersicht'!$E$4='LDB Übersicht'!$AC$5,AA6,IF('LDB Übersicht'!$E$4='LDB Übersicht'!$AC$6,AA7)))) -> To overview | AB3: =IF('LDB Übersicht'!$E$4='LDB Übersicht'!$AC$3,AB4,IF('LDB Übersicht'!$E$4='LDB Übersicht'!$AC$4,AB5,IF('LDB Übersicht'!$E$4='LDB Übersicht'!$AC$5,AB6,IF('LDB Übersicht'!$E$4='LDB Übersicht'!$AC$6,AB7)))) -> Generate PDF | AC3: =IF('LDB Übersicht'!$E$4='LDB Übersicht'!$AC$3,AC4,IF('LDB Übersicht'!$E$4='LDB Übersicht'!$AC$4,AC5,IF('LDB Übersicht'!$E$4='LDB Übersicht'!$AC$5,AC6,IF('LDB Übersicht'!$E$4='LDB Übersicht'!$AC$6,AC7)))) -> Delete Pos. No.
C4: ='LDB Übersicht'!C8 -> Editor: | E4: =IF('LDB Übersicht'!E8="","",'LDB Übersicht'!E8) ->  | V4: Liste Drucken | W4: Ausschreibungstext erstellen | X4: Liste löschen | Y4: Liste sortieren | Z4: Sortierung rückgängig | AA4: Zur Startseite | AB4: PDF erzeugen | AC4: Pos. Nr. löschen
C5: ='LDB Übersicht'!C9 -> Project: | E5: =IF('LDB Übersicht'!E9="","",'LDB Übersicht'!E9) ->  | P5: E-Mail: Info@LTG.de | V5: Print a list | W5: Create tender text | X5: Delete list | Y5: Sort list | Z5: Undo sorting | AA5: To overview | AB5: Generate PDF | AC5: Delete Pos. No.
C6: ='LDB Übersicht'!C10 -> Variant: | E6: =IF('LDB Übersicht'!E10="","",'LDB Übersicht'!E10) ->  | P6: Tel. +49 (0)711 8201-0 | V6: Imprimer une liste | W6: Créer un texte d'appel d'offres | X6: Supprimer la liste | Y6: Trier la liste | Z6: Annuler le tri | AA6: Vers l'aperçu | AB6: Générer un PDF | AC6: Supprimer Réf. No.
C7: ='LDB Übersicht'!C11 -> Order number: | E7: =IF('LDB Übersicht'!E11="","",'LDB Übersicht'!E11) ->  | P7: ='LDB Übersicht'!D40 -> © LTG Aktiengesellschaft: 28.07.2021 - LES - V1.5 | V7: Stampa un elenco | W7: Crea un testo tenero | X7: Elimina elenco | Y7: Ordina elenco | Z7: Annulla l'ordinamento | AA7: Alla panoramica | AB7: Genera PDF | AC7: Elimina Nr. Pos.
P8: ='LDB Übersicht'!D41 & " " & 'LDB Übersicht'!D42 -> Information on tolerances and other specifications can be found in the current technical documentation. You can find this at www.LTG.de. We cannot guarantee that the program is free from errors.
V9: Liste sortiert
V10: Nein
C11: =IF('LDB Übersicht'!$E$4='LDB Übersicht'!$AC$3,Legende!A85,IF('LDB Übersicht'!$E$4='LDB Übersicht'!$AC$4,Legende!B85,IF('LDB Übersicht'!$E$4='LDB Übersicht'!$AC$5,Legende!C85,IF('LDB Übersicht'!$E$4='LDB Übersicht'!$AC$6,Legende!D85,"")))) -> Reference | F11: =IF('LDB Übersicht'!$E$4='LDB Übersicht'!$AC$3,Legende!A89,IF('LDB Übersicht'!$E$4='LDB Übersicht'!$AC$4,Legende!B89,IF('LDB Übersicht'!$E$4='LDB Übersicht'!$AC$5,Legende!C89,IF('LDB Übersicht'!$E$4='LDB Übersicht'!$AC$6,Legende!D89,"")))) -> LDB Type | I11: =IF('LDB Übersicht'!$E$4='LDB Übersicht'!$AC$3,Legende!A92,IF('LDB Übersicht'!$E$4='LDB Übersicht'!$AC$4,Legende!B92,IF('LDB Übersicht'!$E$4='LDB Übersicht'!$AC$5,Legende!C92,IF('LDB Übersicht'!$E$4='LDB Übersicht'!$AC$6,Legende!D92,"")))) -> Linear diffuser | L11: =IF('LDB Übersicht'!$E$4='LDB Übersicht'!$AC$3,Legende!A96,IF('LDB Übersicht'!$E$4='LDB Übersicht'!$AC$4,Legende!B96,IF('LDB Übersicht'!$E$4='LDB Übersicht'!$AC$5,Legende!C96,IF('LDB Übersicht'!$E$4='LDB Übersicht'!$AC$6,Legende!D96,"")))) -> Box Type | R11: =IF('LDB Übersicht'!$E$4='LDB Übersicht'!$AC$3,Legende!A103,IF('LDB Übersicht'!$E$4='LDB Übersicht'!$AC$4,Legende!B103,IF('LDB Übersicht'!$E$4='LDB Übersicht'!$AC$5,Legende!C103,IF('LDB Übersicht'!$E$4='LDB Übersicht'!$AC$6,Legende!D103,"")))) -> Technical specifications
C12: =IF('LDB Übersicht'!$E$4='LDB Übersicht'!$AC$3,Legende!A86,IF('LDB Übersicht'!$E$4='LDB Übersicht'!$AC$4,Legende!B86,IF('LDB Übersicht'!$E$4='LDB Übersicht'!$AC$5,Legende!C86,IF('LDB Übersicht'!$E$4='LDB Übersicht'!$AC$6,Legende!D86,"")))) -> Pos. No. | D12: =IF('LDB Übersicht'!$E$4='LDB Übersicht'!$AC$3,Legende!A87,IF('LDB Übersicht'!$E$4='LDB Übersicht'!$AC$4,Legende!B87,IF('LDB Übersicht'!$E$4='LDB Übersicht'!$AC$5,Legende!C87,IF('LDB Übersicht'!$E$4='LDB Übersicht'!$AC$6,Legende!D87,"")))) -> Quantity | E12: =IF('LDB Übersicht'!$E$4='LDB Übersicht'!$AC$3,Legende!A88,IF('LDB Übersicht'!$E$4='LDB Übersicht'!$AC$4,Legende!B88,IF('LDB Übersicht'!$E$4='LDB Übersicht'!$AC$5,Legende!C88,IF('LDB Übersicht'!$E$4='LDB Übersicht'!$AC$6,Legende!D88,"")))) -> Description | F12: =IF('LDB Übersicht'!$E$4='LDB Übersicht'!$AC$3,Legende!A90,IF('LDB Übersicht'!$E$4='LDB Übersicht'!$AC$4,Legende!B90,IF('LDB Übersicht'!$E$4='LDB Übersicht'!$AC$5,Legende!C90,IF('LDB Übersicht'!$E$4='LDB Übersicht'!$AC$6,Legende!D90,"")))) -> Type | G12: =IF('LDB Übersicht'!$E$4='LDB Übersicht'!$AC$3,Legende!A91,IF('LDB Übersicht'!$E$4='LDB Übersicht'!$AC$4,Legende!B91,IF('LDB Übersicht'!$E$4='LDB Übersicht'!$AC$5,Legende!C91,IF('LDB Übersicht'!$E$4='LDB Übersicht'!$AC$6,Legende!D91,"")))) -> Air flow rate | I12: =IF('LDB Übersicht'!$E$4='LDB Übersicht'!$AC$3,Legende!A93,IF('LDB Übersicht'!$E$4='LDB Übersicht'!$AC$4,Legende!B93,IF('LDB Übersicht'!$E$4='LDB Übersicht'!$AC$5,Legende!C93,IF('LDB Übersicht'!$E$4='LDB Übersicht'!$AC$6,Legende!D93,"")))) -> Length of the linear diffusers | J12: =IF('LDB Übersicht'!$E$4='LDB Übersicht'!$AC$3,Legende!A94,IF('LDB Übersicht'!$E$4='LDB Übersicht'!$AC$4,Legende!B94,IF('LDB Übersicht'!$E$4='LDB Übersicht'!$AC$5,Legende!C94,IF('LDB Übersicht'!$E$4='LDB Übersicht'!$AC$6,Legende!D94,"")))) -> End Caps (-): without (B): both sides (L): left (R): right | K12: =IF('LDB Übersicht'!$E$4='LDB Übersicht'!$AC$3,Legende!A95,IF('LDB Übersicht'!$E$4='LDB Übersicht'!$AC$4,Legende!B95,IF('LDB Übersicht'!$E$4='LDB Übersicht'!$AC$5,Legende!C95,IF('LDB Übersicht'!$E$4='LDB Übersicht'!$AC$6,Legende!D95,"")))) -> Installation without (O); Fixing brackets (B); suspension bracket (DB); | L12: =IF('LDB Übersicht'!$E$4='LDB Übersicht'!$AC$3,Legende!A97,IF('LDB Übersicht'!$E$4='LDB Übersicht'!$AC$4,Legende!B97,IF('LDB Übersicht'!$E$4='LDB Übersicht'!$AC$5,Legende!C97,IF('LDB Übersicht'!$E$4='LDB Übersicht'!$AC$6,Legende!D97,"")))) -> Without (-) narrow (S) longitudinal double box (D) angle (W), Special (X) | M12: =IF('LDB Übersicht'!$E$4='LDB Übersicht'!$AC$3,Legende!A98,IF('LDB Übersicht'!$E$4='LDB Übersicht'!$AC$4,Legende!B98,IF('LDB Übersicht'!$E$4='LDB Übersicht'!$AC$5,Legende!C98,IF('LDB Übersicht'!$E$4='LDB Übersicht'!$AC$6,Legende!D98,"")))) -> Subsequently installation (O) or (M) Second Fix | N12: =IF('LDB Übersicht'!$E$4='LDB Übersicht'!$AC$3,Legende!A99,IF('LDB Übersicht'!$E$4='LDB Übersicht'!$AC$4,Legende!B99,IF('LDB Übersicht'!$E$4='LDB Übersicht'!$AC$5,Legende!C99,IF('LDB Übersicht'!$E$4='LDB Übersicht'!$AC$6,Legende!D99,"")))) -> Sound absorber (-) or (S) | O12: =IF('LDB Übersicht'!$E$4='LDB Übersicht'!$AC$3,Legende!A100,IF('LDB Übersicht'!$E$4='LDB Übersicht'!$AC$4,Legende!B100,IF('LDB Übersicht'!$E$4='LDB Übersicht'!$AC$5,Legende!C100,IF('LDB Übersicht'!$E$4='LDB Übersicht'!$AC$6,Legende!D100,"")))) -> number of spigot | P12: =IF('LDB Übersicht'!$E$4='LDB Übersicht'!$AC$3,Legende!A101,IF('LDB Übersicht'!$E$4='LDB Übersicht'!$AC$4,Legende!B101,IF('LDB Übersicht'!$E$4='LDB Übersicht'!$AC$5,Legende!C101,IF('LDB Übersicht'!$E$4='LDB Übersicht'!$AC$6,Legende!D101,"")))) -> Spigot diameter | Q12: =IF('LDB Übersicht'!$E$4='LDB Übersicht'!$AC$3,Legende!A102,IF('LDB Übersicht'!$E$4='LDB Übersicht'!$AC$4,Legende!B102,IF('LDB Übersicht'!$E$4='LDB Übersicht'!$AC$5,Legende!C102,IF('LDB Übersicht'!$E$4='LDB Übersicht'!$AC$6,Legende!D102,"")))) -> Connection-Type | R12: =IF('LDB Übersicht'!$E$4='LDB Übersicht'!$AC$3,Legende!A104,IF('LDB Übersicht'!$E$4='LDB Übersicht'!$AC$4,Legende!B104,IF('LDB Übersicht'!$E$4='LDB Übersicht'!$AC$5,Legende!C104,IF('LDB Übersicht'!$E$4='LDB Übersicht'!$AC$6,Legende!D104,"")))) -> sound power level | S12: =IF('LDB Übersicht'!$E$4='LDB Übersicht'!$AC$3,Legende!A105,IF('LDB Übersicht'!$E$4='LDB Übersicht'!$AC$4,Legende!B105,IF('LDB Übersicht'!$E$4='LDB Übersicht'!$AC$5,Legende!C105,IF('LDB Übersicht'!$E$4='LDB Übersicht'!$AC$6,Legende!D105,"")))) -> pressure loss [Pa] | AA12: Drosselstellung | AB12: Schlitzanzahl
A13: 1 | C13: 1 | AA13: - | AB13: =IF(OR(F13="LDB 12 small 1-schlitzig",F13="LDB 12 clean 1-schlitzig",F13="LDB 12 style 1-schlitzig",F13="LDB 20 classic 1-schlitzig",F13="LDB 50 maxx 1-schlitzig"),"1-schlitzig",IF(OR(F13="LDB 12 clean 2-schlitzig",F13="LDB 12 style 2-schlitzig",F13="LDB 20 classic 2-schlitzig",F13="LDB 50 maxx 2-schlitzig"),"2-schlitzig",IF(OR(F13="LDB 12 clean 3-schlitzig",F13="LDB 12 style 3-schlitzig",F13="LDB 20 classic 3-schlitzig",F13="LDB 50 maxx 3-schlitzig"),"3-schlitzig",IF(OR(F13="LDB 12 clean 4-schlitzig",F13="LDB 12 style 4-schlitzig",F13="LDB 20 classic 4-schlitzig"),"4-schlitzig","")))) -> 
A14: 2 | C14: 2 | V14: Profilabschluss | W14: Kasten | X14: Schalldämpfer | Y14: Second fix | Z14: Aufhängung | AA14: 45° | AB14: =IF(OR(F14="LDB 12 small 1-schlitzig",F14="LDB 12 clean 1-schlitzig",F14="LDB 12 style 1-schlitzig",F14="LDB 20 classic 1-schlitzig",F14="LDB 50 maxx 1-schlitzig"),"1-schlitzig",IF(OR(F14="LDB 12 clean 2-schlitzig",F14="LDB 12 style 2-schlitzig",F14="LDB 20 classic 2-schlitzig",F14="LDB 50 maxx 2-schlitzig"),"2-schlitzig",IF(OR(F14="LDB 12 clean 3-schlitzig",F14="LDB 12 style 3-schlitzig",F14="LDB 20 classic 3-schlitzig",F14="LDB 50 maxx 3-schlitzig"),"3-schlitzig",IF(OR(F14="LDB 12 clean 4-schlitzig",F14="LDB 12 style 4-schlitzig",F14="LDB 20 classic 4-schlitzig"),"4-schlitzig","")))) -> 
A15: 3 | C15: 3 | V15: - | W15: - | X15: - | Y15: O | Z15: O | AA15: -
A16: 4 | C16: 4 | V16: B | W16: S | X16: S | Y16: M | Z16: B | AA16: 45°
A17: 5 | C17: 5 | V17: R | W17: D | Z17: DB | AA17: -
A18: 6 | C18: 6 | V18: L | W18: X | AA18: 45°
A19: 7 | C19: 7 | W19: W | AA19: 45°
A20: 8 | C20: 8 | AA20: 45°
A21: 9 | C21: 9 | AA21: 45°
A22: 10 | C22: 10 | AA22: 45°
A23: 11 | C23: 11 | AA23: 45°
A24: 12 | C24: 12 | AA24: 45°
A25: 13 | C25: 13 | AA25: 45°
A26: 14 | C26: 14 | AA26: -
A27: 15 | C27: 15 | AA27: -
A28: 16 | C28: 16 | AA28: -
A29: 17 | C29: 17
A30: 18 | C30: 18
A31: 19 | C31: 19
A32: 20 | C32: 20
A33: 21 | C33: 21
A34: 22 | C34: 22
A35: 23 | C35: 23
A36: 24 | C36: 24
A37: 25 | C37: 25
A38: 26 | C38: 26
A39: 27 | C39: 27
A40: 28 | C40: 28
A41: 29 | C41: 29
A42: 30 | C42: 30
A43: 31 | C43: 31
A44: 32 | C44: 32
A45: 33 | C45: 33
A46: 34 | C46: 34
A47: 35 | C47: 35
A48: 36 | C48: 36
A49: 37 | C49: 37
A50: 38 | C50: 38
A51: 39 | C51: 39
A52: 40 | C52: 40
A53: 41 | C53: 41
A54: 42 | C54: 42
A55: 43 | C55: 43
A56: 44 | C56: 44
A57: 45 | C57: 45
A58: 46 | C58: 46
A59: 47 | C59: 47
A60: 48 | C60: 48
A61: 49 | C61: 49
A62: 50 | C62: 50
A63: 51 | C63: 51
A64: 52 | C64: 52
A65: 53 | C65: 53
A66: 54 | C66: 54
A67: 55 | C67: 55
A68: 56 | C68: 56
A69: 57 | C69: 57
A70: 58 | C70: 58
A71: 59 | C71: 59
A72: 60 | C72: 60
A73: 61 | C73: 61
A74: 62 | C74: 62
A75: 63 | C75: 63
A76: 64 | C76: 64
A77: 65 | C77: 65
A78: 66 | C78: 66 | AB78: =IF(OR(F78="LDB 12 small 1-schlitzig",F78="LDB 12 clean 1-schlitzig",F78="LDB 12 style 1-schlitzig",F78="LDB 20 classic 1-schlitzig",F78="LDB 50 maxx 1-schlitzig"),"1-schlitzig",IF(OR(F78="LDB 12 clean 2-schlitzig",F78="LDB 12 style 2-schlitzig",F78="LDB 20 classic 2-schlitzig",F78="LDB 50 maxx 2-schlitzig"),"2-schlitzig",IF(OR(F78="LDB 12 clean 3-schlitzig",F78="LDB 12 style 3-schlitzig",F78="LDB 20 classic 3-schlitzig",F78="LDB 50 maxx 3-schlitzig"),"3-schlitzig",IF(OR(F78="LDB 12 clean 4-schlitzig",F78="LDB 12 style 4-schlitzig",F78="LDB 20 classic 4-schlitzig"),"4-schlitzig","")))) -> 
A79: 67 | C79: 67
A80: 68 | C80: 68
A81: 69 | C81: 69
A82: 70 | C82: 70
A83: 71 | C83: 71
A84: 72 | C84: 72
A85: 73 | C85: 73
A86: 74 | C86: 74
A87: 75 | C87: 75
A88: 76 | C88: 76
A89: 77 | C89: 77
A90: 78 | C90: 78
A91: 79 | C91: 79
A92: 80 | C92: 80
A93: 81 | C93: 81
A94: 82 | C94: 82
A95: 83 | C95: 83
A96: 84 | C96: 84
A97: 85 | C97: 85
A98: 86 | C98: 86
A99: 87 | C99: 87
A100: 88 | C100: 88
A101: 89 | C101: 89
A102: 90 | C102: 90
A103: 91 | C103: 91
A104: 92 | C104: 92
A105: 93 | C105: 93
A106: 94 | C106: 94
A107: 95 | C107: 95
A108: 96 | C108: 96
A109: 97 | C109: 97
A110: 98 | C110: 98
A111: 99 | C111: 99
A112: 100 | C112: 100

Sheet Legende (hidden)
A1: Deutsch | B1: English | C1: Francais | D1: Italiano
A2: Projekt: | B2: Project: | C2: Projet: | D2: Progetto:
A3: Variante: | B3: Variant: | C3: Variante: | D3: Variante:
A4: Bearbeiter: | B4: Editor: | C4: Éditeur: | D4: Editore:
A5: Datum: | B5: Date: | C5: Date: | D5: Data:
A6: Bestellnummer: | B6: Order number: | C6: Numéro de commande: | D6: Numero d'ordine:
A7: LTG Schlitzdurchlässe Typ LDB und LDB System Clean | B7: LTG Linear Diffusers Type LDB and LDB System Clean | C7: LTG Diffuseurs linéaires type LDB et LDB Système CLEAN | D7: Diffusori lineari LTG tipo LDB e LDB System clean
A8: Sprache: | B8: language: | C8: Langue: | D8: linguaggio:
A9: Einheit: | B9: unit: | C9: unité: | D9: unità:
A10: Raumdaten: | B10: Room data: | C10: Donées du Local: | D10: Dati del locale:
A11: Raumbezeichnung: | B11: Room name: | C11: Designation du Local: | D11: Identificazione del locale:
A12: Soll-Gesamtvolumenstrom: | B12: Target total air flow rate: | C12: Debit d`air demandée: | D12: Portata aria di progetto:
A13: Raumlufttemperatur: | B13: Room air temperature: | C13: Temperature ambient: | D13: Temperatura ambiente:
A14: Zulufttemperatur: | B14: Supply air temperature: | C14: Température de soufflage: | D14: Temperatura dell'aria di mandata:
A15: Raum-Schallabsorption: | B15: Room sound absorpion: | C15: Attenuation du local: | D15: Attenuazione sonora del locale:
A16: Max. zulässiger Schalldruckpegel im Raum: | B16: Sound pressure level limit in the room: | C16: Niveau sonore permis: | D16: Pressione sonora massima amnessa nel locale:
A17: Kühlleistung: | B17: Cooling capacity: | C17: Puissance frigorifique: | D17: Potenza frigorifera:
A18: <= Auswahl (mit Doppelklick) | B18: <= Selected (with double click) | C18: <= Sélection (avec double clic) | D18: <= Selezione (con doppio clic)
A19: LDB Typ | B19: LDB Type | C19: Designation du type LDB | D19: Tipo di LDB
A20: Einbauhöhe H=2,80 m, LDB 50maxx H = 5,00 m | B20: Installation height H=2,80 m, LDB 50maxx H = 5,00 m | C20: hauteur installation H=2,8 m, LDB 50maxx H = 5,00 m | D20: Altezza di installazione H=2,8m, LDB 50maxx H=5,00m
A21: LDB 12 small | B21: LDB 12 small | C21: LDB 12 petit | D21: LDB 12 piccolo
A22: LDB 12 clean | B22: LDB 12 clean | C22: LDB 12 propre | D22: LDB 12 pulito
A23: LDB 12 style | B23: LDB 12 style | C23: LDB 12 style | D23: LDB 12 stile
A24: LDB 20 classic | B24: LDB 20 classic | C24: LDB 20 classique | D24: LDB 20 classico
A25: LDB 50 maxx | B25: LDB 50 maxx | C25: LDB 50 maxx | D25: LDB 50 maxx
A26: 1-schlitzig | B26: 1-slot | C26: 1-emplacement | D26: 1-slot
A27: 2-schlitzig | B27: 2-slot | C27: 2-emplacements | D27: 2-slot
A28: 3-schlitzig | B28: 3-slot | C28: 3-emplacements | D28: 3-slot
A29: 4-schlitzig | B29: 4-slot | C29: 4-emplacements | D29: 4-slot
A30: Spezifischer Volumenstrom | B30: Specific air flow rate | C30: Debit d`air specifique par 1 m | D30: Portata aria specifica
A31: Empfehlung max. | B31: Recommen-dation max. | C31: Recommandation maxi. | D31: Massima raccomandata
A32: Schlitzlänge Element | B32: Diffuser element length | C32: Longuer diffuseur par element | D32: Lunghezza diffusore
A33: Stückzahl | B33: Quantity | C33: Quantité | D33: Quantità
A34: Schlitzlänge Gesamt Raum | B34: Diffuser length total room | C34: Longueur diffuseur total par local | D34: Lunghezza totale diffusori nel locale
A35: Druckverlust | B35: Pressure loss | C35: Perte pression | D35: Caduta di pressione
A36: Strahl-Ausbreitung Zuluft | B36: Jet spreading supply air | C36: Penetration du jet de l`air neuf | D36: Larghezza del getto aria di mandata
A37: Max. Luft-Geschwind. | B37: Max. air velocity | C37: Velocité maximale | D37: Velocità massima aria
A38: Aufentaltszone | B38: Occupied zone | C38: Zone occupé | D38: Zona occupata
A39: Zugluft-risiko | B39: Draught risk | C39: Risque vitesse trop elevé | D39: Rischio spiffero
A40: Kategorie gemäß DIN EN ISO 7730 | B40: Category DIN EN ISO 7730 | C40: Classe sélon DIN EN ISO 7730 | D40: Categoria secondo DIN EN ISO 7730
A41: Bewertung der thermischen Behaglichkeit | B41: Evaluation of thermal comfort | C41: Variante | D41: Valutazione comfort termico
A42: Stck. | B42: pc. | C42: pc. | D42: pz.
A43: A-bewerteter Schall-leistungs-pegel pro Element | B43: A-rated sound power level per element | C43: Niveau puissance sonore par element | D43: Potenza scala A del singolo elemento diffusore
A44: Ist-Gesamt- volumen- strom | B44: Actual total air flow rate | C44: Debit d´air totale | D44: Portata aria totale
A45: Schalldruckpegel im Raum | B45: Sound pressure level in the room | C45: Niveau pression sonore du local | D45: Pressione sonora risultante nel locale
A46: Akustische Daten der Standard-Konfiguration (LDBsmall, LDBmaxx: ohne Drossel = SDA; LDBclean, LDBstyle, LDBclassic: Drossel = DLU (100% offen)) | B46: Acoustic data of the standard configuration (LDBsmall, LDBmaxx: without throttle = SDA; LDBclean, LDBstyle, LDBclassic: throttle = DLU (100% open)) | C46: Données acoustiques de la configuration standard (LDBsmall, LDBmaxx: sans manette de gaz = SDA; LDBclean, LDBstyle, LDBclassic: manette de gaz = DLU (100% ouvert)) | D46: Dati acustici della configurazione standard (LDBsmall, LDBmaxx: senza acceleratore = SDA; LDBclean, LDBstyle, LDBclassic: acceleratore = DLU (100% aperto))
A47: Eine Fehlerfreiheit des Programms kann nicht zugesichert werden. Im Zweifel gelten die technischen Daten der aktuellen LTG Bauteilmappe. | B47: Accuracy of selection software can not be ensured. In case of doubts data of LTG technical literature is valid. | C47: Sous Réserve des erreurs du programme, en cas de doute il faut utiliser les données techniques du prospectus valable | D47: La mancanza di errori del programma non può essere garantita. In caso di dubbio restano validi i dati riportati sulle schede tecniche aggiornate
A48: Aus Programmierfehlern entstandener Schaden geht nicht zu Lasten der LTG. Technische Änderungen im Rahmen der Weiterentwicklung vorbehalten. | B48: Damage caused by programming errors is not at LTG expenses. Subject to technical specifications. | C48: LTG Aktiengesellschaft refuse la résponsabilite d`erreurs de programmer y compris Dommage eventuel causé par le programme. | D48: Danni per errori nei programmi di selezione non possono essere addebitati a LTG. Ci si riserva il diritto di modifiche tecniche in seguito a futuri sviluppi del prodotto
A49: Raumabmessungen: | B49: Room dimensions: | C49: Dimensions du local | D49: Dimensioni ambiente
A50: Breite: | B50: Width: | C50: Largueur | D50: Larghezza
A51: Höhe: | B51: Height: | C51: Hauteur | D51: Altezza
A52: Tiefe: | B52: Depth: | C52: Longueur | D52: Profondità
A53: Gewählte Nachhallzeit: | B53: Selected reverberation period: | C53: Temps du reverbation choisi | D53: Periodo di riverberazione considerato
A54: Äquivalente Absorptionsfläche: | B54: Equivalent absorption area: | C54: Equivalent Surface Absorbtion | D54: Area equivalente di assorbimento
A55: Raum-Schallabsorption: | B55: Room sound absorpion: | C55: Attenuation du local: | D55: Attenuazione sonora del locale:
A56: Raumbezeichnung | B56: Room name | C56: Designation du Local | D56: Identificazione del locale
A57: Stutzenanzahl [Stck] | B57: No. of spigots [pc] | C57: Nombre Piquages | D57: Numero attacchi aria [pz.]
A58: Stutzendurchmesser [mm] | B58: Spigot diameter [mm] | C58: Diametre Piquage | D58: Diametro attacchi aria [mm]
A59: Volumenstrom | B59: Air flow rate | C59: Debit d`air | D59: Portata aria
A60: Zulufttemperatur | B60: Supply air temperature | C60: Température de soufflage | D60: Temperatura dell'aria di mandata
A61: Profilabschluss | B61: End Caps | C61: Achèvement du profil | D61: Tipo di terminali di testa
A62: Kastentyp | B62: Box Type | C62: Type de boîte | D62: Tipo di plenum
A63: int. Schalldämpferkulisse | B63: sound absorber | C63: Porte silencieux | D63: Assorbitore acustico interno
A64: Nachträglich Befestigung (Sec. Fix) | B64: Subsequently installation (Sec. Fix) | C64: Pièce jointe ultérieure (Sec. Fix) | D64: Second-Fix: feritoie smontabili
A65: Anschluss - Typ | B65: Connection-Type | C65: Type de connexion | D65: Tipo di attacco dell'aria
A66: Drossel-Einstellung | B66: throttle damper | C66: Réglage de l'accélérateur | D66: Taratura serranda
A67: Druckverlust | B67: Pressure loss | C67: Perte pression | D67: Caduta di pressione
A68: A-bewerteter Schallleistungspegel | B68: A-rated sound power level | C68: Niveau puissance sonore | D68: Potenza sonora in scala A
A69: Gesamtvolumenstrom | B69: Actual total air flow rate | C69: Debit d´air totale | D69: Portata aria totale
A70: Raum-Schallabsorption | B70: Room sound absorpion | C70: Attenuation du local | D70: Attenuazione sonora del locale
A71: Schalldruckpegel im Raum | B71: Sound pressure level in the room | C71: Niveau pression sonore du local | D71: Pressione sonora risultante nel locale
A72: © LTG Aktiengesellschaft: 28.07.2021 - LES - V1.5 | B72: © LTG Aktiengesellschaft: 28.07.2021 - LES - V1.5 | C72: © LTG Aktiengesellschaft: 28.07.2021 - LES - V1.5 | D72: © LTG Aktiengesellschaft: 28.07.2021 - LES - V1.5
A73: Angaben zu Toleranzen sowie weitere Spezifikationen sind der aktuellen Technischen Dokumentation zu entnehmen. | B73: Information on tolerances and other specifications can be found in the current technical documentation. | C73: Des informations sur les tolérances et autres spécifications se trouvent dans la documentation technique actuelle. | D73: Informazioni sulle tolleranze e altre specifiche possono essere trovate nella documentazione tecnica attuale.
A74: Diese finden Sie auf www.LTG.de. Eine Fehlerfreiheit des Programms kann nicht zugesichert werden. | B74: You can find this at www.LTG.de. We cannot guarantee that the program is free from errors. | C74: Vous pouvez le trouver sur www.LTG.de. Nous ne pouvons pas garantir que le programme est exempt d'erreurs. | D74: Puoi trovarlo su www.LTG.de. Non possiamo garantire che il programma sia privo di errori.
A75: Aus Programmierfehlern entstandener Schaden geht nicht zu Lasten der LTG. Technische Änderungen im Rahmen der Weiterentwicklung vorbehalten. | B75: LTG is not responsible for any damage resulting from programming errors. Subject to technical changes in the course of further development. | C75: LTG n'est pas responsable des dommages résultant d'erreurs de programmation. Sous réserve de modifications techniques en cours de développement. | D75: LTG non è responsabile per eventuali danni derivanti da errori di programmazione. Soggetto a modifiche tecniche nel corso di ulteriori sviluppi.
A76: Kanalquerschnitt vor Empfangsraum Zuluft: | B76: Canal cross-section in front of the reception room supply air: | C76: Coupe transversale du canal devant la salle de réception air soufflé: | D76: sezione del canale davanti alla sala di ricevimento aria di alimentazione:
A77: Kanalquerschnitt vor Empfangsraum Abluft: | B77: Canal cross-section in front of the reception room exhaust air: | C77: Coupe transversale du canal devant la salle de réception air extrait: | D77: sezione del canale davanti alla sala di ricevimento aria di ripresa:
A78: Auswahl | B78: Selection | C78: Sélection | D78: Selezione
A79: Ergebnis | B79: Result | C79: Résultat | D79: Risultato
A80: Volumenstrom je Luftart | B80: Volume flow per air type | C80: Débit volumique par type d'air | D80: Portata in volume per tipo di aria
A81: Einbauort | B81: Installation location | C81: Emplacement d'installation | D81: Luogo di installazione
A82: Raumnutzung / Geschoss | B82: Use of space / floor | C82: Utilisation de l'espace / du sol | D82: Uso dello spazio / pavimento
A83: Alternative (mit Doppelklick) | B83: Alternative (with double click) | C83: Alternative (avec double clic) | D83: Alternativo (con doppio clic)
A84: Auswahl / Alternative | B84: Selection / Alternative | C84: Sélection / Alternative | D84: Selezione / Alternativo
A85: Referenz | B85: Reference | C85: Référence | D85: Riferimento
A86: Pos. Nr. | B86: Pos. No. | C86: Réf. No. | D86: Nr. Pos.
A87: Stückzahl | B87: Quantity | C87: Quantité | D87: Quantità
A88: Bezeichnung | B88: Description | C88: Désignation | D88: Denominazione
A89: LDB Typ | B89: LDB Type | C89: Designation du type LDB | D89: Tipo di LDB
A90: Typ | B90: Type | C90: Type | D90: Tipo
A91: Volumenstrom | B91: Air flow rate | C91: Debit d`air | D91: Portata aria
A92: Schlitzauslassschiene | B92: Linear diffuser | C92: Diffuse linéairement | D92: Diffusore lineare
A93: Länge des Schlitzauslasses | B93: Length of the linear diffusers | C93: Longueur des diffuseurs linéaires | D93: Lunghezza del diffusore
A94: Profilabschluss (-): ohne (B): beidseitig (L): links (R): rechts | B94: End Caps (-): without (B): both sides (L): left (R): right | C94: Achèvement du profil (-): sans pour autant (B): des deux côtés (L): gauche (R): droite | D94: Terminali di testa (-): senza (B): su entrambi i lati (L): sinistra (R): destra
A95: Aufhängung ohne (O); Aufhängebügel (B); Doppelbügel (DB) (nur für Blindbefestigung ohne Luftverteilkasten) | B95: Installation without (O); Fixing brackets (B); suspension bracket (DB); | C95: Suspension sans (O); Support de suspension (B); Support double (DB) (uniquement pour montage en aveugle sans boîte de distribution d'air) | D95: Senza pendinatura (O); Archetti (B); archetti doppo (DB) (solo per diffusori ciechi senza plenum)
A96: Luftverteilkasten | B96: Box Type | C96: Boîte de distribution d'air | D96: Plenum di distribuzione
A97: Ohne Kasten (-) , mit Kasten Typ Standard (S) , Doppelkasten (D) , Sonderkasten (X) oder Winkelstück (W) | B97: Without (-) narrow (S) longitudinal double box (D) angle (W), Special (X) | C97: 'Sans (-) étroit (S) double caisson longitudinal (D) angle (W), spécial (X) | D97: Senza plenum (-), con plenum standard (S), con plenum doppio (D), plenum speciale (X) o pezzo ad angolo (W)
A98: Nachträglich Befestigung Kasten+Schiene (O) oder (M) mit Second Fix Befestigung | B98: Subsequently installation (O) or (M) Second Fix | C98: Fixation ultérieure boîte + rail (O) ou (M) avec fixation Second Fix | D98: Montaggio diffusore - plenum in in secndo momento: senza (O), con sistema Second-Fix (M)
A99: Integr. Schalldämpfer (-) oder (S) mit Schalldämpfer (Brandschutzklasse B1) | B99: Sound absorber (-) or (S) | C99: Absorbeur de bruit (-) ou (S) | D99: Assorbitore acustico integrato: senza (-), con (S) (classe di resistenza al fuoco B1)
A100: Anzahl Stutzen | B100: number of spigot | C100: nombre de spigot | D100: Numero attacchi aria
A101: Stutzengrößen | B101: Spigot diameter | C101: Diamètre de la broche | D101: Diamtro attacchi
A102: Anschluss - Typ | B102: Connection-Type | C102: Type de connexion | D102: Tipo di attacco dell'aria
A103: Technische Daten | B103: Technical specifications | C103: Spécifications techniques | D103: Specifiche tecniche
A104: A-bewerteter Schallleistungspegel pro Element dB(A) | B104: sound power level | C104: niveau de puissance acoustique | D104: Potenza sonora in scala A del singolo elemento diffusore
A105: Druckverlust [Pa] | B105: pressure loss [Pa] | C105: La chute de pression [Pa] | D105: Perdita di carico [Pa]
A106: Aufhängung (nur Blindauslass) | B106: Blind attachment | C106: Suspension (sortie aveugle uniquement) | D106: Sospensione (solo diffusore cieco)
A107: Achtung: Schalldruckpegel im Raum ist höher als max. zulässiger Schalldruckpegel im Raum | B107: Attention: The sound pressure level in the room is higher than the max.permissible sound pressure level in the room | C107: Attention: le niveau de pression acoustique dans la pièce est supérieur au niveau de pression acoustique maximal autorisé dans la pièce | D107: Attenzione: il livello di pressione sonora nella stanza è superiore al livello di pressione sonora massimo consentito nella stanza
A108: Zuluftuntertemperatur | B108: Supply air under temperature | C108: Air soufflé sous température | D108: Aria di mandata sotto temperatura
